Workbook

Sheet Please read

Sheet Consolidated BOM
B2: Last update: | C2: DC/DC supply
B3: 2020-03-18
B4: 21:36:44
B6: Worksheet: | C6: First Row: | D6: Last Row:
B7: Channel (common) | C7: 5 | D7: 49
B8: Channel (calc) | C8: 5 | D8: 292
B9: Voice preamp | C9: 5 | D9: 47
B10: Carrier preamp | C10: 5 | D10: 47
B11: Internal exc. (left) | C11: 5 | D11: 84
B12: Internal exc. (right) | C12: 5 | D12: 84
B13: VUV detector | C13: 5 | D13: 52
B14: Output, PWM, bridging | C14: 5 | D14: 69
B15: Slew-freeze | C15: 5 | D15: 54
B16: DC-DC supply | C16: 5 | D16: 30
B17: Misc. | C17: 5 | D17: 19
L19: count: 18 | M19: count: 1 | N19: count: 1 | O19: count: 1 | P19: count: 1 | Q19: count: 1 | R19: count: 1 | S19: count: 1 | T19: count: 1 | U19: count: 1 | V19: count: 1
B20: Type | C20: Identifier | D20: Count | E20: Min. Count | F20: Body Type | G20: Suggested Product | H20: Distri- butor | I20: Order # | J20: Unit price [€] | K20: Total [€] | L20: Channel (common) | M20: Channel (frequency) | N20: Voice preamp | O20: Carrier preamp | P20: Internal exc. (left) | Q20: Internal exc. (right) | R20: VUV detector | S20: Output, PWM, bridging | T20: Slew-freeze | U20: DC-DC supply | V20: Misc.
A21: 1 | B21: IC | C21: 78L05 | D21: 1 | F21: TO-92 | G21: LM78L05ACZXA | H21: Mouser | I21: 511-L78L05ACZ | J21: 0.332 | K21: =IF(D21>=E21,D21*J21,E21*J21) -> 0.332 | S21: IC12
A22: 1 | B22: IC | C22: 79L05 | D22: 1 | F22: TO-92 | G22: LM79L05ACZ | H22: Mouser | I22: 511-L79L05ACZ | J22: 0.358 | K22: 0.358 | S22: IC13
A23: 1 | B23: IC | C23: CD40106 | D23: 2 | F23: DIL14 | G23: CD40106BE | H23: Mouser | I23: 595-CD40106BE | J23: 0.445 | K23: 0.89 | R23: IC8 | S23: IC11
A24: 1 | B24: IC | C24: CD4050 | D24: 1 | F24: DIL16 | G24: CD4050BE | H24: Mouser | I24: 595-CD4050BE | J24: 0.463 | K24: 0.463 | S24: IC9
A25: 1 | B25: IC | C25: CD4053 | D25: 18 | F25: DIL16 | G25: CD4053BE | H25: Mouser | I25: 595-CD4053BE | J25: 0.372 | K25: 6.696 | L25: IC5
A26: 1 | B26: IC | C26: CD4093 | D26: 2 | F26: DIL14 | G26: CD4093BE | H26: Mouser | I26: 595-CD4093BE | J26: 0.428 | K26: 0.856 | R26: IC7 | T26: IC5
A27: 2 | B27: IC | C27: IRF7319 | D27: 1 | F27: SO-8 | G27: IRF7319TRPBF | H27: Mouser | I27: 942-IRF7319TRPBF | J27: 0.795 | K27: 0.795 | U27: IC1
A28: 1 | B28: IC | C28: LM13700 | D28: 2 | F28: DIL16 | G28: LM13700N | H28: Mouser | I28: 926-LM13700N/NOPB | J28: 1.82 | K28: 3.64 | P28: IC6 | Q28: IC6
A29: 1 | B29: IC | C29: LM319 | D29: 5 | F29: DIL14 | G29: LM319N | H29: Mouser | I29: 512-LM319N | J29: 0.498 | K29: 2.49 | P29: IC4 | Q29: IC4 | S29: IC8, IC10 | T29: IC4
A30: 4 | B30: IC | C30: LM3916 | D30: 3 | F30: DIL18 | G30: LM3916 | I30: LM3916 | J30: 1.98 | K30: 5.94 | N30: IC5 | O30: IC5, IC9
A31: 5 | B31: IC | C31: MC33079 | D31: 36 | F31: DIL14 | G31: MC33079PG | H31: Rochester | I31: MC33079 | J31: 0.62 | K31: 22.32 | L31: IC1, IC2
A32: 1 | B32: IC | C32: NE5532 | D32: 17 | E32: 10 | F32: DIL8 | G32: NE5532AP | H32: Mouser | I32: 595-NE5532AP | J32: 0.814 | K32: 13.838 | N32: IC1, IC2, IC3 | O32: IC1, IC2, IC3, IC6, IC7 | P32: IC8 | Q32: IC8 | R32: IC6 | S32: IC1, IC2, IC3, IC4, IC5, IC6
A33: 1 | B33: IC | C33: THAT300 | D33: 2 | F33: DIL14 | G33: THAT300P14-U | H33: Mouser | I33: 887-300P14-U | J33: 7.95 | K33: 15.9 | P33: IC2 | Q33: IC2
A34: 1 | B34: IC | C34: TL072 | D34: 8 | F34: DIL8 | G34: TL072IP | H34: Mouser | I34: 595-TL072IP | J34: 0.594 | K34: 4.752 | N34: IC4 | O34: IC4, IC8 | P34: IC1 | Q34: IC1 | R34: IC1 | S34: IC7, IC16
A35: 1 | B35: IC | C35: TL074 | D35: 51 | F35: DIL14 | G35: TL074CN | H35: Mouser | I35: 595-TL074CN | J35: 0.468 | K35: 23.868 | L35: IC3, IC4 | P35: IC3, IC5, IC7 | Q35: IC3, IC5, IC7 | R35: IC2, IC3, IC4, IC5 | S35: IC14, IC15 | T35: IC1, IC2, IC3
A36: 1 | B36: Transistor | C36: 2N3904 | D36: 47 | E36: 100 | F36: TO-92 | G36: 2N3904BU | H36: Mouser | I36: 512-2N3904BU | J36: 0.051 | K36: 5.1 | L36: T1, T2 | P36: T1, T2 | Q36: T1, T2 | R36: T1, T2 | T36: T1, T2, T3 | U36: T2, T3
A37: 1 | B37: Transistor | C37: 2N3906 | D37: 4 | F37: TO-92 | G37: 2N3906BU | H37: Mouser | I37: 512-2N3906BU | J37: 0.236 | K37: 0.944 | P37: T3 | Q37: T3 | U37: T1, T4
A38: 1 | B38: JFET | C38: J105 | D38: 2 | F38: TO-92 | G38: J105 | H38: Mouser | I38: 512-J105 | J38: 0.553 | K38: 1.106 | P38: J1 | Q38: J1
A39: 1 | B39: JFET | C39: J113 | D39: 17 | E39: 5 | F39: TO-92 | G39: J113 | H39: Mouser | I39: 512-J113 | J39: 0.249 | K39: 4.233 | O39: J1 | P39: J2, J3 | Q39: J2, J3, J4, J5 | R39: J1, J2, J3, J4 | S39: J1, J2, J3, J4 | T39: J1, J2
A40: 1 | B40: Diode | C40: 1N4148 | D40: 76 | E40: 100 | F40: DO-35 | G40: 1N4148 | H40: Mouser | I40: 512-1N4148 | J40: 0.018 | K40: 1.8 | L40: D1, D2 | N40: D1, D2, D3, D4 | O40: D1, D2, D3, D4, D5, D6, D7, D8 | P40: D1, D2 | Q40: D1, D2 | R40: D1, D2, D3, D4, D5, D6, D7, D8, D9, D10, D11, D12 | S40: D1, D2, D3, D4 | T40: D1, D2, D3, D4, D5, D6, D7, D8
A41: 1 | B41: Diode | C41: 1N4001 | D41: 1 | F41: DO-41 | G41: 1N4001RLG | H41: Mouser | I41: 863-1N4001RLG | J41: 0.183 | K41: 0.183 | S41: D5
A42: 2 | B42: Diode | C42: SB540 | D42: 1 | F42: DO-201AD | G42: SB540 | H42: Mouser | I42: 512-SB540 | J42: 0.46 | K42: 0.46 | U42: D1
A43: 1 | B43: Resistor | C43: 10 Ω | D43: 1 | F43: 0204/0207 | G43: MFR-12FTF52-10R | H43: Mouser | I43: 603-MFR-12FTF52-10R | J43: 0.122 | K43: 0.122 | T43: R34
A44: 1 | B44: Resistor | C44: 47 Ω, 250 mW | D44: 181 | E44: 100 | F44: 0204/0207 | G44: MFR-12FTF52-47R | H44: Mouser | I44: 603-MFR-12FTF52-47R | J44: 0.021 | K44: 3.801 | L44: R59, R60, R61, R62, R63, R64, R65 | N44: R23, R24 | O44: R23, R24 | P44: R8, R69, R70, R71, R72, R73, R74, R75, R76, R77, R78, R82, R83 | Q44: R8, R69, R70, R71, R72, R73, R74, R75, R76, R77, R78, R82, R83 | R44: R76, R77, R78, R79, R80, R81, R82 | S44: R73, R85, R86, R87, R88, R89, R90, R91, R92, R93 | T44: R54, R55, R56, R57, R58, R59, R60, R61
A45: 1 | B45: Resistor | C45: 100 Ω | D45: 19 | E45: 10 | F45: 0204/0207 | G45: MFR-12FTF52-100R | H45: Mouser | I45: 603-MFR-12FTF52-100R | J45: 0.06 | K45: 1.14 | L45: R46 | R45: R49
A46: 1 | B46: Resistor | C46: 220 Ω | D46: 1 | F46: 0204/0207 | G46: MFR-12FTF52-220R | H46: Mouser | I46: 603-MFR-12FTF52-220R | J46: 0.119 | K46: 0.119 | S46: R95
A47: 1 | B47: Resistor | C47: 430 Ω | D47: 2 | F47: 0204/0207 | G47: MFR-12FTF52-430R | H47: Mouser | I47: 603-MFR-12FTF52-430R | J47: 0.119 | K47: 0.238 | P47: R41 | Q47: R41
A48: 1 | B48: Resistor | C48: 470 Ω | D48: 5 | F48: 0204/0207 | G48: MFR-12FTF52-470R | H48: Mouser | I48: 603-MFR-12FTF52-470R | J48: 0.119 | K48: 0.595 | P48: R40 | Q48: R40 | S48: R45, R46, R75
A49: 1 | B49: Resistor | C49: 510 Ω | D49: 3 | F49: 0204/0207 | G49: MFR-12FTF52-510R | H49: Mouser | I49: 603-MFR-12FTF52-510R | J49: 0.119 | K49: 0.357 | N49: R20 | O49: R20, R50
A50: 1 | B50: Resistor | C50: 560 Ω | D50: 4 | F50: 0204/0207 | G50: MFR-12FTF52-560R | H50: Mouser | I50: 603-MFR-12FTF52-560R | J50: 0.119 | K50: 0.476 | S50: R21, R22, R33, R34
A51: 1 | B51: Resistor | C51: 750 Ω | D51: 18 | E51: 10 | F51: 0204/0207 | G51: MFR-12FTF52-750R | H51: Mouser | I51: 603-MFR-12FTF52-750R | J51: 0.06 | K51: 1.08 | L51: R26
A52: 1 | B52: Resistor | C52: 820 Ω | D52: 2 | F52: 0204/0207 | G52: MFR-12FTF52-820R | H52: Mouser | I52: 603-MFR-12FTF52-820R | J52: 0.119 | K52: 0.238 | P52: R9 | Q52: R9
A53: 1 | B53: Resistor | C53: 1 kΩ | D53: 24 | E53: 10 | F53: 0204/0207 | G53: MFR-12FTF52-1K | H53: Mouser | I53: 603-MFR-12FTF52-1K | J53: 0.046 | K53: 1.104 | L53: R43 | N53: R3, R33 | O53: R3, R33 | P53: R34 | Q53: R34
A54: 1 | B54: Resistor | C54: 1.5 kΩ | D54: 2 | F54: 0204/0207 | G54: MFR-12FTF52-1K5 | H54: Mouser | I54: 603-MFR-12FTF52-1K5 | J54: 0.119 | K54: 0.238 | R54: R5, R23
A55: 1 | B55: Resistor | C55: 2.2 kΩ | D55: 34 | E55: 10 | F55: 0204/0207 | G55: MFR-12FTF52-2K2 | H55: Mouser | I55: 603-MFR-12FTF52-2K2 | J55: 0.06 | K55: 2.04 | L55: R58 | P55: R6, R11 | Q55: R6, R11 | R55: R73, R75 | S55: R84 | T55: R23, R38, R39, R46, R50, R53 | U55: R1, R4, R8
A56: 1 | B56: Resistor | C56: 3.3 kΩ | D56: 41 | E56: 100 | F56: 0204/0207 | G56: MFR-12FTF52-3K3 | H56: Mouser | I56: 603-MFR-12FTF52-3K3 | J56: 0.021 | K56: 2.1 | L56: R52, R53 | P56: R60, R81 | Q56: R60, R81 | S56: R50
A57: 1 | B57: Resistor | C57: 3.9 kΩ | D57: 1 | F57: 0204/0207 | G57: MFR-12FTF52-3K9 | H57: Mouser | I57: 603-MFR-12FTF52-3K9 | J57: 0.119 | K57: 0.119 | R57: R3
A58: 1 | B58: Resistor | C58: 4.7 kΩ | D58: 33 | E58: 10 | F58: 0204/0207 | G58: MFR-12FTF52-4K7 | H58: Mouser | I58: 603-MFR-12FTF52-4K7 | J58: 0.046 | K58: 1.518 | L58: R42 | P58: R33, R44, R46, R59 | Q58: R33, R44, R46, R59 | R58: R13, R36, R46 | S58: R39, R81 | T58: R9, R25
A59: 1 | B59: Resistor | C59: 5.1 kΩ | D59: 18 | E59: 10 | F59: 0204/0207 | G59: MFR-12FTF52-5K1 | H59: Mouser | I59: 603-MFR-12FTF52-5K1 | J59: 0.06 | K59: 1.08 | L59: R49
A60: 1 | B60: Resistor | C60: 5.6 kΩ | D60: 6 | E60: 10 | F60: 0204/0207 | G60: MFR-12FTF52-5K6 | H60: Mouser | I60: 603-MFR-12FTF52-5K6 | J60: 0.06 | K60: 0.6 | P60: R36, R37 | Q60: R36, R37 | R60: R21, R22
A61: 1 | B61: Resistor | C61: 6.8 kΩ | D61: 16 | E61: 10 | F61: 0204/0207 | G61: MFR-12FTF52-6K8 | H61: Mouser | I61: 603-MFR-12FTF52-6K8 | J61: 0.06 | K61: 0.96 | M61: 500 Hz: R39 640 Hz: R39 810 Hz: R39 1030 Hz: R39 1310 Hz: R39 1660 Hz: R39 2110 Hz: R39 2680 Hz: R39 3410 Hz: R39 4330 Hz: R39 5500 Hz: R39 7000 Hz: R39 | R61: R19 | S61: R47, R48, R59
A62: 1 | B62: Resistor | C62: 7.5 kΩ | D62: 5 | F62: 0204/0207 | G62: MFR-12FTF52-7K5 | H62: Mouser | I62: 603-MFR-12FTF52-7K5 | J62: 0.119 | K62: 0.595 | N62: R21 | O62: R21, R51 | T62: R15, R49
A63: 1 | B63: Resistor | C63: 8.2 kΩ | D63: 40 | E63: 100 | F63: 0204/0207 | G63: MFR-12FTF52-8K2 | H63: Mouser | I63: 603-MFR-12FTF52-8K2 | J63: 0.021 | K63: 2.1 | L63: R40, R50 | R63: R14, R34, R47 | S63: R60
A64: 1 | B64: Resistor | C64: 10 kΩ | D64: 246 | E64: 100 | F64: 0204/0207 | G64: MFR-12FTF52-10K | H64: Mouser | I64: 603-MFR-12FTF52-10K | J64: 0.021 | K64: 5.166 | L64: R27, R28, R29, R30, R31, R32, R33, R34, R41, R51, R54 | M64: 120 Hz: R39 150 Hz: R39 190 Hz: R39 240 Hz: R39 310 Hz: R39 390 Hz: R39 | N64: R11 | O64: R11, R41 | P64: R58 | Q64: R58 | R64: R1, R15, R16, R24, R25, R35, R48, R58, R59, R60, R61, R62, R63, R64, R65, R71 | S64: R29, R30, R31, R32, R49, R52, R53, R54, R55, R56, R61, R64, R67, R77 | T64: R21, R22 | U64: R2, R3, R6, R7, R10
A65: 1 | B65: Resistor | C65: 12 kΩ | D65: 3 | F65: 0204/0207 | G65: MFR-12FTF52-12K | H65: Mouser | I65: 603-MFR-12FTF52-12K | J65: 0.119 | K65: 0.357 | P65: R42 | Q65: R42 | R65: R33
A66: 1 | B66: Resistor | C66: 15 kΩ | D66: 50 | E66: 100 | F66: 0204/0207 | G66: MFR-12FTF52-15K | H66: Mouser | I66: 603-MFR-12FTF52-15K | J66: 0.021 | K66: 2.1 | L66: R47, R48 | N66: R22 | O66: R22, R52 | P66: R35, R43 | Q66: R35, R43 | R66: R11, R12, R18, R44, R45 | S66: R1, R2
A67: 1 | B67: Resistor | C67: 18 kΩ | D67: 7 | E67: 10 | F67: 0204/0207 | G67: MFR-12FTF52-18K | H67: Mouser | I67: 603-MFR-12FTF52-18K | J67: 0.06 | K67: 0.6 | P67: R27, R28, R29 | Q67: R27, R28, R29 | S67: R37
A68: 1 | B68: Resistor | C68: 20 kΩ | D68: 36 | E68: 100 | F68: 0204/0207 | G68: MFR-12FTF52-20K | H68: Mouser | I68: 603-MFR-12FTF52-20K | J68: 0.016 | K68: 1.6 | L68: R55 | M68: 500 Hz: R38 640 Hz: R38 810 Hz: R38 1030 Hz: R38 1310 Hz: R38 1660 Hz: R38 2110 Hz: R38 2680 Hz: R38 3410 Hz: R38 4330 Hz: R38 5500 Hz: R38 7000 Hz: R38 | R68: R66, R67 | S68: R58, R62, R63, R76
A69: 1 | B69: Resistor | C69: 22 kΩ | D69: 25 | E69: 10 | F69: 0204/0207 | G69: MFR-12FTF52-22K | H69: Mouser | I69: 603-MFR-12FTF52-22K | J69: 0.06 | K69: 1.5 | L69: R57 | N69: R12 | O69: R12, R42 | P69: R57 | Q69: R57 | R69: R2, R17
A70: 1 | B70: Resistor | C70: 24 kΩ | D70: 36 | E70: 100 | F70: 0204/0207 | G70: MFR-12FTF52-24K | H70: Mouser | I70: 603-MFR-12FTF52-24K | J70: 0.021 | K70: 2.1 | L70: R44 | M70: 500 Hz: R37 640 Hz: R37 810 Hz: R37 1030 Hz: R37 1310 Hz: R37 1660 Hz: R37 2110 Hz: R37 2680 Hz: R37 3410 Hz: R37 4330 Hz: R37 5500 Hz: R37 7000 Hz: R37 | N70: R7 | P70: R50 | Q70: R50 | S70: R51, R57, R94
A71: 1 | B71: Resistor | C71: 27 kΩ | D71: 10 | E71: 10 | F71: 0204/0207 | G71: MFR-12FTF52-27K | H71: Mouser | I71: 603-MFR-12FTF52-27K | J71: 0.06 | K71: 0.6 | M71: 120 Hz: R38 150 Hz: R38 190 Hz: R38 240 Hz: R38 310 Hz: R38 390 Hz: R38 | R71: R4, R50 | S71: R9, R10
A72: 1 | B72: Resistor | C72: 30 kΩ | D72: 1 | F72: 0204/0207 | G72: MFR-12FTF52-30K | H72: Mouser | I72: 603-MFR-12FTF52-30K | J72: 0.119 | K72: 0.119 | T72: R41
A73: 1 | B73: Resistor | C73: 33 kΩ | D73: 30 | E73: 10 | F73: 0204/0207 | G73: MFR-12FTF52-33K | H73: Mouser | I73: 603-MFR-12FTF52-33K | J73: 0.06 | K73: 1.8 | L73: R25 | M73: 120 Hz: R37 150 Hz: R37 190 Hz: R37 240 Hz: R37 310 Hz: R37 390 Hz: R37 | N73: R13 | O73: R13, R43 | P73: R17 | Q73: R17 | T73: R13
A74: 1 | B74: Resistor | C74: 36 kΩ | D74: 4 | F74: 0204/0207 | G74: MFR-12FTF52-36K | H74: Mouser | I74: 603-MFR-12FTF52-36K | J74: 0.119 | K74: 0.476 | P74: R30 | Q74: R30 | R74: R31, R32
A75: 1 | B75: Resistor | C75: 39 kΩ | D75: 1 | F75: 0204/0207 | G75: MFR-12FTF52-39K | H75: Mouser | I75: 603-MFR-12FTF52-39K | J75: 0.119 | K75: 0.119 | S75: R65
A76: 1 | B76: Resistor | C76: 47 kΩ | D76: 79 | E76: 100 | F76: 0204/0207 | G76: MFR-12FTF52-47K | H76: Mouser | I76: 603-MFR-12FTF52-47K | J76: 0.021 | K76: 2.1 | L76: R35, R45 | N76: R1, R5, R6, R8, R9, R31, R35, R36 | O76: R1, R5, R6, R7, R8, R9, R31, R35, R36, R37, R38, R39 | P76: R19, R47, R56 | Q76: R19, R47, R56 | R76: R72, R74 | S76: R3, R4, R5, R6, R7, R8, R82 | T76: R10, R31, R32, R33, R37, R45, R51, R52
A77: 1 | B77: Resistor | C77: 56 kΩ | D77: 4 | F77: 0204/0207 | G77: MFR-12FTF52-56K | H77: Mouser | I77: 603-MFR-12FTF52-56K | J77: 0.119 | K77: 0.476 | P77: R14 | Q77: R14 | T77: R12, R17
A78: 1 | B78: Resistor | C78: 62 kΩ | D78: 2 | F78: 0204/0207 | G78: MFR-12FTF52-62K | H78: Mouser | I78: 603-MFR-12FTF52-62K | J78: 0.119 | K78: 0.238 | P78: R65 | Q78: R65
A79: 1 | B79: Resistor | C79: 75 kΩ | D79: 3 | F79: 0204/0207 | G79: MFR-12FTF52-75K | H79: Mouser | I79: 603-MFR-12FTF52-75K | J79: 0.119 | K79: 0.357 | S79: R40 | U79: R5, R9
A80: 1 | B80: Resistor | C80: 91 kΩ | D80: 2 | F80: 0204/0207 | G80: MFR-12FTF52-91K | H80: Mouser | I80: 603-MFR-12FTF52-91K | J80: 0.119 | K80: 0.238 | T80: R16, R27
A81: 1 | B81: Resistor | C81: 100 kΩ | D81: 137 | E81: 100 | F81: 0204/0207 | G81: MFR-12FTF52-100K | H81: Mouser | I81: 603-MFR-12FTF52-100K | J81: 0.021 | K81: 2.877 | L81: R56, R66 | N81: R10, R14, R15, R16, R17 | O81: R10, R14, R15, R16, R17, R25, R26, R40, R44, R45, R46, R47 | P81: R1, R2, R5, R16, R18, R21, R22, R23, R55, R61, R62, R63, R64, R80 | Q81: R1, R2, R5, R16, R18, R21, R22, R23, R55, R61, R62, R63, R64, R80 | R81: R6, R7, R8, R9, R10, R20, R26, R27, R28, R29, R30, R38, R39, R40, R41, R42, R43, R52, R53, R68, R69, R70 | S81: R11, R12, R13, R14, R15, R16, R23, R24, R25, R26, R27, R35, R36, R38, R41, R42, R66, R68, R69, R70, R79, R80 | T81: R1, R2, R3, R8, R19, R26, R28, R29, R30, R36, R44, R48
A82: 1 | B82: Resistor | C82: 120 kΩ | D82: 1 | F82: 0204/0207 | G82: MFR-12FTF52-120K | H82: Mouser | I82: 603-MFR-12FTF52-120K | J82: 0.119 | K82: 0.119 | T82: R18
A83: 1 | B83: Resistor | C83: 150 kΩ | D83: 7 | E83: 10 | F83: 0204/0207 | G83: MFR-12FTF52-150K | H83: Mouser | I83: 603-MFR-12FTF52-150K | J83: 0.06 | K83: 0.6 | P83: R4, R20, R31 | Q83: R4, R20, R31 | T83: R14
A84: 1 | B84: Resistor | C84: 180 kΩ | D84: 2 | F84: 0204/0207 | G84: MFR-12FTF52-180K | H84: Mouser | I84: 603-MFR-12FTF52-180K | J84: 0.119 | K84: 0.238 | S84: R19, R20
A85: 1 | B85: Resistor | C85: 200 kΩ | D85: 13 | E85: 10 | F85: 0204/0207 | G85: MFR-12FTF52-200K | H85: Mouser | I85: 603-MFR-12FTF52-200K | J85: 0.06 | K85: =IF(D85>=E85,D85*J85,E85*J85) -> 0.78 | N85: R4, R18, R19, R34 | O85: R4, R18, R19, R34, R48, R49 | S85: R17, R18 | T85: R4
A86: 1 | B86: Resistor | C86: 220 kΩ | D86: 12 | E86: 10 | F86: 0204/0207 | G86: MFR-12FTF52-220K | H86: Mouser | I86: 603-MFR-12FTF52-220K | J86: 0.06 | K86: 0.72 | P86: R12, R32, R54 | Q86: R12, R32, R54, R66, R67, R68 | S86: R74 | T86: R6, R47
A87: 1 | B87: Resistor | C87: 330 kΩ | D87: 3 | F87: 0204/0207 | G87: MFR-12FTF52-330K | H87: Mouser | I87: 603-MFR-12FTF52-330K | J87: 0.119 | K87: 0.357 | P87: R15 | Q87: R15 | R87: R51
A88: 1 | B88: Resistor | C88: 390 kΩ | D88: 2 | F88: 0204/0207 | G88: MFR-12FTF52-390K | H88: Mouser | I88: 603-MFR-12FTF52-390K | J88: 0.119 | K88: 0.238 | P88: R13 | Q88: R13
A89: 1 | B89: Resistor | C89: 470 kΩ | D89: 3 | F89: 0204/0207 | G89: MFR-12FTF52-470K | H89: Mouser | I89: 603-MFR-12FTF52-470K | J89: 0.119 | K89: 0.357 | P89: R53 | Q89: R53 | T89: R24
A90: 1 | B90: Resistor | C90: 820 kΩ | D90: 2 | F90: 0204/0207 | G90: MFR-12FTF52-820K | H90: Mouser | I90: 603-MFR-12FTF52-820K | J90: 0.119 | K90: 0.238 | P90: R24 | Q90: R24
A91: 1 | B91: Resistor | C91: 1 MΩ | D91: 35 | E91: 100 | F91: 0204/0207 | G91: MFR-12FTF52-1M | H91: Mouser | I91: 603-MFR-12FTF52-1M | J91: 0.021 | K91: 2.1 | N91: R2, R32 | O91: R2, R32 | P91: R25, R26, R38, R39, R45, R48, R49, R51, R52 | Q91: R25, R26, R38, R39, R45, R48, R49, R51, R52 | R91: R54, R55, R56, R57 | S91: R43, R44, R71, R72, R78, R83 | T91: R5, R7, R11
A92: 1 | B92: Resistor | C92: 1.5 MΩ | D92: 4 | F92: 0204/0207 | G92: MFR-12FTF52-1M5 | H92: Mouser | I92: 603-MFR-12FTF52-1M5 | J92: 0.179 | K92: 0.716 | P92: R10, R79 | Q92: R10, R79
A93: 1 | B93: Resistor | C93: 2.2 MΩ, 5% | D93: 2 | F93: 0204/0207 | G93: MFR-12FTF52-2M2 | H93: Mouser | I93: 603-MFR-12FTF52-2M2 | J93: 0.179 | K93: 0.358 | R93: R37 | T93: R40
A94: 1 | B94: Resistor | C94: 3.3 MΩ, 5% | D94: 1 | F94: 0204/0207 | G94: MFR-12FTF52-3M3 | H94: Mouser | I94: 603-MFR-12FTF52-3M3 | J94: 0.179 | K94: 0.179 | T94: R35
A95: 1 | B95: Resistor | C95: 4.7 MΩ, 5% | D95: 18 | E95: 10 | F95: 0204/0207 | G95: MFR-12FTF52-4M7 | H95: Mouser | I95: 603-MFR-12FTF52-4M7 | J95: 0.111 | K95: 1.998 | L95: R36
A96: 1 | B96: Resistor | C96: 6.8 MΩ | D96: 2 | F96: 0204/0207 | G96: MFR-12FTF52-6M8 | H96: Mouser | I96: 603-MFR-12FTF52-6M8 | J96: 0.136 | K96: 0.272 | P96: R3 | Q96: R3
A97: 1 | B97: Resistor-F | C97: 196 Ω | D97: 2 | F97: 0204/0207 | G97: MFR-25FBF52-196R | H97: Mouser | I97: 603-MFR-25FBF52-196R | J97: 0.102 | K97: 0.204 | M97: 7000 Hz: R10, R22
A98: 1 | B98: Resistor-F | C98: 237 Ω | D98: 2 | F98: 0204/0207 | G98: MFR-25FBF52-237R | H98: Mouser | I98: 603-MFR-25FBF52-237R | J98: 0.102 | K98: 0.204 | M98: 7000 Hz: R7, R19
A99: 1 | B99: Resistor-F | C99: 249 Ω | D99: 4 | F99: 0204/0207 | G99: MFR-25FBF52-249R | H99: Mouser | I99: 603-MFR-25FBF52-249R | J99: 0.102 | K99: 0.408 | M99: 1660 Hz: R10, R22 5500 Hz: R10, R22
A100: 1 | B100: Resistor-F | C100: 287 Ω | D100: 2 | F100: 0204/0207 | G100: MFR-25FBF52-287R | H100: Mouser | I100: 603-MFR-25FBF52-287R | J100: 0.102 | K100: 0.204 | M100: 7000 Hz: R4, R16
A101: 1 | B101: Resistor-F | C101: 301 Ω | D101: 6 | E101: 10 | F101: 0204/0207 | G101: MFR-25FBF52-301R | H101: Mouser | I101: 603-MFR-25FBF52-301R | J101: 0.054 | K101: 0.54 | M101: 1660 Hz: R7, R19 5500 Hz: R7, R19 7000 Hz: R1, R13
A102: 1 | B102: Resistor-F | C102: 316 Ω | D102: 4 | F102: 0204/0207 | G102: MFR-25FBF52-316R | H102: Mouser | I102: 603-MFR-25FBF52-316R | J102: 0.102 | K102: 0.408 | M102: 1310 Hz: R10, R22 4330 Hz: R10, R22
A103: 1 | B103: Resistor-F | C103: 348 Ω | D103: 2 | F103: 0204/0207 | G103: MFR-25FBF52-348R | H103: Mouser | I103: 603-MFR-25FBF52-348R | J103: 0.102 | K103: 0.204 | M103: 390 Hz: R10, R22
A104: 1 | B104: Resistor-F | C104: 365 Ω | D104: 4 | F104: 0204/0207 | G104: MFR-25FBF52-365R | H104: Mouser | I104: 603-MFR-25FBF52-365R | J104: 0.102 | K104: 0.408 | M104: 1660 Hz: R4, R16 5500 Hz: R4, R16
A105: 1 | B105: Resistor-F | C105: 383 Ω | D105: 8 | E105: 10 | F105: 0204/0207 | G105: MFR-25FBF52-383R | H105: Mouser | I105: 603-MFR-25FBF52-383R | J105: 0.054 | K105: 0.54 | M105: 1310 Hz: R7, R19 1660 Hz: R1, R13 4330 Hz: R7, R19 5500 Hz: R1, R13
A106: 1 | B106: Resistor-F | C106: 402 Ω | D106: 4 | F106: 0204/0207 | G106: MFR-25FBF52-402R | H106: Mouser | I106: 603-MFR-25FBF52-402R | J106: 0.102 | K106: 0.408 | M106: 1030 Hz: R10, R22 3410 Hz: R10, R22
A107: 1 | B107: Resistor-F | C107: 422 Ω | D107: 2 | F107: 0204/0207 | G107: MFR-25FBF52-422R | H107: Mouser | I107: 603-MFR-25FBF52-422R | J107: 0.102 | K107: 0.204 | M107: 390 Hz: R7, R19
A108: 1 | B108: Resistor-F | C108: 442 Ω | D108: 2 | F108: 0204/0207 | G108: MFR-25FBF52-442R | H108: Mouser | I108: 603-MFR-25FBF52-442R | J108: 0.102 | K108: 0.204 | M108: 310 Hz: R10, R22
A109: 1 | B109: Resistor-F | C109: 464 Ω | D109: 4 | F109: 0204/0207 | G109: MFR-25FBF52-464R | H109: Mouser | I109: 603-MFR-25FBF52-464R | J109: 0.102 | K109: 0.408 | M109: 1310 Hz: R4, R16 4330 Hz: R4, R16
A110: 1 | B110: Resistor-F | C110: 487 Ω | D110: 8 | E110: 10 | F110: 0204/0207 | G110: MFR-25FBF52-487R | H110: Mouser | I110: 603-MFR-25FBF52-487R | J110: 0.054 | K110: 0.54 | M110: 1030 Hz: R7, R19 1310 Hz: R1, R13 3410 Hz: R7, R19 4330 Hz: R1, R13
A111: 1 | B111: Resistor-F | C111: 511 Ω | D111: 6 | E111: 10 | F111: 0204/0207 | G111: MFR-25FBF52-511R | H111: Mouser | I111: 603-MFR-25FBF52-511R | J111: 0.054 | K111: 0.54 | M111: 390 Hz: R4, R16 810 Hz: R10, R22 2680 Hz: R10, R22
A112: 1 | B112: Resistor-F | C112: 536 Ω | D112: 4 | F112: 0204/0207 | G112: MFR-25FBF52-536R | H112: Mouser | I112: 603-MFR-25FBF52-536R | J112: 0.102 | K112: 0.408 | M112: 310 Hz: R7, R19 390 Hz: R1, R13
A113: 1 | B113: Resistor-F | C113: 562 Ω | D113: 2 | F113: 0204/0207 | G113: MFR-25FBF52-562R | H113: Mouser | I113: 603-MFR-25FBF52-562R | J113: 0.102 | K113: 0.204 | M113: 240 Hz: R10, R22
A114: 1 | B114: Resistor-F | C114: 590 Ω | D114: 4 | F114: 0204/0207 | G114: MFR-25FBF52-590R | H114: Mouser | I114: 603-MFR-25FBF52-590R | J114: 0.102 | K114: 0.408 | M114: 1030 Hz: R4, R16 3410 Hz: R4, R16
A115: 1 | B115: Resistor-F | C115: 619 Ω | D115: 8 | E115: 10 | F115: 0204/0207 | G115: MFR-25FBF52-619R | H115: Mouser | I115: 603-MFR-25FBF52-619R | J115: 0.054 | K115: 0.54 | M115: 810 Hz: R7, R19 1030 Hz: R1, R13 2680 Hz: R7, R19 3410 Hz: R1, R13
A116: 1 | B116: Resistor-F | C116: 649 Ω | D116: 6 | E116: 10 | F116: 0204/0207 | G116: MFR-25FBF52-649R | H116: Mouser | I116: 603-MFR-25FBF52-649R | J116: 0.054 | K116: 0.54 | M116: 310 Hz: R4, R16 640 Hz: R10, R22 2110 Hz: R10, R22
A117: 1 | B117: Resistor-F | C117: 681 Ω | D117: 4 | F117: 0204/0207 | G117: MFR-25FBF52-681R | H117: Mouser | I117: 603-MFR-25FBF52-681R | J117: 0.102 | K117: 0.408 | M117: 240 Hz: R7, R19 310 Hz: R1, R13
A118: 1 | B118: Resistor-F | C118: 715 Ω | D118: 2 | F118: 0204/0207 | G118: MFR-25FBF52-715R | H118: Mouser | I118: 603-MFR-25FBF52-715R | J118: 0.102 | K118: 0.204 | M118: 190 Hz: R10, R22
A119: 1 | B119: Resistor-F | C119: 750 Ω | D119: 4 | F119: 0204/0207 | G119: MFR-25FBF52-750R | H119: Mouser | I119: 603-MFR-25FBF52-750R | J119: 0.102 | K119: 0.408 | M119: 810 Hz: R4, R16 2680 Hz: R4, R16
A120: 1 | B120: Resistor-F | C120: 787 Ω | D120: 8 | E120: 10 | F120: 0204/0207 | G120: MFR-25FRF52-787R | H120: Mouser | I120: 603-MFR-25FRF52-787R | J120: 0.054 | K120: 0.54 | M120: 640 Hz: R7, R19 810 Hz: R1, R13 2110 Hz: R7, R19 2680 Hz: R1, R13
A121: 1 | B121: Resistor-F | C121: 825 Ω | D121: 4 | F121: 0204/0207 | G121: MFR-25FBF52-825R | H121: Mouser | I121: 603-MFR-25FBF52-825R | J121: 0.102 | K121: 0.408 | M121: 240 Hz: R4, R16 500 Hz: R10, R22
A122: 1 | B122: Resistor-F | C122: 866 Ω | D122: 4 | F122: 0204/0207 | G122: MFR-25FBF52-866R | H122: Mouser | I122: 603-MFR-25FBF52-866R | J122: 0.102 | K122: 0.408 | M122: 190 Hz: R7, R19 240 Hz: R1, R13
A123: 1 | B123: Resistor-F | C123: 909 Ω | D123: 2 | F123: 0204/0207 | G123: MFR-25FBF52-909R | H123: Mouser | I123: 603-MFR-25FBF52-909R | J123: 0.102 | K123: 0.204 | M123: 150 Hz: R10, R22
A124: 1 | B124: Resistor-F | C124: 953 Ω | D124: 4 | F124: 0204/0207 | G124: MFR-25FBF52-953R | H124: Mouser | I124: 603-MFR-25FBF52-953R | J124: 0.102 | K124: 0.408 | M124: 640 Hz: R4, R16 2110 Hz: R4, R16
A125: 1 | B125: Resistor-F | C125: 1 kΩ | D125: 6 | E125: 10 | F125: 0204/0207 | G125: MFR-25FBF52-1K | H125: Mouser | I125: 603-MFR-25FBF52-1K | J125: 0.054 | K125: 0.54 | M125: 500 Hz: R7, R19 640 Hz: R1, R13 2110 Hz: R1, R13
A126: 1 | B126: Resistor-F | C126: 1.05 kΩ | D126: 2 | F126: 0204/0207 | G126: MFR-25FBF52-1K05 | H126: Mouser | I126: 603-MFR-25FBF52-1K05 | J126: 0.102 | K126: 0.204 | M126: 190 Hz: R4, R16
A127: 1 | B127: Resistor-F | C127: 1.1 kΩ | D127: 4 | F127: 0204/0207 | G127: MFR-25FBF52-1K1 | H127: Mouser | I127: 603-MFR-25FBF52-1K1 | J127: 0.102 | K127: 0.408 | M127: 150 Hz: R7, R19 190 Hz: R1, R13
A128: 1 | B128: Resistor-F | C128: 1.15 kΩ | D128: 2 | F128: 0204/0207 | G128: MFR-25FBF52-1K15 | H128: Mouser | I128: 603-MFR-25FBF52-1K15 | J128: 0.102 | K128: 0.204 | M128: 120 Hz: R10, R22
A129: 1 | B129: Resistor-F | C129: 1.21 kΩ | D129: 2 | F129: 0204/0207 | G129: MFR-25FBF52-1K21 | H129: Mouser | I129: 603-MFR-25FBF52-1K21 | J129: 0.102 | K129: 0.204 | M129: 500 Hz: R4, R16
A130: 1 | B130: Resistor-F | C130: 1.27 kΩ | D130: 2 | F130: 0204/0207 | G130: MFR-25FBF52-1K27 | H130: Mouser | I130: 603-MFR-25FBF52-1K27 | J130: 0.102 | K130: 0.204 | M130: 500 Hz: R1, R13
A131: 1 | B131: Resistor-F | C131: 1.33 kΩ | D131: 2 | F131: 0204/0207 | G131: MFR-25FBF52-1K33 | H131: Mouser | I131: 603-MFR-25FBF52-1K33 | J131: 0.102 | K131: 0.204 | M131: 150 Hz: R4, R16
A132: 1 | B132: Resistor-F | C132: 1.4 kΩ | D132: 4 | F132: 0204/0207 | G132: MFR-25FBF52-1K4 | H132: Mouser | I132: 603-MFR-25FBF52-1K4 | J132: 0.102 | K132: 0.408 | M132: 120 Hz: R7, R19 150 Hz: R1, R13
A133: 1 | B133: Resistor-F | C133: 1.69 kΩ | D133: 2 | F133: 0204/0207 | G133: MFR-25FBF52-1K69 | H133: Mouser | I133: 603-MFR-25FBF52-1K69 | J133: 0.102 | K133: 0.204 | M133: 120 Hz: R4, R16
A134: 1 | B134: Resistor-F | C134: 1.78 kΩ | D134: 2 | F134: 0204/0207 | G134: MFR-25FBF52-1K78 | H134: Mouser | I134: 603-MFR-25FBF52-1K78 | J134: 0.102 | K134: 0.204 | M134: 120 Hz: R1, R13
A135: 1 | B135: Resistor-F | C135: 6.81 kΩ | D135: 2 | F135: 0204/0207 | G135: MFR-25FBF52-6K81 | H135: Mouser | I135: 603-MFR-25FBF52-6K81 | J135: 0.102 | K135: 0.204 | M135: 7000 Hz: R11, R23
A136: 1 | B136: Resistor-F | C136: 8.66 kΩ | D136: 8 | E136: 10 | F136: 0204/0207 | G136: MFR-25FBF52-8K66 | H136: Mouser | I136: 603-MFR-25FBF52-8K66 | J136: 0.054 | K136: 0.54 | M136: 1660 Hz: R11, R23 5500 Hz: R11, R23 7000 Hz: R5, R17 7000 Hz: R8, R20
A137: 1 | B137: Resistor-F | C137: 9.09 kΩ | D137: 2 | F137: 0204/0207 | G137: MFR-25FBF52-9K09 | H137: Mouser | I137: 603-MFR-25FBF52-9K09 | J137: 0.102 | K137: 0.204 | M137: 7000 Hz: R2, R14
A138: 1 | B138: Resistor-F | C138: 11 kΩ | D138: 12 | E138: 10 | F138: 0204/0207 | G138: MFR-25FBF52-11K | H138: Mouser | I138: 603-MFR-25FBF52-11K | J138: 0.054 | K138: 0.648 | M138: 1310 Hz: R11, R23 1660 Hz: R5, R17 1660 Hz: R8, R20 4330 Hz: R11, R23 5500 Hz: R5, R17 5500 Hz: R8, R20
A139: 1 | B139: Resistor-F | C139: 11.5 kΩ | D139: 4 | F139: 0204/0207 | G139: MFR-25FBF52-11K5 | H139: Mouser | I139: 603-MFR-25FBF52-11K5 | J139: 0.102 | K139: 0.408 | M139: 1660 Hz: R2, R14 5500 Hz: R2, R14
A140: 1 | B140: Resistor-F | C140: 12.1 kΩ | D140: 2 | F140: 0204/0207 | G140: MFR-25FBF52-12K1 | H140: Mouser | I140: 603-MFR-25FBF52-12K1 | J140: 0.102 | K140: 0.204 | M140: 390 Hz: R11, R23
A141: 1 | B141: Resistor-F | C141: 14 kΩ | D141: 12 | E141: 10 | F141: 0204/0207 | G141: MFR-25FBF52-14K | H141: Mouser | I141: 603-MFR-25FBF52-14K | J141: 0.054 | K141: 0.648 | M141: 1030 Hz: R11, R23 1310 Hz: R5, R17 1310 Hz: R8, R20 3410 Hz: R11, R23 4330 Hz: R5, R17 4330 Hz: R8, R20
A142: 1 | B142: Resistor-F | C142: 14.7 kΩ | D142: 4 | F142: 0204/0207 | G142: MFR-25FBF52-14K7 | H142: Mouser | I142: 603-MFR-25FBF52-14K7 | J142: 0.102 | K142: 0.408 | M142: 1310 Hz: R2, R14 4330 Hz: R2, R14
A143: 1 | B143: Resistor-F | C143: 15.4 kΩ | D143: 6 | E143: 10 | F143: 0204/0207 | G143: MFR-25FBF52-15K4 | H143: Mouser | I143: 603-MFR-25FBF52-15K4 | J143: 0.054 | K143: 0.54 | M143: 310 Hz: R11, R23 390 Hz: R5, R17 390 Hz: R8, R20
A144: 1 | B144: Resistor-F | C144: 16.2 kΩ | D144: 2 | F144: 0204/0207 | G144: MFR-25FBF52-16K2 | H144: Mouser | I144: 603-MFR-25FBF52-16K2 | J144: 0.102 | K144: 0.204 | M144: 390 Hz: R2, R14
A145: 1 | B145: Resistor-F | C145: 17.8 kΩ | D145: 14 | E145: 10 | F145: 0204/0207 | G145: MFR-25FBF52-17K8 | H145: Mouser | I145: 603-MFR-25FBF52-17K8 | J145: 0.054 | K145: 0.756 | M145: 810 Hz: R11, R23 1030 Hz: R5, R17 1030 Hz: R8, R20 2680 Hz: R11, R23 3410 Hz: R5, R17 3410 Hz: R8, R20 7000 Hz: R6, R18
A146: 1 | B146: Resistor-F | C146: 18.7 kΩ | D146: 6 | E146: 10 | F146: 0204/0207 | G146: MFR-25FBF52-18K7 | H146: Mouser | I146: 603-MFR-25FBF52-18K7 | J146: 0.054 | K146: 0.54 | M146: 1030 Hz: R2, R14 3410 Hz: R2, R14 7000 Hz: R3, R15
A147: 1 | B147: Resistor-F | C147: 19.6 kΩ | D147: 6 | E147: 10 | F147: 0204/0207 | G147: MFR-25FBF52-19K6 | H147: Mouser | I147: 603-MFR-25FBF52-19K6 | J147: 0.054 | K147: 0.54 | M147: 240 Hz: R11, R23 310 Hz: R5, R17 310 Hz: R8, R20
A148: 1 | B148: Resistor-F | C148: 20.5 kΩ | D148: 2 | F148: 0204/0207 | G148: MFR-25FBF52-20K5 | H148: Mouser | I148: 603-MFR-25FBF52-20K5 | J148: 0.102 | K148: 0.204 | M148: 310 Hz: R2, R14
A149: 1 | B149: Resistor-F | C149: 22.6 kΩ | D149: 18 | E149: 10 | F149: 0204/0207 | G149: MFR-25FBF52-22K6 | H149: Mouser | I149: 603-MFR-25FBF52-22K6 | J149: 0.054 | K149: =IF(D149>=E149,D149*J149,E149*J149) -> 0.972 | M149: 640 Hz: R11, R23 810 Hz: R5, R17 810 Hz: R8, R20 1660 Hz: R6, R18 2110 Hz: R11, R23 2680 Hz: R5, R17 2680 Hz: R8, R20 5500 Hz: R6, R18 7000 Hz: R12, R24
A150: 1 | B150: Resistor-F | C150: 23.7 kΩ | D150: 8 | E150: 10 | F150: 0204/0207 | G150: MFR-25FBF52-23K7 | H150: Mouser | I150: 603-MFR-25FBF52-23K7 | J150: 0.054 | K150: 0.54 | M150: 810 Hz: R2, R14 1660 Hz: R3, R15 2680 Hz: R2, R14 5500 Hz: R3, R15
A151: 1 | B151: Resistor-F | C151: 24.9 kΩ | D151: 6 | E151: 10 | F151: 0204/0207 | G151: MFR-25FBF52-24K9 | H151: Mouser | I151: 603-MFR-25FBF52-24K9 | J151: 0.054 | K151: 0.54 | M151: 190 Hz: R11, R23 240 Hz: R5, R17 240 Hz: R8, R20
A152: 1 | B152: Resistor-F | C152: 26.1 kΩ | D152: 2 | F152: 0204/0207 | G152: MFR-25FBF52-26K1 | H152: Mouser | I152: 603-MFR-25FBF52-26K1 | J152: 0.102 | K152: 0.204 | M152: 240 Hz: R2, R14
A153: 1 | B153: Resistor-F | C153: 28.7 kΩ | D153: 20 | E153: 10 | F153: 0204/0207 | G153: MFR-25FBF52-28K7 | H153: Mouser | I153: 603-MFR-25FBF52-28K7 | J153: 0.054 | K153: 1.08 | M153: 500 Hz: R11, R23 640 Hz: R5, R17 640 Hz: R8, R20 1310 Hz: R6, R18 1660 Hz: R12, R24 2110 Hz: R5, R17 2110 Hz: R8, R20 4330 Hz: R6, R18 5500 Hz: R12, R24 7000 Hz: R9, R21
A154: 1 | B154: Resistor-F | C154: 30.1 kΩ | D154: 8 | E154: 10 | F154: 0204/0207 | G154: MFR-25FBF52-30K1 | H154: Mouser | I154: 603-MFR-25FBF52-30K1 | J154: 0.054 | K154: 0.54 | M154: 640 Hz: R2, R14 1310 Hz: R3, R15 2110 Hz: R2, R14 4330 Hz: R3, R15
A155: 1 | B155: Resistor-F | C155: 31.6 kΩ | D155: 8 | E155: 10 | F155: 0204/0207 | G155: MFR-25FBF52-31K6 | H155: Mouser | I155: 603-MFR-25FBF52-31K6 | J155: 0.054 | K155: 0.54 | M155: 150 Hz: R11, R23 190 Hz: R5, R17 190 Hz: R8, R20 390 Hz: R6, R18
A156: 1 | B156: Resistor-F | C156: 33.2 kΩ | D156: 4 | F156: 0204/0207 | G156: MFR-25FBF52-33K2 | H156: Mouser | I156: 603-MFR-25FBF52-33K2 | J156: 0.102 | K156: 0.408 | M156: 190 Hz: R2, R14 390 Hz: R3, R15
A157: 1 | B157: Resistor-F | C157: 36.5 kΩ | D157: 16 | E157: 10 | F157: 0204/0207 | G157: MFR-25FBF52-36K5 | H157: Mouser | I157: 603-MFR-25FBF52-36K5 | J157: 0.054 | K157: 0.864 | M157: 500 Hz: R5, R17 500 Hz: R8, R20 1030 Hz: R6, R18 1310 Hz: R12, R24 1660 Hz: R9, R21 3410 Hz: R6, R18 4330 Hz: R12, R24 5500 Hz: R9, R21
A158: 1 | B158: Resistor-F | C158: 38.3 kΩ | D158: 6 | E158: 10 | F158: 0204/0207 | G158: MFR-25FBF52-38K3 | H158: Mouser | I158: 603-MFR-25FBF52-38K3 | J158: 0.054 | K158: 0.54 | M158: 500 Hz: R2, R14 1030 Hz: R3, R15 3410 Hz: R3, R15
A159: 1 | B159: Resistor-F | C159: 40.2 kΩ | D159: 10 | E159: 10 | F159: 0204/0207 | G159: MFR-25FBF52-40K2 | H159: Mouser | I159: 603-MFR-25FBF52-40K2 | J159: 0.054 | K159: 0.54 | M159: 120 Hz: R11, R23 150 Hz: R5, R17 150 Hz: R8, R20 310 Hz: R6, R18 390 Hz: R12, R24
A160: 1 | B160: Resistor-F | C160: 42.2 kΩ | D160: 4 | F160: 0204/0207 | G160: MFR-25FBF52-42K2 | H160: Mouser | I160: 603-MFR-25FBF52-42K2 | J160: 0.102 | K160: 0.408 | M160: 150 Hz: R2, R14 310 Hz: R3, R15
A161: 1 | B161: Resistor-F | C161: 46.4 kΩ | D161: 12 | E161: 10 | F161: 0204/0207 | G161: MFR-25FBF52-46K4 | H161: Mouser | I161: 603-MFR-25FBF52-46K4 | J161: 0.054 | K161: 0.648 | M161: 810 Hz: R6, R18 1030 Hz: R12, R24 1310 Hz: R9, R21 2680 Hz: R6, R18 3410 Hz: R12, R24 4330 Hz: R9, R21
A162: 1 | B162: Resistor-F | C162: 48.7 kΩ | D162: 4 | F162: 0204/0207 | G162: MFR-25FBF52-48K7 | H162: Mouser | I162: 603-MFR-25FBF52-48K7 | J162: 0.102 | K162: 0.408 | M162: 810 Hz: R3, R15 2680 Hz: R3, R15
A163: 1 | B163: Resistor-F | C163: 51.1 kΩ | D163: 10 | E163: 10 | F163: 0204/0207 | G163: MFR-25FBF52-51K1 | H163: Mouser | I163: 603-MFR-25FBF52-51K1 | J163: 0.054 | K163: 0.54 | M163: 120 Hz: R5, R17 120 Hz: R8, R20 240 Hz: R6, R18 310 Hz: R12, R24 390 Hz: R9, R21
A164: 1 | B164: Resistor-F | C164: 53.6 kΩ | D164: 4 | F164: 0204/0207 | G164: MFR-25FTE52-53K6 | H164: Mouser | I164: 603-MFR-25FTE52-53K6 | J164: 0.102 | K164: 0.408 | M164: 120 Hz: R2, R14 240 Hz: R3, R15
A165: 1 | B165: Resistor-F | C165: 59 kΩ | D165: 12 | E165: 10 | F165: 0204/0207 | G165: MFR-25FBF52-59K | H165: Mouser | I165: 603-MFR-25FBF52-59K | J165: 0.054 | K165: 0.648 | M165: 640 Hz: R6, R18 810 Hz: R12, R24 1030 Hz: R9, R21 2110 Hz: R6, R18 2680 Hz: R12, R24 3410 Hz: R9, R21
A166: 1 | B166: Resistor-F | C166: 61.9 kΩ | D166: 4 | F166: 0204/0207 | G166: MFR-25FBF52-61K9 | H166: Mouser | I166: 603-MFR-25FBF52-61K9 | J166: 0.102 | K166: 0.408 | M166: 640 Hz: R3, R15 2110 Hz: R3, R15
A167: 1 | B167: Resistor-F | C167: 64.9 kΩ | D167: 6 | E167: 10 | F167: 0204/0207 | G167: MFR-25FBF52-64K9 | H167: Mouser | I167: 603-MFR-25FBF52-64K9 | J167: 0.054 | K167: 0.54 | M167: 190 Hz: R6, R18 240 Hz: R12, R24 310 Hz: R9, R21
A168: 1 | B168: Resistor-F | C168: 68.1 kΩ | D168: 2 | F168: 0204/0207 | G168: MFR-25FBF52-68K1 | H168: Mouser | I168: 603-MFR-25FBF52-68K1 | J168: 0.102 | K168: 0.204 | M168: 190 Hz: R3, R15
A169: 1 | B169: Resistor-F | C169: 75 kΩ | D169: 10 | E169: 10 | F169: 0204/0207 | G169: MFR-25FBF52-75K | H169: Mouser | I169: 603-MFR-25FBF52-75K | J169: 0.054 | K169: 0.54 | M169: 500 Hz: R6, R18 640 Hz: R12, R24 810 Hz: R9, R21 2110 Hz: R12, R24 2680 Hz: R9, R21
A170: 1 | B170: Resistor-F | C170: 78.7 kΩ | D170: 2 | F170: 0204/0207 | G170: MFR-25FRF52-78K7 | H170: Mouser | I170: 603-MFR-25FRF52-78K7 | J170: 0.102 | K170: 0.204 | M170: 500 Hz: R3, R15
A171: 1 | B171: Resistor-F | C171: 82.5 kΩ | D171: 6 | E171: 10 | F171: 0204/0207 | G171: MFR-25FBF52-82K5 | H171: Mouser | I171: 603-MFR-25FBF52-82K5 | J171: 0.054 | K171: 0.54 | M171: 150 Hz: R6, R18 190 Hz: R12, R24 240 Hz: R9, R21
A172: 1 | B172: Resistor-F | C172: 86.6 kΩ | D172: 2 | F172: 0204/0207 | G172: MFR-25FBF52-86K6 | H172: Mouser | I172: 603-MFR-25FBF52-86K6 | J172: 0.102 | K172: 0.204 | M172: 150 Hz: R3, R15
A173: 1 | B173: Resistor-F | C173: 95.3 kΩ | D173: 6 | E173: 10 | F173: 0204/0207 | G173: MFR-25FBF52-95K3 | H173: Mouser | I173: 603-MFR-25FBF52-95K3 | J173: 0.054 | K173: 0.54 | M173: 500 Hz: R12, R24 640 Hz: R9, R21 2110 Hz: R9, R21
A174: 1 | B174: Resistor-F | C174: 105 kΩ | D174: 6 | E174: 10 | F174: 0204/0207 | G174: MFR-25FBF52-105K | H174: Mouser | I174: 603-MFR-25FBF52-105K | J174: 0.054 | K174: 0.54 | M174: 120 Hz: R6, R18 150 Hz: R12, R24 190 Hz: R9, R21
A175: 1 | B175: Resistor-F | C175: 110 kΩ | D175: 2 | F175: 0204/0207 | G175: MFR-25FBF52-110K | H175: Mouser | I175: 603-MFR-25FBF52-110K | J175: 0.102 | K175: 0.204 | M175: 120 Hz: R3, R15
A176: 1 | B176: Resistor-F | C176: 121 kΩ | D176: 2 | F176: 0204/0207 | G176: MFR-25FBF52-121K | H176: Mouser | I176: 603-MFR-25FBF52-121K | J176: 0.102 | K176: 0.204 | M176: 500 Hz: R9, R21
A177: 1 | B177: Resistor-F | C177: 133 kΩ | D177: 4 | F177: 0204/0207 | G177: MFR-25FBF52-133K | H177: Mouser | I177: 603-MFR-25FBF52-133K | J177: 0.102 | K177: 0.408 | M177: 120 Hz: R12, R24 150 Hz: R9, R21
A178: 1 | B178: Resistor-F | C178: 169 kΩ | D178: 2 | F178: 0204/0207 | G178: MFR-25FBF52-169K | H178: Mouser | I178: 603-MFR-25FBF52-169K | J178: 0.102 | K178: 0.204 | M178: 120 Hz: R9, R21
A179: 4 | B179: Tempco | C179: 2 kΩ, 3300 ppm/°C | D179: 3 | H179: Thonk | I179: tempco | J179: 1.61 | K179: 4.83 | P179: R7 | Q179: R7 | T179: R20
A180: 1 | B180: Ceramic | C180: 22 pF | D180: 17 | E180: 10 | F180: RM2.5 | G180: K220J15C0GF53L2 | H180: Mouser | I180: 594-K220J15C0GF53L2 | J180: 0.271 | K180: 4.607 | N180: C5, C6 | O180: C5, C6, C15, C16 | P180: C9 | Q180: C9 | S180: C1, C2, C3, C4, C5, C6, C11, C12, C14
A181: 1 | B181: Ceramic | C181: 100 pF | D181: 9 | E181: 10 | F181: RM2.5 | G181: K101J15C0GF53L2 | H181: Mouser | I181: 594-K101J15C0GF53L2 | J181: 0.087 | K181: 0.87 | P181: C1, C6, C17 | Q181: C1, C6, C17 | R181: C26, C27 | S181: C19
A182: 1 | B182: Ceramic | C182: 220 pF | D182: 2 | F182: RM2.5/RM5.0 | G182: C315C221M5R5TA | H182: Mouser | I182: 80-C315C221M5R | J182: 0.279 | K182: 0.558 | P182: C16 | Q182: C16
A183: 1 | B183: Ceramic | C183: 470 pF | D183: 2 | E183: 10 | F183: RM2.5/RM5.0 | G183: K471J15C0GF53L2 | H183: Mouser | I183: 594-K471J15C0GF53L2 | J183: 0.105 | K183: 1.05 | P183: C15 | Q183: C15
A184: 2 | B184: Ceramic | C184: 1 nF, 2 kV | D184: 2 | F184: SMD 1808 | G184: C1808C102MGRACAUTO | H184: Mouser | I184: 80-C1808C102MGRAUTO | J184: 1.51 | K184: 3.02 | U184: C2, C3
A185: 1 | B185: Ceramic | C185: 1 nF | D185: 3 | E185: 5 | F185: RM2.5 | G185: R82EC1100AA50K | H185: Mouser | I185: 80-R82EC1100AA50K | J185: 0.21 | K185: 1.05 | S185: C26, C27, C29
A186: 1 | B186: Ceramic | C186: 1.5 nF | D186: 4 | F186: RM2.5 | G186: C315C152K1R5TA | H186: Mouser | I186: 80-C315C152K1R | J186: 0.306 | K186: 1.224 | R186: C22, C23, C24, C25
A187: 1 | B187: Ceramic | C187: 10 nF | D187: 96 | E187: 100 | F187: SMD (1206 or 0805) | G187: 08055A103JAT2A | H187: Mouser | I187: 581-08055A103JAT2A | J187: 0.224 | K187: 22.4 | M187: 2110 Hz: C1, C2, C3, C4, C5, C6, C7, C8, C9, C10, C11, C12, C13, C14, C15, C16 2680 Hz: C1, C2, C3, C4, C5, C6, C7, C8, C9, C10, C11, C12, C13, C14, C15, C16 3410 Hz: C1, C2, C3, C4, C5, C6, C7, C8, C9, C10, C11, C12, C13, C14, C15, C16 4330 Hz: C1, C2, C3, C4, C5, C6, C7, C8, C9, C10, C11, C12, C13, C14, C15, C16 5500 Hz: C1, C2, C3, C4, C5, C6, C7, C8, C9, C10, C11, C12, C13, C14, C15, C16 7000 Hz: C1, C2, C3, C4, C5, C6, C7, C8, C9, C10, C11, C12, C13, C14, C15, C16
A188: 1 | B188: Ceramic | C188: 10 nF | D188: 2 | E188: 10 | F188: RM2.5 | G188: K103K15X7RF53L2 | H188: Mouser | I188: 594-K103K15X7RF53L2 | J188: 0.314 | K188: 3.14 | O188: C19 | Q188: C18
A189: 1 | B189: Ceramic | C189: 33 nF | D189: 96 | E189: 100 | F189: SMD (1206 or 0805) | G189: CGA5F2C0G1H333J085AA | H189: Mouser | I189: 810-CGA5F2C0G1H333J | J189: 0.16 | K189: 16 | M189: 500 Hz: C1, C2, C3, C4, C5, C6, C7, C8, C9, C10, C11, C12, C13, C14, C15, C16 640 Hz: C1, C2, C3, C4, C5, C6, C7, C8, C9, C10, C11, C12, C13, C14, C15, C16 810 Hz: C1, C2, C3, C4, C5, C6, C7, C8, C9, C10, C11, C12, C13, C14, C15, C16 1030 Hz: C1, C2, C3, C4, C5, C6, C7, C8, C9, C10, C11, C12, C13, C14, C15, C16 1310 Hz: C1, C2, C3, C4, C5, C6, C7, C8, C9, C10, C11, C12, C13, C14, C15, C16 1660 Hz: C1, C2, C3, C4, C5, C6, C7, C8, C9, C10, C11, C12, C13, C14, C15, C16
A190: 1 | B190: Ceramic | C190: 100 nF | D190: 415 | E190: 500 | F190: SMD (1206 or 0805) | G190: C1206C104K5RACTU | H190: Mouser | I190: 80-C1206C104K5R | J190: 0.024 | K190: 12 | L190: C18, C19, C20, C21, C23, C24, C25, C26, C27, C28, C29, C30, C31, C32, C33, C34 | N190: C22, C23, C24, C25, C26, C27, C28, C29, C30 | O190: C22, C23, C24, C25, C26, C27, C28, C29, C30, C34, C35, C36, C37, C38, C39, C40 | P190: C2, C22, C23, C26, C27, C28, C29, C32, C33, C34, C35, C38, C39, C42, C43 | Q190: C2, C22, C23, C26, C27, C28, C29, C32, C33, C34, C35, C38, C39, C42, C43 | R190: C4, C5, C6, C7, C8, C9, C10, C11, C12, C13, C14, C15, C16, C17, C18, C19, C20, C21, C30, C31, C34, C35, C38, C39, C40, C41, C42, C43, C44, C45, C47, C48 | S190: C20, C25, C31, C32, C33, C34, C35, C36, C37, C38, C39, C40, C41, C42, C46, C48, C49, C51, C54, C55, C56, C57, C58, C59, C60, C63, C64 | T190: C8, C9, C11, C12, C15, C16, C19, C20, C21, C22, C25 | U190: C8, C9
A191: 1 | B191: Ceramic | C191: 100 nF | D191: 96 | E191: 100 | F191: SMD (1206 or 0805) | G191: GRM31C5C1H104JA01L | H191: Mouser | I191: 81-GRM31C5C1H104JA1L | J191: 0.327 | K191: 32.7 | M191: 120 Hz: C1, C2, C3, C4, C5, C6, C7, C8, C9, C10, C11, C12, C13, C14, C15, C16 150 Hz: C1, C2, C3, C4, C5, C6, C7, C8, C9, C10, C11, C12, C13, C14, C15, C16 190 Hz: C1, C2, C3, C4, C5, C6, C7, C8, C9, C10, C11, C12, C13, C14, C15, C16 240 Hz: C1, C2, C3, C4, C5, C6, C7, C8, C9, C10, C11, C12, C13, C14, C15, C16 310 Hz: C1, C2, C3, C4, C5, C6, C7, C8, C9, C10, C11, C12, C13, C14, C15, C16 390 Hz: C1, C2, C3, C4, C5, C6, C7, C8, C9, C10, C11, C12, C13, C14, C15, C16
A192: 2 | B192: Ceramic | C192: 10 µF, 25 V | D192: 5 | F192: SMD 1812 | G192: C4532X7R1E106M250KA | H192: Mouser | I192: 810-C4532X7R1E106M | J192: 1.18 | K192: 5.9 | U192: C1, C4, C5, C6, C7
A193: 1 | B193: Film | C193: 1 nF | D193: 3 | E193: 5 | F193: RM2.5/RM5.0 | G193: R82EC1100AA50K | H193: Mouser | I193: 80-R82EC1100AA50K | J193: 0.21 | K193: 1.05 | P193: C14 | Q193: C14 | T193: C6
A194: 1 | B194: Film | C194: 2.2 nF | D194: 2 | E194: 5 | F194: RM2.5/RM5.0 | G194: R82EC1220DQ50J | H194: Mouser | I194: 80-R82EC1220DQ50J | J194: 0.262 | K194: 1.31 | P194: C13 | Q194: C13
A195: 1 | B195: Film | C195: 4.7 nF | D195: 3 | E195: 5 | F195: RM2.5/RM5.0 | G195: R82EC1470CK50J | H195: Mouser | I195: 80-R82EC1470CK50J | J195: 0.253 | K195: 1.265 | P195: C12 | Q195: C12 | T195: C7
A196: 1 | B196: Film | C196: 10 nF | D196: 8 | E196: 5 | F196: RM2.5/RM5.0 | G196: R82EC2100AA50J | H196: Mouser | I196: 80-R82EC2100AA50J | J196: 0.218 | K196: 1.744 | P196: C11 | Q196: C11 | R196: C1, C2, C3 | S196: C13, C30 | T196: C5
A197: 1 | B197: Film | C197: 22 nF | D197: 2 | E197: 5 | F197: RM2.5/RM5.0 | G197: R82EC2220AA50J | H197: Mouser | I197: 80-R82EC2220AA50J | J197: 0.218 | K197: 1.09 | P197: C10 | Q197: C10
A198: 1 | B198: Film | C198: 47 nF | D198: 2 | E198: 5 | F198: RM2.5/RM5.0 | G198: R82EC2470AA60J | H198: Mouser | I198: 80-R82EC2470AA60J | J198: 0.218 | K198: 1.09 | P198: C5 | Q198: C5
A199: 1 | B199: Film | C199: 100 nF | D199: 11 | E199: 5 | F199: RM2.5/RM5.0 | G199: R82EC3100AA70J | H199: Mouser | I199: 80-R82EC3100AA70J | J199: 0.141 | K199: 1.551 | N199: C1, C11 | O199: C1, C11 | P199: C3, C8 | Q199: C3, C8 | T199: C3, C4, C10
A200: 1 | B200: Film | C200: 220 nF | D200: 44 | E200: 50 | F200: RM2.5/RM5.0 | G200: R82DC3220Z360K | H200: Mouser | I200: 80-82DC3220Z360K | J200: 0.103 | K200: 5.15 | L200: C17, C22 | N200: C7 | O200: C7, C17 | S200: C22, C23, C24, C28 | T200: C1
A201: 1 | B201: Film | C201: 330 nF | D201: 2 | E201: 5 | F201: RM2.5/RM5.0 | G201: R82DC3330AA60K | H201: Mouser | I201: 80-R82DC3330AA60K | J201: 0.262 | K201: 1.31 | S201: C52, C53
A202: 1 | B202: Film | C202: 1 µF | D202: 11 | E202: 10 | F202: RM2.5/RM5.0 | G202: R82DC4100Z360K | H202: Mouser | I202: 80-R82DC4100Z360K | J202: 0.279 | K202: 3.069 | N202: C3, C4, C13, C14 | O202: C3, C4, C13, C14 | P202: C4 | Q202: C4 | S202: C21
A203: 1 | B203: Electrolytic | C203: 2.2 µF/25 V, max. ⌀ 5 mm | D203: 3 | E203: 3 | F203: RM2.0 | G203: Würth 860020672006 | H203: Mouser | I203: 710-860020672006 | J203: 0.1 | K203: 0.3 | P203: C7 | Q203: C7 | T203: C2
... 65 more rows

Sheet Channel (common)
A1: Below list of components is required 18 times
A4: Type | B4: Designator | C4: Identifier | D4: Count | E4: Body type | F4: Suggested product | G4: Distributor | H4: Order # | I4: Individual price | J4: Total price | K4: Remarks
A5: Diode | B5: D1, D2 | C5: 1N4148 | D5: =IF(B5<>"",LEN(B5)-LEN(SUBSTITUTE(B5,",",""))+1,"") -> 2 | E5: DO-35 | F5: 1N4148 | G5: Mouser | H5: 512-1N4148 | I5: 0.018 | J5: =I5*D5 -> 0.036
A6: LED | B6: LED | C6: LED red, 2.4 V, 2 mA | D6: =IF(B6<>"",LEN(B6)-LEN(SUBSTITUTE(B6,",",""))+1,"") -> 1 | E6: 3 mm LED | F6: TLLR4401 | G6: Mouser | H6: 78-TLLR4401 | I6: 0.3 | J6: =I6*D6 -> 0.3
A7: Transistor | B7: T1, T2 | C7: 2N3904 | D7: 2 | E7: TO-92 | F7: 2N3904BU | G7: Mouser | H7: 512-2N3904BU | I7: 0.051 | J7: 0.102
A8: IC | B8: IC3, IC4 | C8: TL074 | D8: 2 | E8: DIL14 | F8: TL074CN | G8: Mouser | H8: 595-TL074CN | I8: 0.468 | J8: 0.936
A9: IC | B9: IC1, IC2 | C9: MC33079 | D9: 2 | E9: DIL14 | F9: MC33079PG | G9: Rochester | H9: MC33079 | I9: 0.62 | J9: 1.24
A10: IC | B10: IC5 | C10: CD4053 | D10: 1 | E10: DIL16 | F10: CD4053BE | G10: Mouser | H10: 595-CD4053BE | I10: 0.372 | J10: 0.372
A11: Ceramic | B11: C18, C19, C20, C21, C23, C24, C25, C26, C27, C28, C29, C30, C31, C32, C33, C34 | C11: 100 nF | D11: 16 | E11: SMD (1206 or 0805) | F11: C1206C104K5RACTU | G11: Mouser | H11: 80-C1206C104K5R | I11: 0.024 | J11: 0.384
A12: Film | B12: C17, C22 | C12: 220 nF | D12: =IF(B12<>"",LEN(B12)-LEN(SUBSTITUTE(B12,",",""))+1,"") -> 2 | E12: RM2.5/RM5.0 | F12: R82DC3220Z360K | G12: Mouser | H12: 80-82DC3220Z360K | I12: 0.103 | J12: 0.206
A13: Electrolytic | B13: C35, C36, C37, C38, C39, C40 | C13: 47 µF/35 V, max. ⌀ 5 mm | D13: 6 | E13: RM2.0 | F13: Würth 860010572005 | G13: Mouser | H13: 710-860010572005 | I13: 0.071 | J13: 0.426
A14: Resistor | B14: R59, R60, R61, R62, R63, R64, R65 | C14: 47 Ω, 250 mW | D14: 7 | E14: 0204/0207 | F14: LR0204F47R | G14: Farnell | H14: 2329945 | I14: 0.0408 | J14: 0.2856
A15: Resistor | B15: R46 | C15: 100 Ω | D15: =IF(B15<>"",LEN(B15)-LEN(SUBSTITUTE(B15,",",""))+1,"") -> 1 | E15: 0204/0207 | F15: LR0204F100R | G15: Farnell | H15: 2329854 | I15: 0.036 | J15: 0.036
A16: Resistor | B16: R26 | C16: 750 Ω | D16: 1 | E16: 0204/0207 | F16: LR0204F750R | G16: Farnell | H16: 2329971 | I16: 0.0353 | J16: =I16*D16 -> 0.0353
A17: Resistor | B17: R43 | C17: 1 kΩ | D17: 1 | E17: 0204/0207 | F17: LR0204F1K0 | G17: Farnell | H17: 2329885 | I17: 0.0771 | J17: 0.0771
A18: Resistor | B18: R58 | C18: 2.2 kΩ | D18: 1 | E18: 0204/0207 | F18: LR0204F2K2 | G18: Farnell | H18: 2329912 | I18: 0.0771 | J18: 0.0771
A19: Resistor | B19: R52, R53 | C19: 3.3 kΩ | D19: =IF(B19<>"",LEN(B19)-LEN(SUBSTITUTE(B19,",",""))+1,"") -> 2 | E19: 0204/0207 | F19: LR0204F3K3 | G19: Farnell | H19: 2329934 | I19: 0.036 | J19: =I19*D19 -> 0.072
A20: Resistor | B20: R42 | C20: 4.7 kΩ | D20: 1 | E20: 0204/0207 | F20: LR0204F4K7 | G20: Farnell | H20: 2329947 | I20: 0.036 | J20: 0.036
A21: Resistor | B21: R49 | C21: 5.1 kΩ | D21: 1 | E21: 0204/0207 | F21: LR0204F5K1 | G21: Farnell | H21: 2329957 | I21: 0.0353 | J21: 0.0353
A22: Resistor | B22: R40, R50 | C22: 8.2 kΩ | D22: 2 | E22: 0204/0207 | F22: LR0204F8K2 | G22: Farnell | H22: 2329981 | I22: 0.036 | J22: 0.072
A23: Resistor | B23: R27, R28, R29, R30, R31, R32, R33, R34, R41, R51, R54 | C23: 10 kΩ | D23: 11 | E23: 0204/0207 | F23: LR0204F10K | G23: Farnell | H23: 2329855 | I23: 0.034 | J23: 0.374
A24: Resistor | B24: R47, R48 | C24: 15 kΩ | D24: 2 | E24: 0204/0207 | F24: LR0204F15K | G24: Farnell | H24: 2329873 | I24: 0.0353 | J24: 0.0706
A25: Resistor | B25: R55 | C25: 20 kΩ | D25: =IF(B25<>"",LEN(B25)-LEN(SUBSTITUTE(B25,",",""))+1,"") -> 1 | E25: 0204/0207 | F25: LR0204F20K | G25: Farnell | H25: 2329897 | I25: 0.0353 | J25: =I25*D25 -> 0.0353
A26: Resistor | B26: R57 | C26: 22 kΩ | D26: 1 | E26: 0204/0207 | F26: LR0204F22K | G26: Farnell | H26: 2329901 | I26: 0.036 | J26: 0.036
A27: Resistor | B27: R44 | C27: 24 kΩ | D27: 1 | E27: 0204/0207 | F27: LR0204F24K | G27: Farnell | H27: 2329904 | I27: 0.036 | J27: 0.036
A28: Resistor | B28: R25 | C28: 33 kΩ | D28: 1 | E28: 0204/0207 | F28: LR0204F33K | G28: Farnell | H28: 2329922 | I28: 0.0353 | J28: =I28*D28 -> 0.0353
A29: Resistor | B29: R35, R45 | C29: 47 kΩ | D29: 2 | E29: 0204/0207 | F29: LR0204F47K | G29: Farnell | H29: 2329944 | I29: 0.027 | J29: 0.054
A30: Resistor | B30: R56, R66 | C30: 100 kΩ | D30: 2 | E30: 0204/0207 | F30: LR0204F100K | G30: Farnell | H30: 2329853 | I30: 0.0265 | J30: 0.053
A31: Resistor | B31: R36 | C31: 4.7 MΩ, 5% | D31: =IF(B31<>"",LEN(B31)-LEN(SUBSTITUTE(B31,",",""))+1,"") -> 1 | E31: 0204/0207 | F31: CFR16J4M7 | G31: Farnell | H31: 2329535 | I31: 0.0529 | J31: 0.0529
A32: Trimmer, multi-turn | B32: TR4, TR5 | C32: 100 kΩ | D32: 2 | F32: T93XA104KT20 | G32: Mouser | H32: 72-T93XA-100K | I32: 1.23 | J32: 2.46
A33: Trimmer | B33: TR1, TR2, TR3 | C33: 25 kΩ | D33: 3 | F33: PT 10 LH 25K | G33: Mouser | H33: 531-PT10H-25K | I33: 0.487 | J33: 1.461
A34: Potentiometer | B34: P1, P2 | C34: 100 kΩ log, Alpha 9 mm, right angled (side adjust) | D34: 2 | F34: RD901F-20-15R1-A100K | G34: Small Bear (US) or Thonk (EU) | H34: 100k-log-single | I34: 1.17 | J34: 2.34
A35: Jack | B35: CV-IN, CV-OUT | C35: 3.5 mm jack | D35: 2 | F35: CL13845G | G35: Farnell | H35: 2766196 | I35: 1.26 | J35: 2.52 | K35: alternative: CL1384
A36: Connector | B36: 2x | C36: 2x2 board-to-board connector, angled, RM2.54 mm | D36: 2 | F36: Würth 61300421021 | G36: Mouser | H36: 710-61300421021 | I36: 0.39 | J36: 0.78
A37: Connector | B37: 1x | C37: 2x8 board-to-board connector, angled, RM2.54 mm | D37: 1 | F37: Würth 61301621021 | G37: Mouser | H37: 710-61301621021 | I37: 0.871 | J37: 0.871
A38: Connector | B38: 1x | C38: 2x8 wire-to-board connector, RM2.54 mm | D38: 1 | F38: Würth 61201623021 | G38: Mouser | H38: 710-61201623021 | I38: 0.65 | J38: 0.65
A39: Connector | B39: 2x | C39: Jumper | D39: 2 | F39: M7582-05 | G39: Mouser | H39: 855-M7582-05 | I39: 0.097 | J39: 0.194
A40: IC Socket | B40: IC1, IC2, IC3, IC4 | C40: 14 pins | D40: =IF(B40<>"",LEN(B40)-LEN(SUBSTITUTE(B40,",",""))+1,"") -> 4 | F40: 110-99-314-41-001000 | G40: Mouser | H40: 575-199314 | I40: 0.493 | J40: =I40*D40 -> 1.972
A41: IC Socket | B41: IC5 | C41: 16 pins | D41: =IF(B41<>"",LEN(B41)-LEN(SUBSTITUTE(B41,",",""))+1,"") -> 1 | F41: 110-99-316-41-001000 | G41: Mouser | H41: 575-199316 | I41: 0.428 | J41: =I41*D41 -> 0.428
A42: Misc | B42: CHOP, CV, SYNTH, FLT | C42: Solder pins, ⌀ 1 mm | D42: =IF(B42<>"",LEN(B42)-LEN(SUBSTITUTE(B42,",",""))+1,"") -> 4 | F42: Vogt 1364A.68 | G42: Conrad | H42: 736018 - 62 | I42: 0.0259 | J42: =I42*D42 -> 0.1036
I44: Sub Total: | J44: =SUM(J5:J42) -> 19.2551
I46: + Capacitors: | J46: =SUM('Channel (frequency)'!O30:O32)/18 -> 3.95
I47: + Resistors: | J47: ='Channel (frequency)'!Q122/18 -> 3.766155556
I49: Grand total: | J49: =SUM(J44:J47) -> 26.97125556

Sheet Channel (frequency)
B2: Channel-dependent components
E4: Resistors (many from the E48 series), 1% tolerance, 125 mW or higher, throughhole, RM7.5 or smaller | T4: SMD (1206 or 0805), ±5% tolerance or better, C0G/NP0 for temperature stability.
E5: R1, R13 | F5: R2, R14 | G5: R3, R15 | H5: R4, R16 | I5: R5, R17 | J5: R6, R18 | K5: R7, R19 | L5: R8, R20 | M5: R9, R21 | N5: R10, R22 | O5: R11, R23 | P5: R12, R24 | Q5: R37 | R5: R38 | S5: R39 | T5: C1, C2, C3, C4, C5, C6, C7, C8, C9, C10, C11, C12, C13, C14, C15, C16
B6: Frequency | C6: 1 | D6: 7000 Hz | E6: 301 Ω | F6: 9.09 kΩ | G6: 18.7 kΩ | H6: 287 Ω | I6: 8.66 kΩ | J6: 17.8 kΩ | K6: 237 Ω | L6: 8.66 kΩ | M6: 28.7 kΩ | N6: 196 Ω | O6: 6.81 kΩ | P6: 22.6 kΩ | Q6: 24 kΩ | R6: 20 kΩ | S6: 6.8 kΩ | T6: 10 nF
C7: =1+C6 -> 2 | D7: 5500 Hz | E7: 383 Ω | F7: 11.5 kΩ | G7: 23.7 kΩ | H7: 365 Ω | I7: 11 kΩ | J7: 22.6 kΩ | K7: 301 Ω | L7: 11 kΩ | M7: 36.5 kΩ | N7: 249 Ω | O7: 8.66 kΩ | P7: 28.7 kΩ | Q7: 24 kΩ | R7: 20 kΩ | S7: 6.8 kΩ | T7: 10 nF
C8: =1+C7 -> 3 | D8: 4330 Hz | E8: 487 Ω | F8: 14.7 kΩ | G8: 30.1 kΩ | H8: 464 Ω | I8: 14 kΩ | J8: 28.7 kΩ | K8: 383 Ω | L8: 14 kΩ | M8: 46.4 kΩ | N8: 316 Ω | O8: 11 kΩ | P8: 36.5 kΩ | Q8: 24 kΩ | R8: 20 kΩ | S8: 6.8 kΩ | T8: 10 nF
C9: 4 | D9: 3410 Hz | E9: 619 Ω | F9: 18.7 kΩ | G9: 38.3 kΩ | H9: 590 Ω | I9: 17.8 kΩ | J9: 36.5 kΩ | K9: 487 Ω | L9: 17.8 kΩ | M9: 59 kΩ | N9: 402 Ω | O9: 14 kΩ | P9: 46.4 kΩ | Q9: 24 kΩ | R9: 20 kΩ | S9: 6.8 kΩ | T9: 10 nF
C10: 5 | D10: 2680 Hz | E10: 787 Ω | F10: 23.7 kΩ | G10: 48.7 kΩ | H10: 750 Ω | I10: 22.6 kΩ | J10: 46.4 kΩ | K10: 619 Ω | L10: 22.6 kΩ | M10: 75 kΩ | N10: 511 Ω | O10: 17.8 kΩ | P10: 59 kΩ | Q10: 24 kΩ | R10: 20 kΩ | S10: 6.8 kΩ | T10: 10 nF
C11: 6 | D11: 2110 Hz | E11: 1 kΩ | F11: 30.1 kΩ | G11: 61.9 kΩ | H11: 953 Ω | I11: 28.7 kΩ | J11: 59 kΩ | K11: 787 Ω | L11: 28.7 kΩ | M11: 95.3 kΩ | N11: 649 Ω | O11: 22.6 kΩ | P11: 75 kΩ | Q11: 24 kΩ | R11: 20 kΩ | S11: 6.8 kΩ | T11: 10 nF
C12: 7 | D12: 1660 Hz | E12: 383 Ω | F12: 11.5 kΩ | G12: 23.7 kΩ | H12: 365 Ω | I12: 11 kΩ | J12: 22.6 kΩ | K12: 301 Ω | L12: 11 kΩ | M12: 36.5 kΩ | N12: 249 Ω | O12: 8.66 kΩ | P12: 28.7 kΩ | Q12: 24 kΩ | R12: 20 kΩ | S12: 6.8 kΩ | T12: 33 nF
C13: 8 | D13: 1310 Hz | E13: 487 Ω | F13: 14.7 kΩ | G13: 30.1 kΩ | H13: 464 Ω | I13: 14 kΩ | J13: 28.7 kΩ | K13: 383 Ω | L13: 14 kΩ | M13: 46.4 kΩ | N13: 316 Ω | O13: 11 kΩ | P13: 36.5 kΩ | Q13: 24 kΩ | R13: 20 kΩ | S13: 6.8 kΩ | T13: 33 nF
C14: 9 | D14: 1030 Hz | E14: 619 Ω | F14: 18.7 kΩ | G14: 38.3 kΩ | H14: 590 Ω | I14: 17.8 kΩ | J14: 36.5 kΩ | K14: 487 Ω | L14: 17.8 kΩ | M14: 59 kΩ | N14: 402 Ω | O14: 14 kΩ | P14: 46.4 kΩ | Q14: 24 kΩ | R14: 20 kΩ | S14: 6.8 kΩ | T14: 33 nF
C15: 10 | D15: 810 Hz | E15: 787 Ω | F15: 23.7 kΩ | G15: 48.7 kΩ | H15: 750 Ω | I15: 22.6 kΩ | J15: 46.4 kΩ | K15: 619 Ω | L15: 22.6 kΩ | M15: 75 kΩ | N15: 511 Ω | O15: 17.8 kΩ | P15: 59 kΩ | Q15: 24 kΩ | R15: 20 kΩ | S15: 6.8 kΩ | T15: 33 nF
C16: 11 | D16: 640 Hz | E16: 1 kΩ | F16: 30.1 kΩ | G16: 61.9 kΩ | H16: 953 Ω | I16: 28.7 kΩ | J16: 59 kΩ | K16: 787 Ω | L16: 28.7 kΩ | M16: 95.3 kΩ | N16: 649 Ω | O16: 22.6 kΩ | P16: 75 kΩ | Q16: 24 kΩ | R16: 20 kΩ | S16: 6.8 kΩ | T16: 33 nF
C17: 12 | D17: 500 Hz | E17: 1.27 kΩ | F17: 38.3 kΩ | G17: 78.7 kΩ | H17: 1.21 kΩ | I17: 36.5 kΩ | J17: 75 kΩ | K17: 1 kΩ | L17: 36.5 kΩ | M17: 121 kΩ | N17: 825 Ω | O17: 28.7 kΩ | P17: 95.3 kΩ | Q17: 24 kΩ | R17: 20 kΩ | S17: 6.8 kΩ | T17: 33 nF
C18: 13 | D18: 390 Hz | E18: 536 Ω | F18: 16.2 kΩ | G18: 33.2 kΩ | H18: 511 Ω | I18: 15.4 kΩ | J18: 31.6 kΩ | K18: 422 Ω | L18: 15.4 kΩ | M18: 51.1 kΩ | N18: 348 Ω | O18: 12.1 kΩ | P18: 40.2 kΩ | Q18: 33 kΩ | R18: 27 kΩ | S18: 10 kΩ | T18: 100 nF
C19: 14 | D19: 310 Hz | E19: 681 Ω | F19: 20.5 kΩ | G19: 42.2 kΩ | H19: 649 Ω | I19: 19.6 kΩ | J19: 40.2 kΩ | K19: 536 Ω | L19: 19.6 kΩ | M19: 64.9 kΩ | N19: 442 Ω | O19: 15.4 kΩ | P19: 51.1 kΩ | Q19: 33 kΩ | R19: 27 kΩ | S19: 10 kΩ | T19: 100 nF
C20: 15 | D20: 240 Hz | E20: 866 Ω | F20: 26.1 kΩ | G20: 53.6 kΩ | H20: 825 Ω | I20: 24.9 kΩ | J20: 51.1 kΩ | K20: 681 Ω | L20: 24.9 kΩ | M20: 82.5 kΩ | N20: 562 Ω | O20: 19.6 kΩ | P20: 64.9 kΩ | Q20: 33 kΩ | R20: 27 kΩ | S20: 10 kΩ | T20: 100 nF
C21: 16 | D21: 190 Hz | E21: 1.1 kΩ | F21: 33.2 kΩ | G21: 68.1 kΩ | H21: 1.05 kΩ | I21: 31.6 kΩ | J21: 64.9 kΩ | K21: 866 Ω | L21: 31.6 kΩ | M21: 105 kΩ | N21: 715 Ω | O21: 24.9 kΩ | P21: 82.5 kΩ | Q21: 33 kΩ | R21: 27 kΩ | S21: 10 kΩ | T21: 100 nF
C22: 17 | D22: 150 Hz | E22: 1.4 kΩ | F22: 42.2 kΩ | G22: 86.6 kΩ | H22: 1.33 kΩ | I22: 40.2 kΩ | J22: 82.5 kΩ | K22: 1.1 kΩ | L22: 40.2 kΩ | M22: 133 kΩ | N22: 909 Ω | O22: 31.6 kΩ | P22: 105 kΩ | Q22: 33 kΩ | R22: 27 kΩ | S22: 10 kΩ | T22: 100 nF
C23: 18 | D23: 120 Hz | E23: 1.78 kΩ | F23: 53.6 kΩ | G23: 110 kΩ | H23: 1.69 kΩ | I23: 51.1 kΩ | J23: 105 kΩ | K23: 1.4 kΩ | L23: 51.1 kΩ | M23: 169 kΩ | N23: 1.15 kΩ | O23: 40.2 kΩ | P23: 133 kΩ | Q23: 33 kΩ | R23: 27 kΩ | S23: 10 kΩ | T23: 100 nF
D27: Suggested products:
E29: Value | G29: Count | I29: Distr | J29: Product | M29: Order # | N29: Price [€] | O29: Total [€]
E30: 10 nF | G30: 100 | I30: Mouser | J30: 08055A103JAT2A | M30: 581-08055A103JAT2A | N30: 0.224 | O30: =N30*G30 -> 22.4
E31: 33 nF | G31: 100 | I31: Mouser | J31: CGA5F2C0G1H333J085AA | M31: 810-CGA5F2C0G1H333J | N31: 0.16 | O31: =N31*G31 -> 16
E32: 100 nF | G32: 100 | I32: Mouser | J32: GRM31C5C1H104JA01L | M32: 81-GRM31C5C1H104JA1L | N32: 0.327 | O32: =N32*G32 -> 32.7
E33: 6.8 kΩ | G33: 12 | I33: Farnell | J33: LR0204F6K8 | M33: 2329969 | N33: 0.0353 | O33: =N33*G33 -> 0.4236 | Q33: =O33 -> 0.4236
E34: 10 kΩ | G34: 6 | I34: Farnell | J34: LR0204F10K | M34: 2329855 | N34: 0.034 | O34: =N34*G34 -> 0.204 | Q34: 0.204
E35: 20 kΩ | G35: 12 | I35: Farnell | J35: LR0204F20K | M35: 2329897 | N35: 0.0353 | O35: 0.4236 | Q35: 0.4236
E36: 24 kΩ | G36: 12 | I36: Farnell | J36: LR0204F24K | M36: 2329904 | N36: 0.036 | O36: 0.432 | Q36: 0.432
E37: 27 kΩ | G37: 6 | I37: Farnell | J37: LR0204F27K | M37: 2329909 | N37: 0.0353 | O37: 0.2118 | Q37: 0.2118
E38: 33 kΩ | G38: 6 | I38: Farnell | J38: LR0204F33K | M38: 2329922 | N38: 0.0353 | O38: 0.2118 | Q38: 0.2118
E39: 196 Ω | F39: 1 | G39: =F39*2 -> 2 | H39: =IF(MID(E39,FIND("Ω",E39)-1,1)="k",LEFT(E39,FIND("k",E39)-1)*1000,LEFT(E39,FIND("Ω",E39)-1)*1) -> 196 | I39: Farnell | J39: =IF(H39<1000,CONCATENATE("MRS25000C",H39,"0FCT00"),IF(H39<10000,CONCATENATE("MRS25000C",LEFT(H39,3),"1FCT00"),IF(H39<100000,CONCATENATE("MRS25000C",LEFT(H39,3),"2FCT00"),IF(H39<1000000,CONCATENATE("MRS25000C",LEFT(H39,3),"3FCT00"))))) -> MRS25000C1960FCT00 | M39: 9465120 | N39: 0.051 | O39: =IF(N39<>0,IF(G39<10,N39*10,G39*N39),"") -> 0.51 | Q39: =IF(G39<10,N39*10,G39*N39) -> 0.51
E40: 237 Ω | F40: 1 | G40: =F40*2 -> 2 | H40: =IF(MID(E40,FIND("Ω",E40)-1,1)="k",LEFT(E40,FIND("k",E40)-1)*1000,LEFT(E40,FIND("Ω",E40)-1)*1) -> 237 | I40: Farnell | J40: =IF(H40<1000,CONCATENATE("MRS25000C",H40,"0FCT00"),IF(H40<10000,CONCATENATE("MRS25000C",LEFT(H40,3),"1FCT00"),IF(H40<100000,CONCATENATE("MRS25000C",LEFT(H40,3),"2FCT00"),IF(H40<1000000,CONCATENATE("MRS25000C",LEFT(H40,3),"3FCT00"))))) -> MRS25000C2370FCT00 | M40: 9466185 | N40: 0.083 | O40: =IF(N40<>0,IF(G40<10,N40*10,G40*N40),"") -> 0.83 | Q40: 0.83
E41: 249 Ω | F41: 2 | G41: 4 | H41: 249 | I41: Farnell | J41: MRS25000C2490FCT00 | M41: 9466282 | N41: 0.086 | O41: 0.86 | Q41: 0.86
E42: 287 Ω | F42: 1 | G42: 2 | H42: 287 | I42: Farnell | J42: MRS25000C2870FCT00 | M42: 9466584 | N42: 0.051 | O42: 0.51 | Q42: 0.51
E43: 301 Ω | F43: 3 | G43: 6 | H43: 301 | I43: Farnell | J43: MRS25000C3010FCT00 | M43: 9467149 | N43: 0.085 | O43: 0.85 | Q43: 0.85
E44: 316 Ω | F44: 2 | G44: 4 | H44: 316 | I44: Farnell | J44: MRS25000C3160FCT00 | M44: 9467246 | N44: 0.085 | O44: 0.85 | Q44: 0.85
E45: 348 Ω | F45: 1 | G45: 2 | H45: 348 | I45: Farnell | J45: MRS25000C3480FCT00 | M45: 9467424 | N45: 0.073 | O45: 0.73 | Q45: 0.73
E46: 365 Ω | F46: 2 | G46: 4 | H46: 365 | I46: Farnell | J46: MRS25000C3650FCT00 | M46: 9467548 | N46: 0.051 | O46: 0.51 | Q46: 0.51
E47: 383 Ω | F47: 4 | G47: 8 | H47: 383 | I47: Farnell | J47: MRS25000C3830FCT00 | M47: 9467645 | N47: 0.087 | O47: 0.87 | Q47: 0.87
E48: 402 Ω | F48: 2 | G48: 4 | H48: 402 | I48: Farnell | J48: MRS25000C4020FCT00 | M48: 9468145 | N48: 0.085 | O48: 0.85 | Q48: 0.85
E49: 422 Ω | F49: 1 | G49: 2 | H49: 422 | I49: Farnell | J49: MRS25000C4220FCT00 | M49: 9468226 | N49: 0.087 | O49: 0.87 | Q49: 0.87
E50: 442 Ω | F50: 1 | G50: 2 | H50: 442 | I50: Farnell | J50: MRS25000C4420FCT00 | M50: 9468340 | N50: 0.085 | O50: 0.85 | Q50: 0.85
E51: 464 Ω | F51: 2 | G51: 4 | H51: 464 | I51: Farnell | J51: MRS25000C4640FCT00 | M51: 9468420 | N51: 0.085 | O51: 0.85 | Q51: 0.85
E52: 487 Ω | F52: 4 | G52: 8 | H52: 487 | I52: Farnell | J52: MRS25000C4870FCT00 | M52: 9468544 | N52: 0.085 | O52: 0.85 | Q52: 0.85
E53: 511 Ω | F53: 3 | G53: 6 | H53: 511 | I53: Farnell | J53: MRS25000C5110FCT00 | M53: 9468854 | N53: 0.073 | O53: 0.73 | Q53: 0.73
E54: 536 Ω | F54: 2 | G54: 4 | H54: 536 | I54: Farnell | J54: MRS25000C5360FCT00 | M54: 9468951 | N54: 0.085 | O54: 0.85 | Q54: 0.85
E55: 562 Ω | F55: 1 | G55: 2 | H55: 562 | I55: Farnell | J55: MRS25000C5620FCT00 | M55: 9469052 | N55: 0.065 | O55: 0.65 | Q55: 0.65
E56: 590 Ω | F56: 2 | G56: 4 | H56: 590 | I56: Farnell | J56: MRS25000C5900FCT00 | M56: 9469150 | N56: 0.087 | O56: 0.87 | Q56: 0.87
E57: 619 Ω | F57: 4 | G57: 8 | H57: 619 | I57: Farnell | J57: MRS25000C6190FCT00 | M57: 9469435 | N57: 0.085 | O57: 0.85 | Q57: 0.85
E58: 649 Ω | F58: 3 | G58: 6 | H58: 649 | I58: Farnell | J58: MRS25000C6490FCT00 | M58: 9469559 | N58: 0.05 | O58: 0.5 | Q58: 0.5
E59: 681 Ω | F59: 2 | G59: 4 | H59: 681 | I59: Farnell | J59: MRS25000C6810FCT00 | M59: 9469656 | N59: 0.084 | O59: 0.84 | Q59: 0.84
E60: 715 Ω | F60: 1 | G60: 2 | H60: 715 | I60: Farnell | J60: MRS25000C7150FCT00 | M60: 9469907 | N60: 0.088 | O60: 0.88 | Q60: 0.88
E61: 750 Ω | F61: 2 | G61: 4 | H61: 750 | I61: Farnell | J61: MRS25000C7500FCT00 | M61: 9469982 | N61: 0.085 | O61: 0.85 | Q61: 0.85
E62: 787 Ω | F62: 4 | G62: 8 | H62: 787 | I62: Farnell | J62: MRS25000C7870FCT00 | M62: 9470069 | N62: 0.073 | O62: 0.73 | Q62: 0.73
E63: 825 Ω | F63: 2 | G63: 4 | H63: 825 | I63: Farnell | J63: MRS25000C8250FCT00 | M63: 9470263 | N63: 0.087 | O63: 0.87 | Q63: 0.87
E64: 866 Ω | F64: 2 | G64: 4 | H64: 866 | I64: Farnell | J64: MRS25000C8660FCT00 | M64: 9470360 | N64: 0.085 | O64: 0.85 | Q64: 0.85
E65: 909 Ω | F65: 1 | G65: 2 | H65: 909 | I65: Farnell | J65: MRS25000C9090FCT00 | M65: 9470549 | N65: 0.051 | O65: 0.51 | Q65: 0.51
E66: 953 Ω | F66: 2 | G66: 4 | H66: 953 | I66: Farnell | J66: MRS25000C9530FCT00 | M66: 9470670 | N66: 0.085 | O66: 0.85 | Q66: 0.85
E67: 1 kΩ | F67: 3 | G67: 6 | H67: 1000 | I67: Farnell | J67: MRS25000C1001FCT00 | M67: 9465170 | N67: 0.05 | O67: 0.5 | Q67: 0.5
E68: 1.05 kΩ | F68: 1 | G68: 2 | H68: 1050 | I68: Farnell | J68: MRS25000C1051FCT00 | M68: 9465197 | N68: 0.087 | O68: 0.87 | Q68: 0.87
E69: 1.1 kΩ | F69: 2 | G69: 4 | H69: 1100 | I69: Farnell | J69: MRS25000C1101FCT00 | M69: 9465219 | N69: 0.087 | O69: 0.87 | Q69: 0.87
E70: 1.15 kΩ | F70: 1 | G70: 2 | H70: 1150 | I70: Farnell | J70: MRS25000C1151FCT00 | M70: 9465235 | N70: 0.087 | O70: 0.87 | Q70: 0.87
E71: 1.21 kΩ | F71: 1 | G71: 2 | H71: 1210 | I71: Farnell | J71: MRS25000C1211FCT00 | M71: 9465260 | N71: 0.051 | O71: 0.51 | Q71: =IF(G71<10,N71*10,G71*N71) -> 0.51
E72: 1.27 kΩ | F72: 1 | G72: 2 | H72: 1270 | I72: Farnell | J72: MRS25000C1271FCT00 | M72: 9465286 | N72: 0.087 | O72: 0.87 | Q72: 0.87
E73: 1.33 kΩ | F73: 1 | G73: 2 | H73: 1330 | I73: Farnell | J73: MRS25000C1331FCT00 | M73: 9465308 | N73: 0.087 | O73: 0.87 | Q73: 0.87
E74: 1.4 kΩ | F74: 2 | G74: 4 | H74: 1400 | I74: Farnell | J74: MRS25000C1401FCT00 | M74: 9465324 | N74: 0.087 | O74: 0.87 | Q74: 0.87
E75: 1.69 kΩ | F75: 1 | G75: 2 | H75: 1690 | I75: Farnell | J75: MRS25000C1691FCT00 | M75: 9465413 | N75: 0.085 | O75: 0.85 | Q75: 0.85
E76: 1.78 kΩ | F76: 1 | G76: 2 | H76: 1780 | I76: Farnell | J76: MRS25000C1781FCT00 | M76: 9465430 | N76: 0.085 | O76: 0.85 | Q76: 0.85
E77: 6.81 kΩ | F77: 1 | G77: 2 | H77: 6810 | I77: Farnell | J77: MRS25000C6811FCT00 | M77: 9469818 | N77: 0.087 | O77: 0.87 | Q77: 0.87
E78: 8.66 kΩ | F78: 4 | G78: 8 | H78: 8660 | I78: Farnell | J78: MRS25000C8661FCT00 | M78: 9470476 | N78: 0.089 | O78: 0.89 | Q78: 0.89
E79: 9.09 kΩ | F79: 1 | G79: 2 | H79: 9090 | I79: Farnell | J79: MRS25000C9091FCT00 | M79: 9470743 | N79: 0.087 | O79: 0.87 | Q79: 0.87
E80: 11 kΩ | F80: 6 | G80: 12 | H80: 11000 | I80: Farnell | J80: MRS25000C1102FCT00 | M80: 9464140 | N80: 0.051 | O80: 0.612 | Q80: 0.612
E81: 11.5 kΩ | F81: 2 | G81: 4 | H81: 11500 | I81: Farnell | J81: MRS25000C1152FCT00 | M81: 9464166 | N81: 0.051 | O81: 0.51 | Q81: 0.51
E82: 12.1 kΩ | F82: 1 | G82: 2 | H82: 12100 | I82: Farnell | J82: MRS25000C1212FCT00 | M82: 9464310 | N82: 0.087 | O82: 0.87 | Q82: 0.87
E83: 14 kΩ | F83: 6 | G83: 12 | H83: 14000 | I83: Farnell | J83: MRS25000C1402FCT00 | M83: 9464565 | N83: 0.087 | O83: 1.044 | Q83: 1.044
E84: 14.7 kΩ | F84: 2 | G84: 4 | H84: 14700 | I84: Farnell | J84: MRS25000C1472FCT00 | M84: 9464581 | N84: 0.085 | O84: 0.85 | Q84: 0.85
E85: 15.4 kΩ | F85: 3 | G85: 6 | H85: 15400 | I85: Farnell | J85: MRS25000C1542FCT00 | M85: 9464697 | N85: 0.084 | O85: 0.84 | Q85: 0.84
E86: 16.2 kΩ | F86: 1 | G86: 2 | H86: 16200 | I86: Farnell | J86: MRS25000C1622FCT00 | M86: 9464832 | N86: 0.087 | O86: 0.87 | Q86: 0.87
E87: 17.8 kΩ | F87: 7 | G87: 14 | H87: 17800 | I87: Farnell | J87: MRS25000C1782FCT00 | M87: 9464956 | N87: 0.06 | O87: 0.84 | Q87: 0.84
E88: 18.7 kΩ | F88: 3 | G88: 6 | H88: 18700 | I88: Farnell | J88: MRS25000C1872FCT00 | M88: 9465057 | N88: 0.087 | O88: 0.87 | Q88: 0.87
E89: 19.6 kΩ | F89: 3 | G89: 6 | H89: 19600 | I89: Farnell | J89: MRS25000C1962FCT00 | M89: 9465146 | N89: 0.084 | O89: 0.84 | Q89: 0.84
E90: 20.5 kΩ | F90: 1 | G90: 2 | H90: 20500 | I90: Farnell | J90: MRS25000C2052FCT00 | M90: 9465928 | N90: 0.081 | O90: 0.81 | Q90: 0.81
E91: 22.6 kΩ | F91: 9 | G91: 18 | H91: 22600 | I91: Farnell | J91: MRS25000C2262FCT00 | M91: 9466118 | N91: 0.085 | O91: 1.53 | Q91: 1.53
E92: 23.7 kΩ | F92: 4 | G92: 8 | H92: 23700 | I92: Farnell | J92: MRS25000C2372FCT00 | M92: 9466207 | N92: 0.051 | O92: 0.51 | Q92: 0.51
E93: 24.9 kΩ | F93: 3 | G93: 6 | H93: 24900 | I93: Farnell | J93: MRS25000C2492FCT00 | M93: 9466312 | N93: 0.087 | O93: 0.87 | Q93: 0.87
E94: 26.1 kΩ | F94: 1 | G94: 2 | H94: 26100 | I94: Farnell | J94: MRS25000C2612FCT00 | M94: 9466436 | N94: 0.088 | O94: 0.88 | Q94: 0.88
E95: 28.7 kΩ | F95: 10 | G95: 20 | H95: 28700 | I95: Farnell | J95: MRS25000C2872FCT00 | M95: 9466606 | N95: 0.087 | O95: 1.74 | Q95: 1.74
E96: 30.1 kΩ | F96: 4 | G96: 8 | H96: 30100 | I96: Farnell | J96: MRS25000C3012FCT00 | M96: 9467181 | N96: 0.087 | O96: 0.87 | Q96: 0.87
E97: 31.6 kΩ | F97: 4 | G97: 8 | H97: 31600 | I97: Farnell | J97: MRS25000C3162FCT00 | M97: 9467254 | N97: 0.051 | O97: 0.51 | Q97: 0.51
E98: 33.2 kΩ | F98: 2 | G98: 4 | H98: 33200 | I98: Farnell | J98: MRS25000C3322FCT00 | M98: 9467360 | N98: 0.087 | O98: 0.87 | Q98: 0.87
E99: 36.5 kΩ | F99: 8 | G99: 16 | H99: 36500 | I99: Farnell | J99: MRS25000C3652FCT00 | M99: 9467564 | N99: 0.085 | O99: 1.36 | Q99: 1.36
E100: 38.3 kΩ | F100: 3 | G100: 6 | H100: 38300 | I100: Farnell | J100: MRS25000C3832FCT00 | M100: 9467653 | N100: 0.087 | O100: 0.87 | Q100: 0.87
E101: 40.2 kΩ | F101: 5 | G101: 10 | H101: 40200 | I101: Farnell | J101: MRS25000C4022FCT00 | M101: 9468153 | N101: 0.084 | O101: 0.84 | Q101: 0.84
E102: 42.2 kΩ | F102: 2 | G102: 4 | H102: 42200 | I102: Farnell | J102: MRS25000C4222FCT00 | M102: 9468234 | N102: 0.051 | O102: 0.51 | Q102: 0.51
E103: 46.4 kΩ | F103: 6 | G103: 12 | H103: 46400 | I103: Farnell | J103: MRS25000C4642FCT00 | M103: 9468439 | N103: 0.087 | O103: 1.044 | Q103: =IF(G103<10,N103*10,G103*N103) -> 1.044
E104: 48.7 kΩ | F104: 2 | G104: =F104*2 -> 4 | H104: =IF(MID(E104,FIND("Ω",E104)-1,1)="k",LEFT(E104,FIND("k",E104)-1)*1000,LEFT(E104,FIND("Ω",E104)-1)*1) -> 48700 | I104: Farnell | J104: =IF(H104<1000,CONCATENATE("MRS25000C",H104,"0FCT00"),IF(H104<10000,CONCATENATE("MRS25000C",LEFT(H104,3),"1FCT00"),IF(H104<100000,CONCATENATE("MRS25000C",LEFT(H104,3),"2FCT00"),IF(H104<1000000,CONCATENATE("MRS25000C",LEFT(H104,3),"3FCT00"))))) -> MRS25000C4872FCT00 | M104: 9468552 | N104: 0.087 | O104: =IF(N104<>0,IF(G104<10,N104*10,G104*N104),"") -> 0.87 | Q104: 0.87
E105: 51.1 kΩ | F105: 5 | G105: 10 | H105: 51100 | I105: Farnell | J105: MRS25000C5112FCT00 | M105: 9468870 | N105: 0.087 | O105: 0.87 | Q105: 0.87
E106: 53.6 kΩ | F106: 2 | G106: 4 | H106: 53600 | I106: Farnell | J106: MRS25000C5362FCT00 | M106: 9468960 | N106: 0.051 | O106: 0.51 | Q106: 0.51
E107: 59 kΩ | F107: 6 | G107: 12 | H107: 59000 | I107: Farnell | J107: MRS25000C5902FCT00 | M107: 9469168 | N107: 0.087 | O107: 1.044 | Q107: 1.044
E108: 61.9 kΩ | F108: 2 | G108: 4 | H108: 61900 | I108: Farnell | J108: MRS25000C6192FCT00 | M108: 9469443 | N108: 0.086 | O108: 0.86 | Q108: 0.86
E109: 64.9 kΩ | F109: 3 | G109: 6 | H109: 64900 | I109: Farnell | J109: MRS25000C6492FCT00 | M109: 9469567 | N109: 0.06 | O109: 0.6 | Q109: 0.6
E110: 68.1 kΩ | F110: 1 | G110: 2 | H110: 68100 | I110: Farnell | J110: MRS25000C6812FCT00 | M110: 9469672 | N110: 0.087 | O110: 0.87 | Q110: 0.87
E111: 75 kΩ | F111: 5 | G111: 10 | H111: 75000 | I111: Farnell | J111: MRS25000C7502FCT00 | M111: 9469990 | N111: 0.084 | O111: 0.84 | Q111: 0.84
E112: 78.7 kΩ | F112: 1 | G112: 2 | H112: 78700 | I112: Farnell | J112: MRS25000C7872FCT00 | M112: 9470077 | N112: 0.06 | O112: 0.6 | Q112: 0.6
E113: 82.5 kΩ | F113: 3 | G113: 6 | H113: 82500 | I113: Farnell | J113: MRS25000C8252FCT00 | M113: 9470280 | N113: 0.06 | O113: 0.6 | Q113: 0.6
E114: 86.6 kΩ | F114: 1 | G114: 2 | H114: 86600 | I114: Farnell | J114: MRS25000C8662FCT00 | M114: 9470379 | N114: 0.06 | O114: 0.6 | Q114: 0.6
E115: 95.3 kΩ | F115: 3 | G115: 6 | H115: 95300 | I115: Farnell | J115: MRS25000C9532FCT00 | M115: 9470689 | N115: 0.05 | O115: 0.5 | Q115: 0.5
E116: 105 kΩ | F116: 3 | G116: 6 | H116: 105000 | I116: Farnell | J116: MRS25000C1053FCT00 | M116: 9463933 | N116: 0.049 | O116: 0.49 | Q116: 0.49
E117: 110 kΩ | F117: 1 | G117: 2 | H117: 110000 | I117: Farnell | J117: MRS25000C1103FCT00 | M117: 9464069 | N117: 0.051 | O117: 0.51 | Q117: 0.51
E118: 121 kΩ | F118: 1 | G118: 2 | H118: 121000 | I118: Farnell | J118: MRS25000C1213FCT00 | M118: 9464247 | N118: 0.087 | O118: 0.87 | Q118: 0.87
E119: 133 kΩ | F119: 2 | G119: 4 | H119: 133000 | I119: Farnell | J119: MRS25000C1333FCT00 | M119: 9464409 | N119: 0.084 | O119: 0.84 | Q119: 0.84
E120: 169 kΩ | F120: 1 | G120: 2 | H120: 169000 | I120: Farnell | J120: MRS25000C1693FCT00 | M120: 9464808 | N120: 0.087 | O120: 0.87 | Q120: 0.87
N122: Total: | O122: =SUM(O30:O120) -> 138.8908 | P122: € | Q122: =SUM(Q33:Q120) -> 67.7908 | R122: €
Q124: Total price resistors, all boards combined.

Sheet Voice preamp
A4: Type | B4: Designator | C4: Identifier | D4: Count | E4: Body type | F4: Suggested product | G4: Distributor | H4: Order # | I4: Individual price | J4: Total price | K4: Remarks
A5: Diode | B5: D1, D2, D3, D4 | C5: 1N4148 | D5: =IF(B5<>"",LEN(B5)-LEN(SUBSTITUTE(B5,",",""))+1,"") -> 4 | E5: DO-35 | F5: 1N4148 | G5: Mouser | H5: 512-1N4148 | I5: 0.018 | J5: =I5*D5 -> 0.072
A7: LED | B7: LED8, LED9, LED10 | C7: LED red, 2.4 V, 2 mA | D7: 3 | E7: 3 mm LED | F7: TLLR4401 | G7: Mouser | H7: 78-TLLR4401 | I7: 0.3 | J7: =I7*D7 -> 0.9
A8: LED | B8: LED7 | C8: LED yellow, 2.4 V, 2 mA | D8: 1 | E8: 3 mm LED | F8: TLLY4401 | G8: Mouser | H8: 78-TLLY4401 | I8: 0.367 | J8: 0.367
A9: LED | B9: LED1, LED2, LED3, LED4, LED5, LED6 | C9: LED green, 2.4 V, 2 mA | D9: 6 | E9: 3 mm LED | F9: TLLG4401 | G9: Mouser | H9: 78-TLLG4401 | I9: 0.3 | J9: 1.8
A10: IC | B10: IC1, IC2, IC3 | C10: NE5532 | D10: 3 | E10: DIL8 | F10: NE5532AP | G10: Mouser | H10: 595-NE5532AP | I10: 0.814 | J10: 2.442
A11: IC | B11: IC4 | C11: TL072 | D11: 1 | E11: DIL8 | F11: TL072IP | G11: Mouser | H11: 595-TL072IP | I11: 0.594 | J11: 0.594
A12: IC | B12: IC5 | C12: LM3916 | D12: 1 | E12: DIL18 | F12: =C12 -> LM3916 | H12: LM3916 | I12: 1.98 | J12: 1.98
A13: Ceramic | B13: C5, C6 | C13: 22 pF | D13: 2 | E13: RM2.5 | F13: K220J15C0GF53L2 | G13: Mouser | H13: 594-K220J15C0GF53L2 | I13: 0.271 | J13: 0.542
A14: Ceramic | B14: C22, C23, C24, C25, C26, C27, C28, C29, C30 | C14: 100 nF | D14: 9 | E14: SMD (1206 or 0805) | F14: C1206C104K5RACTU | G14: Mouser | H14: 80-C1206C104K5R | I14: 0.024 | J14: 0.216
A16: Film | B16: C1, C11 | C16: 100 nF | D16: 2 | E16: RM2.5/RM5.0 | F16: R82EC3100AA70J | G16: Mouser | H16: 80-R82EC3100AA70J | I16: 0.141 | J16: 0.282
A17: Film | B17: C7 | C17: 220 nF | D17: 1 | E17: RM2.5/RM5.0 | F17: R82DC3220Z360K | G17: Mouser | H17: 80-82DC3220Z360K | I17: 0.103 | J17: 0.103
A18: Film | B18: C3, C4, C13, C14 | C18: 1 µF | D18: 4 | E18: RM2.5/RM5.0 | F18: R82DC4100Z360K | G18: Mouser | H18: 80-R82DC4100Z360K | I18: 0.279 | J18: 1.116
A19: Electrolytic | B19: C8 | C19: 3.3 µF/50 V, max. ⌀ 5 mm | D19: 1 | E19: RM2.0 | F19: Würth 860020672007 | G19: Mouser | H19: 710-860020672007 | I19: 0.1 | J19: 0.1
A20: Electrolytic | B20: C2, C12 | C20: 10 µF/50 V, max. ⌀ 5 mm | D20: 2 | E20: RM2.0 | F20: Würth 860020672010 | G20: Mouser | H20: 710-860020672010 | I20: 0.1 | J20: 0.2
A21: Electrolytic | B21: C20, C21, C31, C32 | C21: 100 µF/25 V, max. ⌀ 7 mm | D21: 4 | E21: RM2.5 | F21: Würth 860010473007 | G21: Mouser | H21: 710-860010473007 | I21: 0.111 | J21: 0.444
A22: Resistor | B22: R23, R24 | C22: 47 Ω, 250 mW | D22: 2 | E22: 0204/0207 | F22: LR0204F47R | G22: Farnell | H22: 2329945 | I22: 0.0408 | J22: 0.0816
A23: Resistor | B23: R20 | C23: 510 Ω | D23: 1 | E23: 0204/0207 | F23: LR0204F510R | G23: Farnell | H23: 2329949 | I23: 0.0353 | J23: 0.0353
A24: Resistor | B24: R3, R33 | C24: 1 kΩ | D24: 2 | E24: 0204/0207 | F24: LR0204F1K0 | G24: Farnell | H24: 2329885 | I24: 0.0771 | J24: 0.1542
A25: Resistor | B25: R21 | C25: 7.5 kΩ | D25: 1 | E25: 0204/0207 | F25: LR0204F7K5 | G25: Farnell | H25: 2329974 | I25: 0.0812 | J25: 0.0812
A26: Resistor | B26: R11 | C26: 10 kΩ | D26: 1 | E26: 0204/0207 | F26: LR0204F10K | G26: Farnell | H26: 2329855 | I26: 0.034 | J26: 0.034
A27: Resistor | B27: R22 | C27: 15 kΩ | D27: 1 | E27: 0204/0207 | F27: LR0204F15K | G27: Farnell | H27: 2329873 | I27: 0.0353 | J27: 0.0353
A28: Resistor | B28: R12 | C28: 22 kΩ | D28: 1 | E28: 0204/0207 | F28: LR0204F22K | G28: Farnell | H28: 2329901 | I28: 0.036 | J28: 0.036
A29: Resistor | B29: R7 | C29: 24 kΩ | D29: 1 | E29: 0204/0207 | F29: LR0204F24K | G29: Farnell | H29: 2329904 | I29: 0.036 | J29: 0.036
A30: Resistor | B30: R13 | C30: 33 kΩ | D30: 1 | E30: 0204/0207 | F30: LR0204F33K | G30: Farnell | H30: 2329922 | I30: 0.0353 | J30: =I30*D30 -> 0.0353
A31: Resistor | B31: R1, R5, R6, R8, R9, R31, R35, R36 | C31: 47 kΩ | D31: 8 | E31: 0204/0207 | F31: LR0204F47K | G31: Farnell | H31: 2329944 | I31: 0.027 | J31: 0.216
A32: Resistor | B32: R10, R14, R15, R16, R17 | C32: 100 kΩ | D32: 5 | E32: 0204/0207 | F32: LR0204F100K | G32: Farnell | H32: 2329853 | I32: 0.0265 | J32: 0.1325
A33: Resistor | B33: R4, R18, R19, R34 | C33: 200 kΩ | D33: 4 | E33: 0204/0207 | F33: LR0204F200K | G33: Farnell | H33: 2329895 | I33: 0.0347 | J33: 0.1388
A34: Resistor | B34: R2, R32 | C34: 1 MΩ | D34: 2 | E34: 0204/0207 | F34: LR0204F1M0 | G34: Farnell | H34: 2329894 | I34: 0.0353 | J34: 0.0706
A35: Potentiometer | B35: P1 | C35: 100 kΩ log, Alpha 9 mm, right angled (side adjust) | D35: 1 | F35: RD901F-20-15R1-A100K | G35: Small Bear (US) or Thonk (EU) | H35: 100k-log-single | I35: 1.17 | J35: 1.17
A36: Trimmer | B36: TR1 | C36: 100 kΩ | D36: =IF(B36<>"",LEN(B36)-LEN(SUBSTITUTE(B36,",",""))+1,"") -> 1 | F36: PT 10 LH 100K | G36: Mouser | H36: 531-PT10H-100K | I36: 0.508 | J36: =I36*D36 -> 0.508
A37: Jack | B37: LINE-IN, MIC | C37: 6.35 mm jack | D37: 2 | F37: ACJS-MHDR | G37: Mouser | H37: 523-ACJS-MHDR | I37: 1.16 | J37: =I37*D37 -> 2.32
A38: Connector | B38: AGC-L, EXC-L, AUDIO-L, EXP-L | C38: Wire-to-board connector, 2-pin | D38: 4 | F38: S2B-EH(LF)(SN) | G38: Farnell | H38: 2481437 | I38: 0.0682 | J38: =I38*D38 -> 0.2728
A39: Connector | B39: SUPPLY | C39: Wire-to-board connector, 3-pin | D39: 1 | F39: S3B-EH(LF)(SN) | G39: Farnell | H39: 2481438 | I39: 0.0986 | J39: 0.0986
A40: Connector | B40: =CONCATENATE(D40,"x") -> 4x | C40: EHR-2 | D40: =D38 -> 4 | F40: EHR-2 | G40: Farnell | H40: 2481434 | I40: 0.0312 | J40: 0.1248
A41: Connector | B41: =CONCATENATE(D41,"x") -> 1x | C41: EHR-3 | D41: =D39 -> 1 | F41: EHR-3 | G41: Farnell | H41: 2399175 | I41: 0.0345 | J41: 0.0345
A42: Connector | B42: =CONCATENATE(D42,"x") -> 11x | C42: SEH-001T-P0.6 | D42: =D40*2+D41*3 -> 11 | F42: SEH-001T-P0.6 | G42: Farnell | H42: 1863249 | I42: 0.0244 | J42: 0.2684
A43: IC Socket | B43: IC1, IC2, IC3, IC5 | C43: 8 pins | D43: =IF(B43<>"",LEN(B43)-LEN(SUBSTITUTE(B43,",",""))+1,"") -> 4 | F43: 110-99-308-41-001000 | G43: Mouser | H43: 575-199308 | I43: 0.38 | J43: =I43*D43 -> 1.52
A44: IC Socket | B44: IC4 | C44: 18 pins | D44: =IF(B44<>"",LEN(B44)-LEN(SUBSTITUTE(B44,",",""))+1,"") -> 1 | F44: 110-44-318-41-001000 | G44: Mouser | H44: 575-11044318 | I44: 0.795 | J44: =I44*D44 -> 0.795
A45: Misc | B45: LEFT, GND | C45: Solder pins, ⌀ 1 mm | D45: =IF(B45<>"",LEN(B45)-LEN(SUBSTITUTE(B45,",",""))+1,"") -> 2 | F45: Vogt 1364A.68 | G45: Conrad | H45: 736018 - 62 | I45: 0.0259 | J45: =I45*D45 -> 0.0518
J47: =SUM(J5:J45) -> 19.4087 | K47: total

Sheet Carrier preamp
A4: Type | B4: Designator | C4: Identifier | D4: Count | E4: Body type | F4: Suggested product | G4: Distributor | H4: Order # | I4: Individual price | J4: Total price | K4: Remarks
A5: Diode | B5: D1, D2, D3, D4, D5, D6, D7, D8 | C5: 1N4148 | D5: =IF(B5<>"",LEN(B5)-LEN(SUBSTITUTE(B5,",",""))+1,"") -> 8 | E5: DO-35 | F5: 1N4148 | G5: Mouser | H5: 512-1N4148 | I5: 0.018 | J5: =I5*D5 -> 0.144
A6: JFET | B6: J1 | C6: J113 | D6: 1 | E6: TO-92 | F6: J113 | G6: Mouser | H6: 512-J113 | I6: 0.249 | J6: 0.249
A7: LED | B7: LED8, LED9, LED10, LED18, LED19, LED20 | C7: LED red, 2.4 V, 2 mA | D7: 6 | E7: 3 mm LED | F7: TLLR4401 | G7: Mouser | H7: 78-TLLR4401 | I7: 0.3 | J7: 1.8
A8: LED | B8: LED7, LED17 | C8: LED yellow, 2.4 V, 2 mA | D8: 2 | E8: 3 mm LED | F8: TLLY4401 | G8: Mouser | H8: 78-TLLY4401 | I8: 0.367 | J8: 0.734
A9: LED | B9: LED1, LED2, LED3, LED4, LED5, LED6, LED11, LED12, LED13, LED14, LED15, LED16 | C9: LED green, 2.4 V, 2 mA | D9: 12 | E9: 3 mm LED | F9: TLLG4401 | G9: Mouser | H9: 78-TLLG4401 | I9: 0.3 | J9: 3.6
A10: IC | B10: IC1, IC2, IC3, IC6, IC7 | C10: NE5532 | D10: 5 | E10: DIL8 | F10: NE5532AP | G10: Mouser | H10: 595-NE5532AP | I10: 0.814 | J10: 4.07
A11: IC | B11: IC4, IC8 | C11: TL072 | D11: 2 | E11: DIL8 | F11: TL072IP | G11: Mouser | H11: 595-TL072IP | I11: 0.594 | J11: 1.188
A12: IC | B12: IC5, IC9 | C12: LM3916 | D12: 2 | E12: DIL18 | F12: =C12 -> LM3916 | H12: LM3916 | I12: 1.98 | J12: 3.96
A13: Ceramic | B13: C5, C6, C15, C16 | C13: 22 pF | D13: 4 | E13: RM2.5 | F13: K220J15C0GF53L2 | G13: Mouser | H13: 594-K220J15C0GF53L2 | I13: 0.271 | J13: 1.084
A14: Ceramic | B14: C22, C23, C24, C25, C26, C27, C28, C29, C30, C34, C35, C36, C37, C38, C39, C40 | C14: 100 nF | D14: 16 | E14: SMD (1206 or 0805) | F14: C1206C104K5RACTU | G14: Mouser | H14: 80-C1206C104K5R | I14: 0.024 | J14: 0.384
A15: Ceramic | B15: C19 | C15: 10 nF | D15: 1 | E15: RM2.5 | F15: K103K15X7RF53L2 | G15: Mouser | H15: 594-K103K15X7RF53L2 | I15: 0.314 | J15: 0.314
A16: Film | B16: C1, C11 | C16: 100 nF | D16: 2 | E16: RM2.5/RM5.0 | F16: R82EC3100AA70J | G16: Mouser | H16: 80-R82EC3100AA70J | I16: 0.141 | J16: 0.282
A17: Film | B17: C7, C17 | C17: 220 nF | D17: =IF(B17<>"",LEN(B17)-LEN(SUBSTITUTE(B17,",",""))+1,"") -> 2 | E17: RM2.5/RM5.0 | F17: R82DC3220Z360K | G17: Mouser | H17: 80-82DC3220Z360K | I17: 0.103 | J17: 0.206
A18: Film | B18: C3, C4, C13, C14 | C18: 1 µF | D18: 4 | E18: RM2.5/RM5.0 | F18: R82DC4100Z360K | G18: Mouser | H18: 80-R82DC4100Z360K | I18: 0.279 | J18: 1.116
A19: Electrolytic | B19: C8, C18 | C19: 3.3 µF/50 V, max. ⌀ 5 mm | D19: 2 | E19: RM2.0 | F19: Würth 860020672007 | G19: Mouser | H19: 710-860020672007 | I19: 0.1 | J19: 0.2
A20: Electrolytic | B20: C2, C12 | C20: 10 µF/50 V, max. ⌀ 5 mm | D20: 2 | E20: RM2.0 | F20: Würth 860020672010 | G20: Mouser | H20: 710-860020672010 | I20: 0.1 | J20: 0.2
A21: Electrolytic | B21: C20, C21, C31, C32 | C21: 100 µF/25 V, max. ⌀ 7 mm | D21: 4 | E21: RM2.5 | F21: Würth 860010473007 | G21: Mouser | H21: 710-860010473007 | I21: 0.111 | J21: 0.444
A22: Resistor | B22: R23, R24 | C22: 47 Ω, 250 mW | D22: 2 | E22: 0204/0207 | F22: LR0204F47R | G22: Farnell | H22: 2329945 | I22: 0.0408 | J22: 0.0816
A23: Resistor | B23: R20, R50 | C23: 510 Ω | D23: 2 | E23: 0204/0207 | F23: LR0204F510R | G23: Farnell | H23: 2329949 | I23: 0.0353 | J23: 0.0706
A24: Resistor | B24: R3, R33 | C24: 1 kΩ | D24: 2 | E24: 0204/0207 | F24: LR0204F1K0 | G24: Farnell | H24: 2329885 | I24: 0.0771 | J24: 0.1542
A25: Resistor | B25: R21, R51 | C25: 7.5 kΩ | D25: 2 | E25: 0204/0207 | F25: LR0204F7K5 | G25: Farnell | H25: 2329974 | I25: 0.0812 | J25: 0.1624
A26: Resistor | B26: R11, R41 | C26: 10 kΩ | D26: 2 | E26: 0204/0207 | F26: LR0204F10K | G26: Farnell | H26: 2329855 | I26: 0.034 | J26: 0.068
A27: Resistor | B27: R22, R52 | C27: 15 kΩ | D27: 2 | E27: 0204/0207 | F27: LR0204F15K | G27: Farnell | H27: 2329873 | I27: 0.0353 | J27: 0.0706
A28: Resistor | B28: R12, R42 | C28: 22 kΩ | D28: 2 | E28: 0204/0207 | F28: LR0204F22K | G28: Farnell | H28: 2329901 | I28: 0.036 | J28: 0.072
A30: Resistor | B30: R13, R43 | C30: 33 kΩ | D30: =IF(B30<>"",LEN(B30)-LEN(SUBSTITUTE(B30,",",""))+1,"") -> 2 | E30: 0204/0207 | F30: LR0204F33K | G30: Farnell | H30: 2329922 | I30: 0.0353 | J30: =I30*D30 -> 0.0706
A31: Resistor | B31: R1, R5, R6, R7, R8, R9, R31, R35, R36, R37, R38, R39 | C31: 47 kΩ | D31: 12 | E31: 0204/0207 | F31: LR0204F47K | G31: Farnell | H31: 2329944 | I31: 0.027 | J31: 0.324
A32: Resistor | B32: R10, R14, R15, R16, R17, R25, R26, R40, R44, R45, R46, R47 | C32: 100 kΩ | D32: 12 | E32: 0204/0207 | F32: LR0204F100K | G32: Farnell | H32: 2329853 | I32: 0.0265 | J32: 0.318
A33: Resistor | B33: R4, R18, R19, R34, R48, R49 | C33: 200 kΩ | D33: 6 | E33: 0204/0207 | F33: LR0204F200K | G33: Farnell | H33: 2329895 | I33: 0.0347 | J33: 0.2082
A34: Resistor | B34: R2, R32 | C34: 1 MΩ | D34: 2 | E34: 0204/0207 | F34: LR0204F1M0 | G34: Farnell | H34: 2329894 | I34: 0.0353 | J34: 0.0706
A35: Potentiometer | B35: P1 | C35: 100 kΩ log, Alpha 9 mm, right angled (side adjust), stereo | D35: 1 | F35: Alpha 9-PC-STE-100k log, RD902F-20-15R1-A100K | G35: Small Bear (US) or banzaimusic.com (EU) | H35: 100k-log-dual | I35: 2.8 | J35: 2.8
A36: Trimmer | B36: TR1, TR2 | C36: 100 kΩ | D36: 2 | F36: PT 10 LH 100K | G36: Mouser | H36: 531-PT10H-100K | I36: 0.508 | J36: =I36*D36 -> 1.016
A37: Jack | B37: LINE-IN, MIC | C37: 6.35 mm jack | D37: 2 | F37: ACJS-MHDR | G37: Mouser | H37: 523-ACJS-MHDR | I37: 1.16 | J37: =I37*D37 -> 2.32
A38: Connector | B38: AGC-L, EXC-L, AUDIO-L, EXP-L, AGC-R, EXC-R, AUDIO-R, EXP-R, INT-R, INT-L, MONO-SW | C38: Wire-to-board connector, 2-pin | D38: 11 | F38: S2B-EH(LF)(SN) | G38: Farnell | H38: 2481437 | I38: 0.0682 | J38: =I38*D38 -> 0.7502
A39: Connector | B39: SUPPLY | C39: Wire-to-board connector, 3-pin | D39: 1 | F39: S3B-EH(LF)(SN) | G39: Farnell | H39: 2481438 | I39: 0.0986 | J39: =I39*D39 -> 0.0986
A40: Connector | B40: =CONCATENATE(D40,"x") -> 11x | C40: EHR-2 | D40: =D38 -> 11 | F40: EHR-2 | G40: Farnell | H40: 2481434 | I40: 0.0312 | J40: 0.3432
A41: Connector | B41: =CONCATENATE(D41,"x") -> 1x | C41: EHR-3 | D41: =D39 -> 1 | F41: EHR-3 | G41: Farnell | H41: 2399175 | I41: 0.0345 | J41: 0.0345
A42: Connector | B42: =CONCATENATE(D42,"x") -> 25x | C42: SEH-001T-P0.6 | D42: =D40*2+D41*3 -> 25 | F42: SEH-001T-P0.6 | G42: Farnell | H42: 1863249 | I42: 0.0244 | J42: 0.61
A43: IC Socket | B43: IC1, IC2, IC3, IC5, IC6, IC7 | C43: 8 pins | D43: =IF(B43<>"",LEN(B43)-LEN(SUBSTITUTE(B43,",",""))+1,"") -> 6 | F43: 110-99-308-41-001000 | G43: Mouser | H43: 575-199308 | I43: 0.38 | J43: =I43*D43 -> 2.28
A44: IC Socket | B44: IC4, IC8 | C44: 18 pins | D44: =IF(B44<>"",LEN(B44)-LEN(SUBSTITUTE(B44,",",""))+1,"") -> 2 | F44: 110-44-318-41-001000 | G44: Mouser | H44: 575-11044318 | I44: 0.795 | J44: =I44*D44 -> 1.59
A45: Misc | B45: LEFT, RIGHT, GND | C45: Solder pins, ⌀ 1 mm | D45: =IF(B45<>"",LEN(B45)-LEN(SUBSTITUTE(B45,",",""))+1,"") -> 3 | F45: Vogt 1364A.68 | G45: Conrad | H45: 736018 - 62 | I45: 0.0259 | J45: =I45*D45 -> 0.0777
J47: =SUM(J5:J45) -> 33.566 | K47: total

Sheet Internal exc. (left)
A1: Fewer components than "internal exc. (right)": J4, J5, C18, R66, R67, R68, MIX-SW. Also notice the difference in MIX-IN1, MIX-IN2.
A4: Type | B4: Designator | C4: Identifier | D4: Count | E4: Body type | F4: Suggested product | G4: Distributor | H4: Order # | I4: Individual price | J4: Total price | K4: Remarks
A5: Diode | B5: D1, D2 | C5: 1N4148 | D5: =IF(B5<>"",LEN(B5)-LEN(SUBSTITUTE(B5,",",""))+1,"") -> 2 | E5: DO-35 | F5: 1N4148 | G5: Mouser | H5: 512-1N4148 | I5: 0.018 | J5: =I5*D5 -> 0.036
A6: JFET | B6: J1 | C6: J105 | D6: 1 | E6: TO-92 | F6: J105 | G6: Mouser | H6: 512-J105 | I6: 0.553 | J6: 0.553
A7: JFET | B7: J2, J3 | C7: J113 | D7: 2 | E7: TO-92 | F7: J113 | G7: Mouser | H7: 512-J113 | I7: 0.249 | J7: 0.498
A8: Transistor | B8: T1, T2 | C8: 2N3904 | D8: 2 | E8: TO-92 | F8: 2N3904BU | G8: Mouser | H8: 512-2N3904BU | I8: 0.051 | J8: 0.102
A9: Transistor | B9: T3 | C9: 2N3906 | D9: 1 | E9: TO-92 | F9: 2N3906BU | G9: Mouser | H9: 512-2N3906BU | I9: 0.236 | J9: 0.236
A10: IC | B10: IC1 | C10: TL072 | D10: 1 | E10: DIL8 | F10: TL072IP | G10: Mouser | H10: 595-TL072IP | I10: 0.594 | J10: 0.594
A11: IC | B11: IC3, IC5, IC7 | C11: TL074 | D11: 3 | E11: DIL14 | F11: TL074CN | G11: Mouser | H11: 595-TL074CN | I11: 0.468 | J11: 1.404
A12: IC | B12: IC2 | C12: THAT300 | D12: 1 | E12: DIL14 | F12: THAT300P14-U | G12: Mouser | H12: 887-300P14-U | I12: 7.95 | J12: 7.95
A13: IC | B13: IC6 | C13: LM13700 | D13: 1 | E13: DIL16 | F13: LM13700N | G13: Mouser | H13: 926-LM13700N/NOPB | I13: 1.82 | J13: 1.82
A14: IC | B14: IC4 | C14: LM319 | D14: 1 | E14: DIL14 | F14: LM319N | G14: Mouser | H14: 512-LM319N | I14: 0.498 | J14: 0.498
A15: IC | B15: IC8 | C15: NE5532 | D15: 1 | E15: DIL8 | F15: NE5532AP | G15: Mouser | H15: 595-NE5532AP | I15: 0.814 | J15: 0.814
A16: Ceramic | B16: C9 | C16: 22 pF | D16: 1 | E16: RM2.5 | F16: K220J15C0GF53L2 | G16: Mouser | H16: 594-K220J15C0GF53L2 | I16: 0.271 | J16: 0.271
A17: Ceramic | B17: C1, C6, C17 | C17: 100 pF | D17: 3 | E17: RM2.5 | F17: K101J15C0GF53L2 | G17: Mouser | H17: 594-K101J15C0GF53L2 | I17: 0.087 | J17: 0.261
A18: Ceramic | B18: C16 | C18: 220 pF | D18: 1 | E18: RM2.5/RM5.0 | F18: C315C221M5R5TA | G18: Mouser | H18: 80-C315C221M5R | I18: 0.279 | J18: 0.279
A19: Ceramic | B19: C15 | C19: 470 pF | D19: 1 | E19: RM2.5/RM5.0 | F19: K471J15C0GF53L2 | G19: Mouser | H19: 594-K471J15C0GF53L2 | I19: 0.105 | J19: 0.105
A20: Film | B20: C14 | C20: 1 nF | D20: 1 | E20: RM2.5/RM5.0 | F20: R82EC1100AA50K | G20: Mouser | H20: 80-R82EC1100AA50K | I20: 0.21 | J20: 0.21
A21: Film | B21: C13 | C21: 2.2 nF | D21: 1 | E21: RM2.5/RM5.0 | F21: R82EC1220DQ50J | G21: Mouser | H21: 80-R82EC1220DQ50J | I21: 0.262 | J21: 0.262
A22: Film | B22: C12 | C22: 4.7 nF | D22: 1 | E22: RM2.5/RM5.0 | F22: R82EC1470CK50J | G22: Mouser | H22: 80-R82EC1470CK50J | I22: 0.253 | J22: 0.253
A24: Film | B24: C11 | C24: 10 nF | D24: =IF(B24<>"",LEN(B24)-LEN(SUBSTITUTE(B24,",",""))+1,"") -> 1 | E24: RM2.5/RM5.0 | F24: R82EC2100AA50J | G24: Mouser | H24: 80-R82EC2100AA50J | I24: 0.218 | J24: =I24*D24 -> 0.218
A25: Film | B25: C10 | C25: 22 nF | D25: =IF(B25<>"",LEN(B25)-LEN(SUBSTITUTE(B25,",",""))+1,"") -> 1 | E25: RM2.5/RM5.0 | F25: R82EC2220AA50J | G25: Mouser | H25: 80-R82EC2220AA50J | I25: 0.218 | J25: 0.218
A26: Film | B26: C5 | C26: 47 nF | D26: =IF(B26<>"",LEN(B26)-LEN(SUBSTITUTE(B26,",",""))+1,"") -> 1 | E26: RM2.5/RM5.0 | F26: R82EC2470AA60J | G26: Mouser | H26: 80-R82EC2470AA60J | I26: 0.218 | J26: 0.218
A27: Film | B27: C3, C8 | C27: 100 nF | D27: =IF(B27<>"",LEN(B27)-LEN(SUBSTITUTE(B27,",",""))+1,"") -> 2 | E27: RM2.5/RM5.0 | F27: R82EC3100AA70J | G27: Mouser | H27: 80-R82EC3100AA70J | I27: 0.141 | J27: 0.282
A28: Ceramic | B28: C2, C22, C23, C26, C27, C28, C29, C32, C33, C34, C35, C38, C39, C42, C43 | C28: 100 nF | D28: 15 | E28: SMD (1206 or 0805) | F28: C1206C104K5RACTU | G28: Mouser | H28: 80-C1206C104K5R | I28: 0.024 | J28: 0.36
A29: Film | B29: C4 | C29: 1 µF | D29: 1 | E29: RM2.5/RM5.0 | F29: R82DC4100Z360K | G29: Mouser | H29: 80-R82DC4100Z360K | I29: 0.279 | J29: 0.279
A30: Electrolytic | B30: C7 | C30: 2.2 µF/25 V, max. ⌀ 5 mm | D30: 1 | E30: RM2.0 | F30: Würth 860020672006 | G30: Mouser | H30: 710-860020672006 | I30: 0.1 | J30: =I30*D30 -> 0.1
A31: Electrolytic | B31: C20, C21, C24, C25, C30, C31, C36, C37, C40, C41 | C31: 47 µF/35 V, max. ⌀ 5 mm | D31: 10 | E31: RM2.0 | F31: Würth 860010572005 | G31: Mouser | H31: 710-860010572005 | I31: 0.071 | J31: 0.71
A32: Tempco | B32: R7 | C32: 2 kΩ, 3300 ppm/°C | D32: =IF(B32<>"",LEN(B32)-LEN(SUBSTITUTE(B32,",",""))+1,"") -> 1 | G32: Thonk | H32: tempco | I32: 1.61 | J32: =I32*D32 -> 1.61 | K32: Akaneohm
A33: Resistor | B33: R8, R69, R70, R71, R72, R73, R74, R75, R76, R77, R78, R82, R83 | C33: 47 Ω, 250 mW | D33: 13 | E33: 0204/0207 | F33: LR0204F47R | G33: Farnell | H33: 2329945 | I33: 0.0408 | J33: 0.5304
A34: Resistor | B34: R41 | C34: 430 Ω | D34: 1 | E34: 0204/0207 | F34: LR0204F430R | G34: Farnell | H34: 2329938 | I34: 0.0372 | J34: 0.0372
A35: Resistor | B35: R40 | C35: 470 Ω | D35: 1 | E35: 0204/0207 | F35: LR0204F470R | G35: Farnell | H35: 2329942 | I35: 0.0353 | J35: 0.0353
A36: Resistor | B36: R9 | C36: 820 Ω | D36: 1 | E36: 0204/0207 | F36: LR0204F820R | G36: Farnell | H36: 2329976 | I36: 0.0771 | J36: 0.0771
A37: Resistor | B37: R34 | C37: 1 kΩ | D37: 1 | E37: 0204/0207 | F37: LR0204F1K0 | G37: Farnell | H37: 2329885 | I37: 0.0771 | J37: 0.0771
A38: Resistor | B38: R6, R11 | C38: 2.2 kΩ | D38: =IF(B38<>"",LEN(B38)-LEN(SUBSTITUTE(B38,",",""))+1,"") -> 2 | E38: 0204/0207 | F38: LR0204F2K2 | G38: Farnell | H38: 2329912 | I38: 0.0771 | J38: 0.1542
A39: Resistor | B39: R60, R81 | C39: 3.3 kΩ | D39: =IF(B39<>"",LEN(B39)-LEN(SUBSTITUTE(B39,",",""))+1,"") -> 2 | E39: 0204/0207 | F39: LR0204F3K3 | G39: Farnell | H39: 2329934 | I39: 0.036 | J39: 0.072
A40: Resistor | B40: R33, R44, R46, R59 | C40: 4.7 kΩ | D40: 4 | E40: 0204/0207 | F40: LR0204F4K7 | G40: Farnell | H40: 2329947 | I40: 0.036 | J40: 0.144
A41: Resistor | B41: R36, R37 | C41: 5.6 kΩ | D41: 2 | E41: 0204/0207 | F41: LR0204F5K6 | G41: Farnell | H41: 2329958 | I41: 0.036 | J41: 0.072
A42: Resistor | B42: R58 | C42: 10 kΩ | D42: 1 | E42: 0204/0207 | F42: LR0204F10K | G42: Farnell | H42: 2329855 | I42: 0.034 | J42: 0.034
A43: Resistor | B43: R42 | C43: 12 kΩ | D43: =IF(B43<>"",LEN(B43)-LEN(SUBSTITUTE(B43,",",""))+1,"") -> 1 | E43: 0204/0207 | F43: LR0204F12K | G43: Farnell | H43: 2329863 | I43: 0.036 | J43: =I43*D43 -> 0.036
A44: Resistor | B44: R35, R43 | C44: 15 kΩ | D44: 2 | E44: 0204/0207 | F44: LR0204F15K | G44: Farnell | H44: 2329873 | I44: 0.0353 | J44: 0.0706
A45: Resistor | B45: R27, R28, R29 | C45: 18 kΩ | D45: 3 | E45: 0204/0207 | F45: LR0204F18K | G45: Farnell | H45: 2329882 | I45: 0.036 | J45: 0.108
A46: Resistor | B46: R57 | C46: 22 kΩ | D46: 1 | E46: 0204/0207 | F46: LR0204F22K | G46: Farnell | H46: 2329901 | I46: 0.036 | J46: 0.036
A47: Resistor | B47: R50 | C47: 24 kΩ | D47: 1 | E47: 0204/0207 | F47: LR0204F24K | G47: Farnell | H47: 2329904 | I47: 0.036 | J47: 0.036
A48: Resistor | B48: R17 | C48: 33 kΩ | D48: 1 | E48: 0204/0207 | F48: LR0204F33K | G48: Farnell | H48: 2329922 | I48: 0.0353 | J48: 0.0353
A49: Resistor | B49: R30 | C49: 36 kΩ | D49: 1 | E49: 0204/0207 | F49: LR0204F36K | G49: Farnell | H49: 2329927 | I49: 0.036 | J49: 0.036
A50: Resistor | B50: R19, R47, R56 | C50: 47 kΩ | D50: 3 | E50: 0204/0207 | F50: LR0204F47K | G50: Farnell | H50: 2329944 | I50: 0.027 | J50: 0.081
A51: Resistor | B51: R14 | C51: 56 kΩ | D51: 1 | E51: 0204/0207 | F51: LR0204F56K | G51: Farnell | H51: 2329954 | I51: 0.0353 | J51: 0.0353
A52: Resistor | B52: R65 | C52: 62 kΩ | D52: =IF(B52<>"",LEN(B52)-LEN(SUBSTITUTE(B52,",",""))+1,"") -> 1 | E52: 0204/0207 | F52: LR0204F62K | G52: Farnell | H52: 2329961 | I52: 0.0771 | J52: =I52*D52 -> 0.0771
A53: Resistor | B53: R1, R2, R5, R16, R18, R21, R22, R23, R55, R61, R62, R63, R64, R80 | C53: 100 kΩ | D53: 14 | E53: 0204/0207 | F53: LR0204F100K | G53: Farnell | H53: 2329853 | I53: 0.0265 | J53: 0.371
A54: Resistor | B54: R4, R20, R31 | C54: 150 kΩ | D54: 3 | E54: 0204/0207 | F54: LR0204F150K | G54: Farnell | H54: 2329871 | I54: 0.036 | J54: =I54*D54 -> 0.108
A55: Resistor | B55: R12, R32, R54 | C55: 220 kΩ | D55: =IF(B55<>"",LEN(B55)-LEN(SUBSTITUTE(B55,",",""))+1,"") -> 3 | E55: 0204/0207 | F55: LR0204F220K | G55: Farnell | H55: 2329899 | I55: 0.036 | J55: 0.108
A56: Resistor | B56: R15 | C56: 330 kΩ | D56: 1 | E56: 0204/0207 | F56: MFR3-330KFC | G56: Farnell | H56: 1565303 | I56: 0.0425 | J56: 0.0425
A57: Resistor | B57: R13 | C57: 390 kΩ | D57: =IF(B57<>"",LEN(B57)-LEN(SUBSTITUTE(B57,",",""))+1,"") -> 1 | E57: 0204/0207 | F57: LR0204F390K | G57: Farnell | H57: 2329929 | I57: 0.036 | J57: 0.036
A58: Resistor | B58: R53 | C58: 470 kΩ | D58: =IF(B58<>"",LEN(B58)-LEN(SUBSTITUTE(B58,",",""))+1,"") -> 1 | E58: 0204/0207 | F58: LR0204F470K | G58: Farnell | H58: 2329941 | I58: 0.036 | J58: 0.036
A59: Resistor | B59: R24 | C59: 820 kΩ | D59: =IF(B59<>"",LEN(B59)-LEN(SUBSTITUTE(B59,",",""))+1,"") -> 1 | E59: 0204/0207 | F59: MRS25000C8203FCT00 | G59: Farnell | H59: 9470239 | I59: 0.091 | J59: 0.091
A60: Resistor | B60: R25, R26, R38, R39, R45, R48, R49, R51, R52 | C60: 1 MΩ | D60: 9 | E60: 0204/0207 | F60: LR0204F1M0 | G60: Farnell | H60: 2329894 | I60: 0.0353 | J60: 0.3177
A61: Resistor | B61: R10, R79 | C61: 1.5 MΩ | D61: =IF(B61<>"",LEN(B61)-LEN(SUBSTITUTE(B61,",",""))+1,"") -> 2 | E61: 0204/0207 | F61: MRS25000C1504FCT00 | G61: Farnell | H61: 9465537 | I61: 0.0524 | J61: 0.1048
A62: Resistor | B62: R3 | C62: 6.8 MΩ | D62: 1 | E62: 0204/0207 | F62: MRS25000C6804FCT00 | G62: Farnell | H62: 9469842 | I62: 0.0529 | J62: 0.0529
A63: Potentiometer | B63: P1, P2 | C63: 100 kΩ lin, Alpha 9 mm, right angled (side adjust) | D63: =IF(B63<>"",LEN(B63)-LEN(SUBSTITUTE(B63,",",""))+1,"") -> 2 | F63: RD901F-20-15R1-B100K | G63: Small Bear (US) or Thonk (EU) | H63: 100k-lin-single | I63: 1.38 | J63: =I63*D63 -> 2.76
A64: Potentiometer | B64: P3, P4 | C64: 100 kΩ log, Alpha 9 mm, right angled (side adjust) | D64: =IF(B64<>"",LEN(B64)-LEN(SUBSTITUTE(B64,",",""))+1,"") -> 2 | F64: RD901F-20-15R1-A100K | G64: Small Bear (US) or Thonk (EU) | H64: 100k-log-single | I64: 1.17 | J64: =I64*D64 -> 2.34
A65: Trimmer, multi-turn | B65: TR1, TR3 | C65: 100 Ω | D65: 2 | F65: T93XA101KT20 | G65: Mouser | H65: 72-T93XA-100 | I65: 1.56 | J65: 3.12
A66: Trimmer, multi-turn | B66: TR2 | C66: 2.2 kΩ | D66: 1 | F66: T93XA202KT20 | G66: Mouser | H66: 72-T93XA-2K | I66: 1.48 | J66: 1.48
A67: Trimmer, multi-turn | B67: TR4 | C67: 100 kΩ | D67: 1 | F67: T93XA104KT20 | G67: Mouser | H67: 72-T93XA-100K | I67: 1.23 | J67: 1.23
A68: Trimmer | B68: TR5 | C68: 10 kΩ | D68: 1 | F68: PT 10 LH 10K | G68: Mouser | H68: 531-PT10H-10K | I68: 0.518 | J68: 0.518
A69: Trimmer | B69: TR6, TR7, TR8, TR9 | C69: 100 kΩ | D69: 4 | F69: PT 10 LH 100K | G69: Mouser | H69: 531-PT10H-100K | I69: 0.508 | J69: 2.032
A70: Trimmer | B70: TR10 | C70: 250 kΩ | D70: 1 | F70: PT 10 LH 250K | G70: Mouser | H70: 531-PT10H-250K | I70: 0.508 | J70: 0.508
A71: Jack | B71: CV-IN | C71: 3.5 mm jack | D71: =IF(B71<>"",LEN(B71)-LEN(SUBSTITUTE(B71,",",""))+1,"") -> 1 | F71: CL13845G | G71: Farnell | H71: 2766196 | I71: 1.26 | J71: 2.2
A72: Connector | B72: 2x | C72: 2x2 board-to-board connector, angled, RM2.54 mm | D72: 2 | F72: Würth 61300421021 | G72: Mouser | H72: 710-61300421021 | I72: 0.39 | J72: =I72*D72 -> 0.78
A73: Connector | B73: VUV-NSE, AGC, EXC-OUT, MIX-IN1, MIX-IN2 | C73: Wire-to-board connector, 2-pin | D73: =IF(B73<>"",LEN(B73)-LEN(SUBSTITUTE(B73,",",""))+1,"") -> 5 | F73: S2B-EH(LF)(SN) | G73: Farnell | H73: 2481437 | I73: 0.0682 | J73: 0.341
A74: Connector | B74: SUPPLY, NOISE-SRC | C74: Wire-to-board connector, 3-pin | D74: 2 | F74: S3B-EH(LF)(SN) | G74: Farnell | H74: 2481438 | I74: 0.0986 | J74: 0.1972
A75: Connector | B75: =CONCATENATE(D75, "x") -> 5x | C75: EHR-2 | D75: =D73 -> 5 | F75: EHR-2 | G75: Farnell | H75: 2481434 | I75: 0.0312 | J75: 0.156
A76: Connector | B76: =CONCATENATE(D76, "x") -> 2x | C76: EHR-3 | D76: =D74 -> 2 | F76: EHR-3 | G76: Farnell | H76: 2399175 | I76: 0.0345 | J76: 0.069
A77: Connector | B77: =CONCATENATE(D77, "x") -> 16x | C77: SEH-001T-P0.6 | D77: =D75*2+D76*3 -> 16 | F77: SEH-001T-P0.6 | G77: Farnell | H77: 1863249 | I77: 0.0244 | J77: 0.3904
A78: Connector | B78: 2x | C78: Jumper | D78: 2 | F78: M7582-05 | G78: Mouser | H78: 855-M7582-05 | I78: 0.097 | J78: 0.194
A79: IC Socket | B79: IC1, IC8 | C79: 8 pins | D79: =IF(B79<>"",LEN(B79)-LEN(SUBSTITUTE(B79,",",""))+1,"") -> 2 | F79: 110-99-308-41-001000 | G79: Mouser | H79: 575-199308 | I79: 0.38 | J79: =I79*D79 -> 0.76
A80: IC Socket | B80: IC2, IC3, IC4, IC5, IC7 | C80: 14 pins | D80: =IF(B80<>"",LEN(B80)-LEN(SUBSTITUTE(B80,",",""))+1,"") -> 5 | F80: 110-99-314-41-001000 | G80: Mouser | H80: 575-199314 | I80: 0.493 | J80: 2.465
A81: IC Socket | B81: IC6 | C81: 16 pins | D81: =IF(B81<>"",LEN(B81)-LEN(SUBSTITUTE(B81,",",""))+1,"") -> 1 | F81: 110-99-316-41-001000 | G81: Mouser | H81: 575-199316 | I81: 0.428 | J81: 0.428
A82: Misc | B82: AGCO, GND, PNK, SAW, WHT, SQR | C82: Solder pins, ⌀ 1 mm | D82: =IF(B82<>"",LEN(B82)-LEN(SUBSTITUTE(B82,",",""))+1,"") -> 6 | F82: Vogt 1364A.68 | G82: Conrad | H82: 736018 - 62 | I82: 0.0259 | J82: =I82*D82 -> 0.1554
J84: =SUM(J5:J82) -> 45.3175 | K84: total

Sheet Internal exc. (right)
A1: Note: this board is populated with the mixing circuitry, so it's different from its sibling "Internal exc. (left)"
A4: Type | B4: Designator | C4: Identifier | D4: Count | E4: Body type | F4: Suggested product | G4: Distributor | H4: Order # | I4: Individual price | J4: Total price | K4: Remarks
A5: Diode | B5: D1, D2 | C5: 1N4148 | D5: =IF(B5<>"",LEN(B5)-LEN(SUBSTITUTE(B5,",",""))+1,"") -> 2 | E5: DO-35 | F5: 1N4148 | G5: Mouser | H5: 512-1N4148 | I5: 0.018 | J5: =I5*D5 -> 0.036
A6: JFET | B6: J1 | C6: J105 | D6: =IF(B6<>"",LEN(B6)-LEN(SUBSTITUTE(B6,",",""))+1,"") -> 1 | E6: TO-92 | F6: J105 | G6: Mouser | H6: 512-J105 | I6: 0.553 | J6: =I6*D6 -> 0.553
A7: JFET | B7: J2, J3, J4, J5 | C7: J113 | D7: =IF(B7<>"",LEN(B7)-LEN(SUBSTITUTE(B7,",",""))+1,"") -> 4 | E7: TO-92 | F7: J113 | G7: Mouser | H7: 512-J113 | I7: 0.249 | J7: =I7*D7 -> 0.996
A8: Transistor | B8: T1, T2 | C8: 2N3904 | D8: =IF(B8<>"",LEN(B8)-LEN(SUBSTITUTE(B8,",",""))+1,"") -> 2 | E8: TO-92 | F8: 2N3904BU | G8: Mouser | H8: 512-2N3904BU | I8: 0.051 | J8: 0.102
A9: Transistor | B9: T3 | C9: 2N3906 | D9: 1 | E9: TO-92 | F9: 2N3906BU | G9: Mouser | H9: 512-2N3906BU | I9: 0.236 | J9: 0.236
A10: IC | B10: IC1 | C10: TL072 | D10: =IF(B10<>"",LEN(B10)-LEN(SUBSTITUTE(B10,",",""))+1,"") -> 1 | E10: DIL8 | F10: TL072IP | G10: Mouser | H10: 595-TL072IP | I10: 0.594 | J10: =I10*D10 -> 0.594
A11: IC | B11: IC3, IC5, IC7 | C11: TL074 | D11: 3 | E11: DIL14 | F11: TL074CN | G11: Mouser | H11: 595-TL074CN | I11: 0.468 | J11: 1.404
A12: IC | B12: IC2 | C12: THAT300 | D12: 1 | E12: DIL14 | F12: THAT300P14-U | G12: Mouser | H12: 887-300P14-U | I12: 7.95 | J12: 7.95
A13: IC | B13: IC6 | C13: LM13700 | D13: 1 | E13: DIL16 | F13: LM13700N | G13: Mouser | H13: 926-LM13700N/NOPB | I13: 1.82 | J13: 1.82
A14: IC | B14: IC4 | C14: LM319 | D14: 1 | E14: DIL14 | F14: LM319N | G14: Mouser | H14: 512-LM319N | I14: 0.498 | J14: 0.498
A15: IC | B15: IC8 | C15: NE5532 | D15: 1 | E15: DIL8 | F15: NE5532AP | G15: Mouser | H15: 595-NE5532AP | I15: 0.814 | J15: 0.814
A16: Ceramic | B16: C9 | C16: 22 pF | D16: 1 | E16: RM2.5 | F16: K220J15C0GF53L2 | G16: Mouser | H16: 594-K220J15C0GF53L2 | I16: 0.271 | J16: 0.271
A17: Ceramic | B17: C1, C6, C17 | C17: 100 pF | D17: 3 | E17: RM2.5 | F17: K101J15C0GF53L2 | G17: Mouser | H17: 594-K101J15C0GF53L2 | I17: 0.087 | J17: 0.261
A18: Ceramic | B18: C16 | C18: 220 pF | D18: 1 | E18: RM2.5/RM5.0 | F18: C315C221M5R5TA | G18: Mouser | H18: 80-C315C221M5R | I18: 0.279 | J18: 0.279
A19: Ceramic | B19: C15 | C19: 470 pF | D19: 1 | E19: RM2.5/RM5.0 | F19: K471J15C0GF53L2 | G19: Mouser | H19: 594-K471J15C0GF53L2 | I19: 0.105 | J19: 0.105
A20: Film | B20: C14 | C20: 1 nF | D20: 1 | E20: RM2.5/RM5.0 | F20: R82EC1100AA50K | G20: Mouser | H20: 80-R82EC1100AA50K | I20: 0.21 | J20: 0.21
A21: Film | B21: C13 | C21: 2.2 nF | D21: 1 | E21: RM2.5/RM5.0 | F21: R82EC1220DQ50J | G21: Mouser | H21: 80-R82EC1220DQ50J | I21: 0.262 | J21: 0.262
A22: Film | B22: C12 | C22: 4.7 nF | D22: 1 | E22: RM2.5/RM5.0 | F22: R82EC1470CK50J | G22: Mouser | H22: 80-R82EC1470CK50J | I22: 0.253 | J22: 0.253
A23: Ceramic | B23: C18 | C23: 10 nF | D23: =IF(B23<>"",LEN(B23)-LEN(SUBSTITUTE(B23,",",""))+1,"") -> 1 | E23: RM2.5 | F23: K103K15X7RF53L2 | G23: Mouser | H23: 594-K103K15X7RF53L2 | I23: 0.314 | J23: =I23*D23 -> 0.314
A24: Film | B24: C11 | C24: 10 nF | D24: 1 | E24: RM2.5/RM5.0 | F24: R82EC2100AA50J | G24: Mouser | H24: 80-R82EC2100AA50J | I24: 0.218 | J24: 0.218
A25: Film | B25: C10 | C25: 22 nF | D25: 1 | E25: RM2.5/RM5.0 | F25: R82EC2220AA50J | G25: Mouser | H25: 80-R82EC2220AA50J | I25: 0.218 | J25: 0.218
A26: Film | B26: C5 | C26: 47 nF | D26: 1 | E26: RM2.5/RM5.0 | F26: R82EC2470AA60J | G26: Mouser | H26: 80-R82EC2470AA60J | I26: 0.218 | J26: 0.218
A27: Film | B27: C3, C8 | C27: 100 nF | D27: 2 | E27: RM2.5/RM5.0 | F27: R82EC3100AA70J | G27: Mouser | H27: 80-R82EC3100AA70J | I27: 0.141 | J27: 0.282
A28: Ceramic | B28: C2, C22, C23, C26, C27, C28, C29, C32, C33, C34, C35, C38, C39, C42, C43 | C28: 100 nF | D28: 15 | E28: SMD (1206 or 0805) | F28: C1206C104K5RACTU | G28: Mouser | H28: 80-C1206C104K5R | I28: 0.024 | J28: 0.36
A29: Film | B29: C4 | C29: 1 µF | D29: 1 | E29: RM2.5/RM5.0 | F29: R82DC4100Z360K | G29: Mouser | H29: 80-R82DC4100Z360K | I29: 0.279 | J29: 0.279
A30: Electrolytic | B30: C7 | C30: 2.2 µF/25 V, max. ⌀ 5 mm | D30: 1 | E30: RM2.0 | F30: Würth 860020672006 | G30: Mouser | H30: 710-860020672006 | I30: 0.1 | J30: 0.1
A31: Electrolytic | B31: C20, C21, C24, C25, C30, C31, C36, C37, C40, C41 | C31: 47 µF/35 V, max. ⌀ 5 mm | D31: 10 | E31: RM2.0 | F31: Würth 860010572005 | G31: Mouser | H31: 710-860010572005 | I31: 0.071 | J31: 0.71
A32: Tempco | B32: R7 | C32: 2 kΩ, 3300 ppm/°C | D32: =IF(B32<>"",LEN(B32)-LEN(SUBSTITUTE(B32,",",""))+1,"") -> 1 | G32: Thonk | H32: tempco | I32: 1.61 | J32: 1.61 | K32: Akaneohm
A33: Resistor | B33: R8, R69, R70, R71, R72, R73, R74, R75, R76, R77, R78, R82, R83 | C33: 47 Ω, 250 mW | D33: 13 | E33: 0204/0207 | F33: LR0204F47R | G33: Farnell | H33: 2329945 | I33: 0.0408 | J33: 0.5304
A34: Resistor | B34: R41 | C34: 430 Ω | D34: 1 | E34: 0204/0207 | F34: LR0204F430R | G34: Farnell | H34: 2329938 | I34: 0.0372 | J34: 0.0372
A35: Resistor | B35: R40 | C35: 470 Ω | D35: 1 | E35: 0204/0207 | F35: LR0204F470R | G35: Farnell | H35: 2329942 | I35: 0.0353 | J35: 0.0353
A36: Resistor | B36: R9 | C36: 820 Ω | D36: 1 | E36: 0204/0207 | F36: LR0204F820R | G36: Farnell | H36: 2329976 | I36: 0.0771 | J36: 0.0771
A37: Resistor | B37: R34 | C37: 1 kΩ | D37: 1 | E37: 0204/0207 | F37: LR0204F1K0 | G37: Farnell | H37: 2329885 | I37: 0.0771 | J37: 0.0771
A38: Resistor | B38: R6, R11 | C38: 2.2 kΩ | D38: =IF(B38<>"",LEN(B38)-LEN(SUBSTITUTE(B38,",",""))+1,"") -> 2 | E38: 0204/0207 | F38: LR0204F2K2 | G38: Farnell | H38: 2329912 | I38: 0.0771 | J38: 0.1542
A39: Resistor | B39: R60, R81 | C39: 3.3 kΩ | D39: =IF(B39<>"",LEN(B39)-LEN(SUBSTITUTE(B39,",",""))+1,"") -> 2 | E39: 0204/0207 | F39: LR0204F3K3 | G39: Farnell | H39: 2329934 | I39: 0.036 | J39: 0.072
A40: Resistor | B40: R33, R44, R46, R59 | C40: 4.7 kΩ | D40: 4 | E40: 0204/0207 | F40: LR0204F4K7 | G40: Farnell | H40: 2329947 | I40: 0.036 | J40: 0.144
A41: Resistor | B41: R36, R37 | C41: 5.6 kΩ | D41: 2 | E41: 0204/0207 | F41: LR0204F5K6 | G41: Farnell | H41: 2329958 | I41: 0.036 | J41: 0.072
A42: Resistor | B42: R58 | C42: 10 kΩ | D42: 1 | E42: 0204/0207 | F42: LR0204F10K | G42: Farnell | H42: 2329855 | I42: 0.034 | J42: 0.034
A43: Resistor | B43: R42 | C43: 12 kΩ | D43: =IF(B43<>"",LEN(B43)-LEN(SUBSTITUTE(B43,",",""))+1,"") -> 1 | E43: 0204/0207 | F43: LR0204F12K | G43: Farnell | H43: 2329863 | I43: 0.036 | J43: =I43*D43 -> 0.036
A44: Resistor | B44: R35, R43 | C44: 15 kΩ | D44: 2 | E44: 0204/0207 | F44: LR0204F15K | G44: Farnell | H44: 2329873 | I44: 0.0353 | J44: 0.0706
A45: Resistor | B45: R27, R28, R29 | C45: 18 kΩ | D45: 3 | E45: 0204/0207 | F45: LR0204F18K | G45: Farnell | H45: 2329882 | I45: 0.036 | J45: 0.108
A46: Resistor | B46: R57 | C46: 22 kΩ | D46: 1 | E46: 0204/0207 | F46: LR0204F22K | G46: Farnell | H46: 2329901 | I46: 0.036 | J46: 0.036
A47: Resistor | B47: R50 | C47: 24 kΩ | D47: 1 | E47: 0204/0207 | F47: LR0204F24K | G47: Farnell | H47: 2329904 | I47: 0.036 | J47: 0.036
A48: Resistor | B48: R17 | C48: 33 kΩ | D48: 1 | E48: 0204/0207 | F48: LR0204F33K | G48: Farnell | H48: 2329922 | I48: 0.0353 | J48: 0.0353
A49: Resistor | B49: R30 | C49: 36 kΩ | D49: 1 | E49: 0204/0207 | F49: LR0204F36K | G49: Farnell | H49: 2329927 | I49: 0.036 | J49: 0.036
A50: Resistor | B50: R19, R47, R56 | C50: 47 kΩ | D50: 3 | E50: 0204/0207 | F50: LR0204F47K | G50: Farnell | H50: 2329944 | I50: 0.027 | J50: 0.081
A51: Resistor | B51: R14 | C51: 56 kΩ | D51: 1 | E51: 0204/0207 | F51: LR0204F56K | G51: Farnell | H51: 2329954 | I51: 0.0353 | J51: 0.0353
A52: Resistor | B52: R65 | C52: 62 kΩ | D52: =IF(B52<>"",LEN(B52)-LEN(SUBSTITUTE(B52,",",""))+1,"") -> 1 | E52: 0204/0207 | F52: LR0204F62K | G52: Farnell | H52: 2329961 | I52: 0.0771 | J52: =I52*D52 -> 0.0771
A53: Resistor | B53: R1, R2, R5, R16, R18, R21, R22, R23, R55, R61, R62, R63, R64, R80 | C53: 100 kΩ | D53: 14 | E53: 0204/0207 | F53: LR0204F100K | G53: Farnell | H53: 2329853 | I53: 0.0265 | J53: 0.371
A54: Resistor | B54: R4, R20, R31 | C54: 150 kΩ | D54: 3 | E54: 0204/0207 | F54: LR0204F150K | G54: Farnell | H54: 2329871 | I54: 0.036 | J54: 0.108
A55: Resistor | B55: R12, R32, R54, R66, R67, R68 | C55: 220 kΩ | D55: =IF(B55<>"",LEN(B55)-LEN(SUBSTITUTE(B55,",",""))+1,"") -> 6 | E55: 0204/0207 | F55: LR0204F220K | G55: Farnell | H55: 2329899 | I55: 0.036 | J55: 0.216
A56: Resistor | B56: R15 | C56: 330 kΩ | D56: 1 | E56: 0204/0207 | F56: MFR3-330KFC | G56: Farnell | H56: 1565303 | I56: 0.0425 | J56: 0.0425
A57: Resistor | B57: R13 | C57: 390 kΩ | D57: =IF(B57<>"",LEN(B57)-LEN(SUBSTITUTE(B57,",",""))+1,"") -> 1 | E57: 0204/0207 | F57: LR0204F390K | G57: Farnell | H57: 2329929 | I57: 0.036 | J57: 0.036
A58: Resistor | B58: R53 | C58: 470 kΩ | D58: =IF(B58<>"",LEN(B58)-LEN(SUBSTITUTE(B58,",",""))+1,"") -> 1 | E58: 0204/0207 | F58: LR0204F470K | G58: Farnell | H58: 2329941 | I58: 0.036 | J58: =I58*D58 -> 0.036
A59: Resistor | B59: R24 | C59: 820 kΩ | D59: =IF(B59<>"",LEN(B59)-LEN(SUBSTITUTE(B59,",",""))+1,"") -> 1 | E59: 0204/0207 | F59: MRS25000C8203FCT00 | G59: Farnell | H59: 9470239 | I59: 0.091 | J59: 0.091
A60: Resistor | B60: R25, R26, R38, R39, R45, R48, R49, R51, R52 | C60: 1 MΩ | D60: 9 | E60: 0204/0207 | F60: LR0204F1M0 | G60: Farnell | H60: 2329894 | I60: 0.0353 | J60: 0.3177
A61: Resistor | B61: R10, R79 | C61: 1.5 MΩ | D61: 2 | E61: 0204/0207 | F61: MRS25000C1504FCT00 | G61: Farnell | H61: 9465537 | I61: 0.0524 | J61: 0.1048
A62: Resistor | B62: R3 | C62: 6.8 MΩ | D62: 1 | E62: 0204/0207 | F62: MRS25000C6804FCT00 | G62: Farnell | H62: 9469842 | I62: 0.0529 | J62: 0.0529
A63: Potentiometer | B63: P1, P2 | C63: 100 kΩ lin, Alpha 9 mm, right angled (side adjust) | D63: =IF(B63<>"",LEN(B63)-LEN(SUBSTITUTE(B63,",",""))+1,"") -> 2 | F63: RD901F-20-15R1-B100K | G63: Small Bear (US) or Thonk (EU) | H63: 100k-lin-single | I63: 1.38 | J63: =I63*D63 -> 2.76
A64: Potentiometer | B64: P3, P4 | C64: 100 kΩ log, Alpha 9 mm, right angled (side adjust) | D64: =IF(B64<>"",LEN(B64)-LEN(SUBSTITUTE(B64,",",""))+1,"") -> 2 | F64: RD901F-20-15R1-A100K | G64: Small Bear (US) or Thonk (EU) | H64: 100k-log-single | I64: 1.17 | J64: =I64*D64 -> 2.34
A65: Trimmer, multi-turn | B65: TR1, TR3 | C65: 100 Ω | D65: 2 | F65: T93XA101KT20 | G65: Mouser | H65: 72-T93XA-100 | I65: 1.56 | J65: 3.12
A66: Trimmer, multi-turn | B66: TR2 | C66: 2.2 kΩ | D66: 1 | F66: T93XA202KT20 | G66: Mouser | H66: 72-T93XA-2K | I66: 1.48 | J66: 1.48
A67: Trimmer, multi-turn | B67: TR4 | C67: 100 kΩ | D67: 1 | F67: T93XA104KT20 | G67: Mouser | H67: 72-T93XA-100K | I67: 1.23 | J67: 1.23
A68: Trimmer | B68: TR5 | C68: 10 kΩ | D68: 1 | F68: PT 10 LH 10K | G68: Mouser | H68: 531-PT10H-10K | I68: 0.518 | J68: 0.518
A69: Trimmer | B69: TR6, TR7, TR8, TR9 | C69: 100 kΩ | D69: 4 | F69: PT 10 LH 100K | G69: Mouser | H69: 531-PT10H-100K | I69: 0.508 | J69: 2.032
A70: Trimmer | B70: TR10 | C70: 250 kΩ | D70: 1 | F70: PT 10 LH 250K | G70: Mouser | H70: 531-PT10H-250K | I70: 0.508 | J70: 0.508
A71: Jack | B71: CV-IN | C71: 3.5 mm jack | D71: =IF(B71<>"",LEN(B71)-LEN(SUBSTITUTE(B71,",",""))+1,"") -> 1 | F71: CL13845G | G71: Farnell | H71: 2766196 | I71: 1.26 | J71: 1.26
A72: Connector | B72: 2x | C72: 2x2 board-to-board connector, angled, RM2.54 mm | D72: 2 | F72: Würth 61300421021 | G72: Mouser | H72: 710-61300421021 | I72: 0.39 | J72: =I72*D72 -> 0.78
A73: Connector | B73: VUV-NSE, AGC, EXC-OUT, MIX-SW, MIX-OUT1, MIX-OUT2 | C73: Wire-to-board connector, 2-pin | D73: =IF(B73<>"",LEN(B73)-LEN(SUBSTITUTE(B73,",",""))+1,"") -> 6 | F73: S2B-EH(LF)(SN) | G73: Farnell | H73: 2481437 | I73: 0.0682 | J73: 0.4092
A74: Connector | B74: SUPPLY, NOISE-SRC | C74: Wire-to-board connector, 3-pin | D74: 2 | F74: S3B-EH(LF)(SN) | G74: Farnell | H74: 2481438 | I74: 0.0986 | J74: 0.1972
A75: Connector | B75: =CONCATENATE(D75, "x") -> 6x | C75: EHR-2 | D75: =D73 -> 6 | F75: EHR-2 | G75: Farnell | H75: 2481434 | I75: 0.0312 | J75: 0.1872
A76: Connector | B76: =CONCATENATE(D76, "x") -> 2x | C76: EHR-3 | D76: =IF(B74<>"",LEN(B74)-LEN(SUBSTITUTE(B74,",",""))+1,"") -> 2 | F76: EHR-3 | G76: Farnell | H76: 2399175 | I76: 0.0345 | J76: 0.069
A77: Connector | B77: =CONCATENATE(D77, "x") -> 18x | C77: SEH-001T-P0.6 | D77: =D75*2+D76*3 -> 18 | F77: SEH-001T-P0.6 | G77: Farnell | H77: 1863249 | I77: 0.0244 | J77: 0.4392
A78: Connector | B78: 2x | C78: Jumper | D78: 2 | F78: M7582-05 | G78: Mouser | H78: 855-M7582-05 | I78: 0.097 | J78: 0.194
A79: IC Socket | B79: IC1, IC8 | C79: 8 pins | D79: 2 | F79: 110-99-308-41-001000 | G79: Mouser | H79: 575-199308 | I79: 0.38 | J79: 0.76
A80: IC Socket | B80: IC2, IC3, IC4, IC5, IC7 | C80: 14 pins | D80: 5 | F80: 110-99-314-41-001000 | G80: Mouser | H80: 575-199314 | I80: 0.493 | J80: 2.465
A81: IC Socket | B81: IC6 | C81: 16 pins | D81: 1 | F81: 110-99-316-41-001000 | G81: Mouser | H81: 575-199316 | I81: 0.428 | J81: 0.428
A82: Misc | B82: AGCO, GND, PNK, SAW, WHT, SQR | C82: Solder pins, ⌀ 1 mm | D82: =IF(B82<>"",LEN(B82)-LEN(SUBSTITUTE(B82,",",""))+1,"") -> 6 | F82: Vogt 1364A.68 | G82: Conrad | H82: 736018 - 62 | I82: 0.0259 | J82: =I82*D82 -> 0.1554
J84: =SUM(J5:J82) -> 45.4457 | K84: total

Sheet VUV detector
A4: Type | B4: Designator | C4: Identifier | D4: Count | E4: Body type | F4: Suggested product | G4: Distributor | H4: Order # | I4: Individual price | J4: Total price | K4: Remarks
A5: Diode | B5: D1, D2, D3, D4, D5, D6, D7, D8, D9, D10, D11, D12 | C5: 1N4148 | D5: =IF(B5<>"",LEN(B5)-LEN(SUBSTITUTE(B5,",",""))+1,"") -> 12 | E5: DO-35 | F5: 1N4148 | G5: Mouser | H5: 512-1N4148 | I5: 0.018 | J5: =I5*D5 -> 0.216
A6: JFET | B6: J1, J2, J3, J4 | C6: J113 | D6: =IF(B6<>"",LEN(B6)-LEN(SUBSTITUTE(B6,",",""))+1,"") -> 4 | E6: TO-92 | F6: J113 | G6: Mouser | H6: 512-J113 | I6: 0.249 | J6: =I6*D6 -> 0.996
A7: Transistor | B7: T1, T2 | C7: 2N3904 | D7: =IF(B7<>"",LEN(B7)-LEN(SUBSTITUTE(B7,",",""))+1,"") -> 2 | E7: TO-92 | F7: 2N3904BU | G7: Mouser | H7: 512-2N3904BU | I7: 0.051 | J7: 0.102
A8: IC | B8: IC1 | C8: TL072 | D8: =IF(B8<>"",LEN(B8)-LEN(SUBSTITUTE(B8,",",""))+1,"") -> 1 | E8: DIL8 | F8: TL072IP | G8: Mouser | H8: 595-TL072IP | I8: 0.594 | J8: =I8*D8 -> 0.594
A9: IC | B9: IC2, IC3, IC4, IC5 | C9: TL074 | D9: =IF(B9<>"",LEN(B9)-LEN(SUBSTITUTE(B9,",",""))+1,"") -> 4 | E9: DIL14 | F9: TL074CN | G9: Mouser | H9: 595-TL074CN | I9: 0.468 | J9: =I9*D9 -> 1.872
A10: IC | B10: IC6 | C10: NE5532 | D10: =IF(B10<>"",LEN(B10)-LEN(SUBSTITUTE(B10,",",""))+1,"") -> 1 | E10: DIL8 | F10: NE5532AP | G10: Mouser | H10: 595-NE5532AP | I10: 0.814 | J10: 0.814
A11: IC | B11: IC7 | C11: CD4093 | D11: 1 | E11: DIL14 | F11: CD4093BE | G11: Mouser | H11: 595-CD4093BE | I11: 0.428 | J11: 0.428
A12: IC | B12: IC8 | C12: CD40106 | D12: =IF(B12<>"",LEN(B12)-LEN(SUBSTITUTE(B12,",",""))+1,"") -> 1 | E12: DIL14 | F12: CD40106BE | G12: Mouser | H12: 595-CD40106BE | I12: 0.445 | J12: =I12*D12 -> 0.445
A13: Ceramic | B13: C26, C27 | C13: 100 pF | D13: =IF(B13<>"",LEN(B13)-LEN(SUBSTITUTE(B13,",",""))+1,"") -> 2 | E13: RM2.5 | F13: K101J15C0GF53L2 | G13: Mouser | H13: 594-K101J15C0GF53L2 | I13: 0.087 | J13: =I13*D13 -> 0.174
A14: Ceramic | B14: C22, C23, C24, C25 | C14: 1.5 nF | D14: 4 | E14: RM2.5 | F14: C315C152K1R5TA | G14: Mouser | H14: 80-C315C152K1R | I14: 0.306 | J14: 1.224
A15: Film | B15: C1, C2, C3 | C15: 10 nF | D15: 3 | E15: RM2.5/RM5.0 | F15: R82EC2100AA50J | G15: Mouser | H15: 80-R82EC2100AA50J | I15: 0.218 | J15: 0.654
A16: Ceramic | B16: C4, C5, C6, C7, C8, C9, C10, C11, C12, C13, C14, C15, C16, C17, C18, C19, C20, C21, C30, C31, C34, C35, C38, C39, C40, C41, C42, C43, C44, C45, C47, C48 | C16: 100 nF | D16: 32 | E16: SMD (1206 or 0805) | F16: C1206C104K5RACTU | G16: Mouser | H16: 80-C1206C104K5R | I16: 0.024 | J16: 0.768
A17: Electrolytic | B17: C46 | C17: 22 µF/25 V, max. ⌀ 5 mm | D17: =IF(B17<>"",LEN(B17)-LEN(SUBSTITUTE(B17,",",""))+1,"") -> 1 | E17: RM2.0 | F17: Würth 860010572003 | G17: Mouser | H17: 710-860010572003 | I17: 0.089 | J17: 0.089
A18: Electrolytic | B18: C28, C29, C32, C33 | C18: 47 µF/35 V, max. ⌀ 5 mm | D18: 4 | E18: RM2.0 | F18: Würth 860010572005 | G18: Mouser | H18: 710-860010572005 | I18: 0.071 | J18: 0.284
A19: Electrolytic | B19: C36, C37 | C19: 100 µF/25 V, max. ⌀ 7 mm | D19: =IF(B19<>"",LEN(B19)-LEN(SUBSTITUTE(B19,",",""))+1,"") -> 2 | E19: RM2.5 | F19: Würth 860010473007 | G19: Mouser | H19: 710-860010473007 | I19: 0.111 | J19: =I19*D19 -> 0.222
A20: Resistor | B20: R76, R77, R78, R79, R80, R81, R82 | C20: 47 Ω, 250 mW | D20: =IF(B20<>"",LEN(B20)-LEN(SUBSTITUTE(B20,",",""))+1,"") -> 7 | E20: 0204/0207 | F20: LR0204F47R | G20: Farnell | H20: 2329945 | I20: 0.0408 | J20: 0.2856
A21: Resistor | B21: R49 | C21: 100 Ω | D21: =IF(B21<>"",LEN(B21)-LEN(SUBSTITUTE(B21,",",""))+1,"") -> 1 | E21: 0204/0207 | F21: LR0204F100R | G21: Farnell | H21: 2329854 | I21: 0.036 | J21: =I21*D21 -> 0.036
A22: Resistor | B22: R5, R23 | C22: 1.5 kΩ | D22: =IF(B22<>"",LEN(B22)-LEN(SUBSTITUTE(B22,",",""))+1,"") -> 2 | E22: 0204/0207 | F22: LR0204F1K5 | G22: Farnell | H22: 2329891 | I22: 0.0757 | J22: =I22*D22 -> 0.1514
A23: Resistor | B23: R73, R75 | C23: 2.2 kΩ | D23: =IF(B23<>"",LEN(B23)-LEN(SUBSTITUTE(B23,",",""))+1,"") -> 2 | E23: 0204/0207 | F23: LR0204F2K2 | G23: Farnell | H23: 2329912 | I23: 0.0771 | J23: 0.1542
A24: Resistor | B24: R3 | C24: 3.9 kΩ | D24: =IF(B24<>"",LEN(B24)-LEN(SUBSTITUTE(B24,",",""))+1,"") -> 1 | E24: 0204/0207 | F24: LR0204F3K9 | G24: Farnell | H24: 2329936 | I24: 0.036 | J24: 0.036
A25: Resistor | B25: R13, R36, R46 | C25: 4.7 kΩ | D25: =IF(B25<>"",LEN(B25)-LEN(SUBSTITUTE(B25,",",""))+1,"") -> 3 | E25: 0204/0207 | F25: LR0204F4K7 | G25: Farnell | H25: 2329947 | I25: 0.036 | J25: 0.108
A26: Resistor | B26: R21, R22 | C26: 5.6 kΩ | D26: =IF(B26<>"",LEN(B26)-LEN(SUBSTITUTE(B26,",",""))+1,"") -> 2 | E26: 0204/0207 | F26: LR0204F5K6 | G26: Farnell | H26: 2329958 | I26: 0.036 | J26: 0.072
A27: Resistor | B27: R19 | C27: 6.8 kΩ | D27: 1 | E27: 0204/0207 | F27: LR0204F6K8 | G27: Farnell | H27: 2329969 | I27: 0.0353 | J27: 0.0353
A28: Resistor | B28: R14, R34, R47 | C28: 8.2 kΩ | D28: 3 | E28: 0204/0207 | F28: LR0204F8K2 | G28: Farnell | H28: 2329981 | I28: 0.036 | J28: 0.108
A29: Resistor | B29: R1, R15, R16, R24, R25, R35, R48, R58, R59, R60, R61, R62, R63, R64, R65, R71 | C29: 10 kΩ | D29: =IF(B29<>"",LEN(B29)-LEN(SUBSTITUTE(B29,",",""))+1,"") -> 16 | E29: 0204/0207 | F29: LR0204F10K | G29: Farnell | H29: 2329855 | I29: 0.034 | J29: 0.544
A30: Resistor | B30: R33 | C30: 12 kΩ | D30: =IF(B30<>"",LEN(B30)-LEN(SUBSTITUTE(B30,",",""))+1,"") -> 1 | E30: 0204/0207 | F30: LR0204F12K | G30: Farnell | H30: 2329863 | I30: 0.036 | J30: =I30*D30 -> 0.036
A31: Resistor | B31: R11, R12, R18, R44, R45 | C31: 15 kΩ | D31: 5 | E31: 0204/0207 | F31: LR0204F15K | G31: Farnell | H31: 2329873 | I31: 0.0353 | J31: 0.1765
A32: Resistor | B32: R66, R67 | C32: 20 kΩ | D32: =IF(B32<>"",LEN(B32)-LEN(SUBSTITUTE(B32,",",""))+1,"") -> 2 | E32: 0204/0207 | F32: LR0204F20K | G32: Farnell | H32: 2329897 | I32: 0.0353 | J32: 0.0706
A33: Resistor | B33: R2, R17 | C33: 22 kΩ | D33: =IF(B33<>"",LEN(B33)-LEN(SUBSTITUTE(B33,",",""))+1,"") -> 2 | E33: 0204/0207 | F33: LR0204F22K | G33: Farnell | H33: 2329901 | I33: 0.036 | J33: 0.072
A34: Resistor | B34: R4, R50 | C34: 27 kΩ | D34: =IF(B34<>"",LEN(B34)-LEN(SUBSTITUTE(B34,",",""))+1,"") -> 2 | E34: 0204/0207 | F34: LR0204F27K | G34: Farnell | H34: 2329909 | I34: 0.0353 | J34: 0.0706
A35: Resistor | B35: R31, R32 | C35: 36 kΩ | D35: =IF(B35<>"",LEN(B35)-LEN(SUBSTITUTE(B35,",",""))+1,"") -> 2 | E35: 0204/0207 | F35: LR0204F36K | G35: Farnell | H35: 2329927 | I35: 0.036 | J35: 0.072
A36: Resistor | B36: R72, R74 | C36: 47 kΩ | D36: 2 | E36: 0204/0207 | F36: LR0204F47K | G36: Farnell | H36: 2329944 | I36: 0.027 | J36: 0.054
A37: Resistor | B37: R6, R7, R8, R9, R10, R20, R26, R27, R28, R29, R30, R38, R39, R40, R41, R42, R43, R52, R53, R68, R69, R70 | C37: 100 kΩ | D37: =IF(B37<>"",LEN(B37)-LEN(SUBSTITUTE(B37,",",""))+1,"") -> 22 | E37: 0204/0207 | F37: LR0204F100K | G37: Farnell | H37: 2329853 | I37: 0.0265 | J37: 0.583
A38: Resistor | B38: R51 | C38: 330 kΩ | D38: =IF(B38<>"",LEN(B38)-LEN(SUBSTITUTE(B38,",",""))+1,"") -> 1 | E38: 0204/0207 | F38: MFR3-330KFC | G38: Farnell | H38: 1565303 | I38: 0.0425 | J38: 0.0425
A39: Resistor | B39: R54, R55, R56, R57 | C39: 1 MΩ | D39: =IF(B39<>"",LEN(B39)-LEN(SUBSTITUTE(B39,",",""))+1,"") -> 4 | E39: 0204/0207 | F39: LR0204F1M0 | G39: Farnell | H39: 2329894 | I39: 0.0353 | J39: 0.1412
A40: Resistor | B40: R37 | C40: 2.2 MΩ, 5% | D40: =IF(B40<>"",LEN(B40)-LEN(SUBSTITUTE(B40,",",""))+1,"") -> 1 | E40: 0204/0207 | F40: CFR16J2M2 | G40: Farnell | H40: 2329510 | I40: 0.0246 | J40: 0.0246
A41: Trimmer | B41: TR2 | C41: 10 kΩ | D41: =IF(B41<>"",LEN(B41)-LEN(SUBSTITUTE(B41,",",""))+1,"") -> 1 | F41: PT 10 LV 10K | G41: Mouser | H41: 531-PT10V-10K | I41: 0.529 | J41: =I41*D41 -> 0.529
A42: Trimmer | B42: TR1 | C42: 100 kΩ | D42: =IF(B42<>"",LEN(B42)-LEN(SUBSTITUTE(B42,",",""))+1,"") -> 1 | F42: PT 10 LV 100K | G42: Mouser | H42: 531-PT10V-100K | I42: 0.518 | J42: =I42*D42 -> 0.518
A43: Connector | B43: VOICE, NOISE-L, NOISE-R, EXC-L, EXC-R, MIX-L, MIX-R, NOISE-INH, NOISE-INH, VOICED-LED, UNVOICED-LED | C43: Wire-to-board connector, 2-pin | D43: 11 | F43: S2B-EH(LF)(SN) | G43: Farnell | H43: 2481437 | I43: 0.0682 | J43: 0.7502
A44: Connector | B44: SUPPLY, FORCED-VUV-SW | C44: Wire-to-board connector, 3-pin | D44: =IF(B44<>"",LEN(B44)-LEN(SUBSTITUTE(B44,",",""))+1,"") -> 2 | F44: S3B-EH(LF)(SN) | G44: Farnell | H44: 2481438 | I44: 0.0986 | J44: 0.1972
A45: Connector | B45: =CONCATENATE(D45, "x") -> 11x | C45: EHR-2 | D45: =D43 -> 11 | F45: EHR-2 | G45: Farnell | H45: 2481434 | I45: 0.0312 | J45: 0.3432
A46: Connector | B46: =CONCATENATE(D46, "x") -> 2x | C46: EHR-3 | D46: =D44 -> 2 | F46: EHR-3 | G46: Farnell | H46: 2399175 | I46: 0.0345 | J46: 0.069
A47: Connector | B47: =CONCATENATE(D47, "x") -> 28x | C47: SEH-001T-P0.6 | D47: =D45*2+D46*3 -> 28 | F47: SEH-001T-P0.6 | G47: Farnell | H47: 1863249 | I47: 0.0244 | J47: 0.6832
A48: IC Socket | B48: IC1, IC6 | C48: 8 pins | D48: =IF(B48<>"",LEN(B48)-LEN(SUBSTITUTE(B48,",",""))+1,"") -> 2 | F48: 110-99-308-41-001000 | G48: Mouser | H48: 575-199308 | I48: 0.38 | J48: 0.76
A49: IC Socket | B49: IC2, IC3, IC4, IC5, IC7, IC8 | C49: 14 pins | D49: =IF(B49<>"",LEN(B49)-LEN(SUBSTITUTE(B49,",",""))+1,"") -> 6 | F49: 110-99-314-41-001000 | G49: Mouser | H49: 575-199314 | I49: 0.493 | J49: 2.958
A50: Misc | B50: GND, MIX-L, MIX-R | C50: Solder pins, ⌀ 1 mm | D50: =IF(B50<>"",LEN(B50)-LEN(SUBSTITUTE(B50,",",""))+1,"") -> 3 | F50: Vogt 1364A.68 | G50: Conrad | H50: 736018 - 62 | I50: 0.0259 | J50: =I50*D50 -> 0.0777
J52: =SUM(J5:J51) -> 18.641 | K52: total

Sheet Output, PWM, bridging
A4: Type | B4: Designator | C4: Identifier | D4: Count | E4: Body type | F4: Suggested product | G4: Distributor | H4: Order # | I4: Individual price | J4: Total price | K4: Remarks
A5: Diode | B5: D1, D2, D3, D4 | C5: 1N4148 | D5: =IF(B5<>"",LEN(B5)-LEN(SUBSTITUTE(B5,",",""))+1,"") -> 4 | E5: DO-35 | F5: 1N4148 | G5: Mouser | H5: 512-1N4148 | I5: 0.018 | J5: =I5*D5 -> 0.072
A6: Diode | B6: D5 | C6: 1N4001 | D6: 1 | E6: DO-41 | F6: 1N4001RLG | G6: Mouser | H6: 863-1N4001RLG | I6: 0.183 | J6: 0.183
A7: LED | B7: LED1 | C7: LED red, 2.4 V, 2 mA | D7: =IF(B7<>"",LEN(B7)-LEN(SUBSTITUTE(B7,",",""))+1,"") -> 1 | E7: 3 mm LED | F7: TLLR4401 | G7: Mouser | H7: 78-TLLR4401 | I7: 0.3 | J7: =I7*D7 -> 0.3
A8: JFET | B8: J1, J2, J3, J4 | C8: J113 | D8: =IF(B8<>"",LEN(B8)-LEN(SUBSTITUTE(B8,",",""))+1,"") -> 4 | E8: TO-92 | F8: J113 | G8: Mouser | H8: 512-J113 | I8: 0.249 | J8: 0.996
A9: IC | B9: IC8, IC10 | C9: LM319 | D9: 2 | E9: DIL14 | F9: LM319N | G9: Mouser | H9: 512-LM319N | I9: 0.498 | J9: 0.996
A10: IC | B10: IC1, IC2, IC3, IC4, IC5, IC6 | C10: NE5532 | D10: 6 | E10: DIL8 | F10: NE5532AP | G10: Mouser | H10: 595-NE5532AP | I10: 0.814 | J10: 4.884
A11: IC | B11: IC7, IC16 | C11: TL072 | D11: 2 | E11: DIL8 | F11: TL072IP | G11: Mouser | H11: 595-TL072IP | I11: 0.594 | J11: 1.188
A12: IC | B12: IC14, IC15 | C12: TL074 | D12: 2 | E12: DIL14 | F12: TL074CN | G12: Mouser | H12: 595-TL074CN | I12: 0.468 | J12: 0.936
A13: IC | B13: IC11 | C13: CD40106 | D13: =IF(B13<>"",LEN(B13)-LEN(SUBSTITUTE(B13,",",""))+1,"") -> 1 | E13: DIL14 | F13: CD40106BE | G13: Mouser | H13: 595-CD40106BE | I13: 0.445 | J13: =I13*D13 -> 0.445
A14: IC | B14: IC9 | C14: CD4050 | D14: =IF(B14<>"",LEN(B14)-LEN(SUBSTITUTE(B14,",",""))+1,"") -> 1 | E14: DIL16 | F14: CD4050BE | G14: Mouser | H14: 595-CD4050BE | I14: 0.463 | J14: =I14*D14 -> 0.463
A15: IC | B15: IC12 | C15: 78L05 | D15: =IF(B15<>"",LEN(B15)-LEN(SUBSTITUTE(B15,",",""))+1,"") -> 1 | E15: TO-92 | F15: LM78L05ACZXA | G15: Mouser | H15: 511-L78L05ACZ | I15: 0.332 | J15: =I15*D15 -> 0.332
A16: IC | B16: IC13 | C16: 79L05 | D16: 1 | E16: TO-92 | F16: LM79L05ACZ | G16: Mouser | H16: 511-L79L05ACZ | I16: 0.358 | J16: =I16*D16 -> 0.358
A17: Ceramic | B17: C1, C2, C3, C4, C5, C6, C11, C12, C14 | C17: 22 pF | D17: 9 | E17: RM2.5 | F17: K220J15C0GF53L2 | G17: Mouser | H17: 594-K220J15C0GF53L2 | I17: 0.271 | J17: =I17*D17 -> 2.439
A18: Ceramic | B18: C19 | C18: 100 pF | D18: =IF(B18<>"",LEN(B18)-LEN(SUBSTITUTE(B18,",",""))+1,"") -> 1 | E18: RM2.5 | F18: K101J15C0GF53L2 | G18: Mouser | H18: 594-K101J15C0GF53L2 | I18: 0.087 | J18: 0.087
A19: Ceramic | B19: C26, C27, C29 | C19: 1 nF | D19: =IF(B19<>"",LEN(B19)-LEN(SUBSTITUTE(B19,",",""))+1,"") -> 3 | E19: RM2.5 | F19: R82EC1100AA50K | G19: Mouser | H19: 80-R82EC1100AA50K | I19: 0.21 | J19: 0.63
A20: Film | B20: C13, C30 | C20: 10 nF | D20: 2 | E20: RM2.5/RM5.0 | F20: R82EC2100AA50J | G20: Mouser | H20: 80-R82EC2100AA50J | I20: 0.218 | J20: 0.436
A21: Ceramic | B21: C20, C25, C31, C32, C33, C34, C35, C36, C37, C38, C39, C40, C41, C42, C46, C48, C49, C51, C54, C55, C56, C57, C58, C59, C60, C63, C64 | C21: 100 nF | D21: 27 | E21: SMD (1206 or 0805) | F21: C1206C104K5RACTU | G21: Mouser | H21: 80-C1206C104K5R | I21: 0.024 | J21: 0.648
A22: Film | B22: C22, C23, C24, C28 | C22: 220 nF | D22: =IF(B22<>"",LEN(B22)-LEN(SUBSTITUTE(B22,",",""))+1,"") -> 4 | E22: RM2.5/RM5.0 | F22: R82DC3220Z360K | G22: Mouser | H22: 80-82DC3220Z360K | I22: 0.103 | J22: 0.412
A23: Film | B23: C52, C53 | C23: 330 nF | D23: =IF(B23<>"",LEN(B23)-LEN(SUBSTITUTE(B23,",",""))+1,"") -> 2 | E23: RM2.5/RM5.0 | F23: R82DC3330AA60K | G23: Mouser | H23: 80-R82DC3330AA60K | I23: 0.262 | J23: 0.524
A24: Film | B24: C21 | C24: 1 µF | D24: =IF(B24<>"",LEN(B24)-LEN(SUBSTITUTE(B24,",",""))+1,"") -> 1 | E24: RM2.5/RM5.0 | F24: R82DC4100Z360K | G24: Mouser | H24: 80-R82DC4100Z360K | I24: 0.279 | J24: 0.279
A25: Electrolytic | B25: C7, C8, C9, C10, C15, C16, C17, C18, C47 | C25: 22 µF/25 V, max. ⌀ 5 mm | D25: 9 | E25: RM2.0 | F25: Würth 860010572003 | G25: Mouser | H25: 710-860010572003 | I25: 0.089 | J25: 0.801
A26: Electrolytic | B26: C45, C61, C62 | C26: 47 µF/35 V, max. ⌀ 5 mm | D26: 3 | E26: RM2.0 | F26: Würth 860010572005 | G26: Mouser | H26: 710-860010572005 | I26: 0.071 | J26: 0.213
A27: Electrolytic | B27: C43, C44, C50 | C27: 100 µF/25 V, max. ⌀ 7 mm | D27: =IF(B27<>"",LEN(B27)-LEN(SUBSTITUTE(B27,",",""))+1,"") -> 3 | E27: RM2.5 | F27: Würth 860010473007 | G27: Mouser | H27: 710-860010473007 | I27: 0.111 | J27: =I27*D27 -> 0.333
A28: Resistor | B28: R73, R85, R86, R87, R88, R89, R90, R91, R92, R93 | C28: 47 Ω, 250 mW | D28: =IF(B28<>"",LEN(B28)-LEN(SUBSTITUTE(B28,",",""))+1,"") -> 10 | E28: 0204/0207 | F28: LR0204F47R | G28: Farnell | H28: 2329945 | I28: 0.0408 | J28: =I28*D28 -> 0.408
A29: Resistor | B29: R95 | C29: 220 Ω | D29: 1 | E29: 0204/0207 | F29: LR0204F220R | G29: Farnell | H29: 2329900 | I29: 0.036 | J29: 0.036
A30: Resistor | B30: R45, R46, R75 | C30: 470 Ω | D30: 3 | E30: 0204/0207 | F30: LR0204F470R | G30: Farnell | H30: 2329942 | I30: 0.0353 | J30: 0.1059
A31: Resistor | B31: R21, R22, R33, R34 | C31: 560 Ω | D31: 4 | E31: 0204/0207 | F31: LR0204F560R | G31: Farnell | H31: 2329953 | I31: 0.0353 | J31: 0.1412
A32: Resistor | B32: R84 | C32: 2.2 kΩ | D32: =IF(B32<>"",LEN(B32)-LEN(SUBSTITUTE(B32,",",""))+1,"") -> 1 | E32: 0204/0207 | F32: LR0204F2K2 | G32: Farnell | H32: 2329912 | I32: 0.0771 | J32: 0.0771
A33: Resistor | B33: R50 | C33: 3.3 kΩ | D33: =IF(B33<>"",LEN(B33)-LEN(SUBSTITUTE(B33,",",""))+1,"") -> 1 | E33: 0204/0207 | F33: LR0204F3K3 | G33: Farnell | H33: 2329934 | I33: 0.036 | J33: =I33*D33 -> 0.036
A34: Resistor | B34: R39, R81 | C34: 4.7 kΩ | D34: =IF(B34<>"",LEN(B34)-LEN(SUBSTITUTE(B34,",",""))+1,"") -> 2 | E34: 0204/0207 | F34: LR0204F4K7 | G34: Farnell | H34: 2329947 | I34: 0.036 | J34: 0.072
A35: Resistor | B35: R47, R48, R59 | C35: 6.8 kΩ | D35: 3 | E35: 0204/0207 | F35: LR0204F6K8 | G35: Farnell | H35: 2329969 | I35: 0.0353 | J35: 0.1059
A36: Resistor | B36: R60 | C36: 8.2 kΩ | D36: 1 | E36: 0204/0207 | F36: LR0204F8K2 | G36: Farnell | H36: 2329981 | I36: 0.036 | J36: =I36*D36 -> 0.036
A37: Resistor | B37: R29, R30, R31, R32, R49, R52, R53, R54, R55, R56, R61, R64, R67, R77 | C37: 10 kΩ | D37: =IF(B37<>"",LEN(B37)-LEN(SUBSTITUTE(B37,",",""))+1,"") -> 14 | E37: 0204/0207 | F37: LR0204F10K | G37: Farnell | H37: 2329855 | I37: 0.034 | J37: 0.476
A38: Resistor | B38: R1, R2 | C38: 15 kΩ | D38: =IF(B38<>"",LEN(B38)-LEN(SUBSTITUTE(B38,",",""))+1,"") -> 2 | E38: 0204/0207 | F38: LR0204F15K | G38: Farnell | H38: 2329873 | I38: 0.0353 | J38: =I38*D38 -> 0.0706
A39: Resistor | B39: R37 | C39: 18 kΩ | D39: =IF(B39<>"",LEN(B39)-LEN(SUBSTITUTE(B39,",",""))+1,"") -> 1 | E39: 0204/0207 | F39: LR0204F18K | G39: Farnell | H39: 2329882 | I39: 0.036 | J39: 0.036
A40: Resistor | B40: R58, R62, R63, R76 | C40: 20 kΩ | D40: =IF(B40<>"",LEN(B40)-LEN(SUBSTITUTE(B40,",",""))+1,"") -> 4 | E40: 0204/0207 | F40: LR0204F20K | G40: Farnell | H40: 2329897 | I40: 0.0353 | J40: 0.1412
A41: Resistor | B41: R51, R57, R94 | C41: 24 kΩ | D41: =IF(B41<>"",LEN(B41)-LEN(SUBSTITUTE(B41,",",""))+1,"") -> 3 | E41: 0204/0207 | F41: LR0204F24K | G41: Farnell | H41: 2329904 | I41: 0.036 | J41: 0.108
A42: Resistor | B42: R9, R10 | C42: 27 kΩ | D42: =IF(B42<>"",LEN(B42)-LEN(SUBSTITUTE(B42,",",""))+1,"") -> 2 | E42: 0204/0207 | F42: LR0204F27K | G42: Farnell | H42: 2329909 | I42: 0.0353 | J42: 0.0706
A43: Resistor | B43: R65 | C43: 39 kΩ | D43: =IF(B43<>"",LEN(B43)-LEN(SUBSTITUTE(B43,",",""))+1,"") -> 1 | E43: 0204/0207 | F43: LR0204F39K | G43: Farnell | H43: 2329932 | I43: 0.0353 | J43: 0.0353
A44: Resistor | B44: R3, R4, R5, R6, R7, R8, R82 | C44: 47 kΩ | D44: 7 | E44: 0204/0207 | F44: LR0204F47K | G44: Farnell | H44: 2329944 | I44: 0.027 | J44: 0.189
A45: Resistor | B45: R40 | C45: 75 kΩ | D45: 1 | E45: 0204/0207 | F45: LR0204F75K | G45: Farnell | H45: 2329972 | I45: 0.0353 | J45: 0.0353
A46: Resistor | B46: R11, R12, R13, R14, R15, R16, R23, R24, R25, R26, R27, R35, R36, R38, R41, R42, R66, R68, R69, R70, R79, R80 | C46: 100 kΩ | D46: =IF(B46<>"",LEN(B46)-LEN(SUBSTITUTE(B46,",",""))+1,"") -> 22 | E46: 0204/0207 | F46: LR0204F100K | G46: Farnell | H46: 2329853 | I46: 0.0265 | J46: 0.583
A47: Resistor | B47: R19, R20 | C47: 180 kΩ | D47: =IF(B47<>"",LEN(B47)-LEN(SUBSTITUTE(B47,",",""))+1,"") -> 2 | E47: 0204/0207 | F47: LR0204F180K | G47: Farnell | H47: 2329880 | I47: 0.0447 | J47: 0.0894
A48: Resistor | B48: R17, R18 | C48: 200 kΩ | D48: =IF(B48<>"",LEN(B48)-LEN(SUBSTITUTE(B48,",",""))+1,"") -> 2 | E48: 0204/0207 | F48: LR0204F200K | G48: Farnell | H48: 2329895 | I48: 0.0347 | J48: 0.0694
A49: Resistor | B49: R74 | C49: 220 kΩ | D49: 1 | E49: 0204/0207 | F49: LR0204F220K | G49: Farnell | H49: 2329899 | I49: 0.036 | J49: 0.036
A50: Resistor | B50: R43, R44, R71, R72, R78, R83 | C50: 1 MΩ | D50: =IF(B50<>"",LEN(B50)-LEN(SUBSTITUTE(B50,",",""))+1,"") -> 6 | E50: 0204/0207 | F50: LR0204F1M0 | G50: Farnell | H50: 2329894 | I50: 0.0353 | J50: 0.2118
A51: Potentiometer | B51: P2 | C51: 100 kΩ log, Alpha 9 mm, right angled (side adjust), stereo | D51: 1 | F51: Alpha 9-PC-STE-100k log, RD902F-20-15R1-A100K | G51: Small Bear (US) or banzaimusic.com (EU) | H51: 100k-log-dual | I51: 2.8 | J51: =I51*D51 -> 2.8
A52: Potentiometer | B52: P1, P3 | C52: 100 kΩ log, Alpha 9 mm, right angled (side adjust) | D52: =IF(B52<>"",LEN(B52)-LEN(SUBSTITUTE(B52,",",""))+1,"") -> 2 | F52: RD901F-20-15R1-A100K | G52: Small Bear (US) or Thonk (EU) | H52: 100k-log-single | I52: 1.17 | J52: 2.34
A53: Trimmer, multi-turn | B53: TR8, TR9, TR10 | C53: 100 kΩ | D53: =IF(B53<>"",LEN(B53)-LEN(SUBSTITUTE(B53,",",""))+1,"") -> 3 | F53: T93XA104KT20 | G53: Mouser | H53: 72-T93XA-100K | I53: 1.23 | J53: 3.69
A54: Trimmer | B54: TR1, TR2, TR3, TR5 | C54: 10 kΩ | D54: 4 | F54: PT 10 LH 10K | G54: Mouser | H54: 531-PT10H-10K | I54: 0.518 | J54: 2.072
A55: Trimmer | B55: TR4, TR6, TR7 | C55: 25 kΩ | D55: 3 | F55: PT 10 LH 25K | G55: Mouser | H55: 531-PT10H-25K | I55: 0.487 | J55: 1.461
A56: Jack | B56: FLTR-OUT, VOCODER-OUT | C56: 6.35 mm jack | D56: =IF(B56<>"",LEN(B56)-LEN(SUBSTITUTE(B56,",",""))+1,"") -> 2 | F56: ACJS-MHDR | G56: Mouser | H56: 523-ACJS-MHDR | I56: 1.16 | J56: 2.32
A57: Connector | B57: 11x | C57: Wire-to-board connector, 2-pin | D57: 11 | F57: S2B-EH(LF)(SN) | G57: Farnell | H57: 2481437 | I57: 0.0682 | J57: 0.7502
A58: Connector | B58: 1x | C58: Wire-to-board connector, 3-pin | D58: 1 | F58: S3B-EH(LF)(SN) | G58: Farnell | H58: 2481438 | I58: 0.0986 | J58: 0.0986
A59: Connector | B59: 11x | C59: EHR-2 | D59: =D57 -> 11 | F59: EHR-2 | G59: Farnell | H59: 2481434 | I59: 0.0312 | J59: 0.3432
A60: Connector | B60: 1x | C60: EHR-3 | D60: =D58 -> 1 | F60: EHR-3 | G60: Farnell | H60: 2399175 | I60: 0.0345 | J60: 0.0345
A61: Connector | B61: 23x | C61: SEH-001T-P0.6 | D61: =D59*2+D60*3 -> 25 | F61: SEH-001T-P0.6 | G61: Farnell | H61: 1863249 | I61: 0.0244 | J61: 0.61
A62: Connector | B62: 1x | C62: 2x8 board-to-board connector, angled, RM2.54 mm | D62: 1 | F62: Würth 61301621021 | G62: Mouser | H62: 710-61301621021 | I62: 0.871 | J62: 0.871
A63: Connector | B63: 1x | C63: 2x8 wire-to-board connector, RM2.54 mm | D63: 1 | F63: Würth 61201623021 | G63: Mouser | H63: 710-61201623021 | I63: 0.65 | J63: 0.65
A64: IC Socket | B64: IC1, IC2, IC3, IC4, IC5, IC6, IC16 | C64: 8 pins | D64: 7 | F64: 110-99-308-41-001000 | G64: Mouser | H64: 575-199308 | I64: 0.38 | J64: 2.66
A65: IC Socket | B65: IC8, IC10, IC11, IC14, IC15 | C65: 14 pins | D65: 5 | F65: 110-99-314-41-001000 | G65: Mouser | H65: 575-199314 | I65: 0.493 | J65: 2.465
A66: IC Socket | B66: IC9 | C66: 16 pins | D66: 1 | F66: 110-99-316-41-001000 | G66: Mouser | H66: 575-199316 | I66: 0.428 | J66: 0.428
A67: Misc | B67: ENV, PWMR, PWML, BR, SBSW, GND, TRI, FLTR, VC-R, VC-L | C67: Solder pins, ⌀ 1 mm | D67: =IF(B67<>"",LEN(B67)-LEN(SUBSTITUTE(B67,",",""))+1,"") -> 10 | F67: Vogt 1364A.68 | G67: Conrad | H67: 736018 - 62 | I67: 0.0259 | J67: 0.259
J69: =SUM(J5:J67) -> 44.9772 | K69: total

Sheet Slew-freeze
A4: Type | B4: Designator | C4: Identifier | D4: Count | E4: Body type | F4: Suggested product | G4: Distributor | H4: Order # | I4: Individual price | J4: Total price | K4: Remarks
A5: Diode | B5: D1, D2, D3, D4, D5, D6, D7, D8 | C5: 1N4148 | D5: =IF(B5<>"",LEN(B5)-LEN(SUBSTITUTE(B5,",",""))+1,"") -> 8 | E5: DO-35 | F5: 1N4148 | G5: Mouser | H5: 512-1N4148 | I5: 0.018 | J5: =I5*D5 -> 0.144
A6: JFET | B6: J1, J2 | C6: J113 | D6: 2 | E6: TO-92 | F6: J113 | G6: Mouser | H6: 512-J113 | I6: 0.249 | J6: 0.498
A7: Transistor | B7: T1, T2, T3 | C7: 2N3904 | D7: 3 | E7: TO-92 | F7: 2N3904BU | G7: Mouser | H7: 512-2N3904BU | I7: 0.051 | J7: 0.153
A8: IC | B8: IC1, IC2, IC3 | C8: TL074 | D8: 3 | E8: DIL14 | F8: TL074CN | G8: Mouser | H8: 595-TL074CN | I8: 0.468 | J8: 1.404
A9: IC | B9: IC4 | C9: LM319 | D9: 1 | E9: DIL14 | F9: LM319N | G9: Mouser | H9: 512-LM319N | I9: 0.498 | J9: 0.498
A10: IC | B10: IC5 | C10: CD4093 | D10: 1 | E10: DIL14 | F10: CD4093BE | G10: Mouser | H10: 595-CD4093BE | I10: 0.428 | J10: 0.428
A11: Film | B11: C6 | C11: 1 nF | D11: 1 | E11: RM2.5/RM5.0 | F11: R82EC1100AA50K | G11: Mouser | H11: 80-R82EC1100AA50K | I11: 0.21 | J11: 0.21
A12: Film | B12: C7 | C12: 4.7 nF | D12: 1 | E12: RM2.5/RM5.0 | F12: R82EC1470CK50J | G12: Mouser | H12: 80-R82EC1470CK50J | I12: 0.253 | J12: 0.253
A13: Film | B13: C5 | C13: 10 nF | D13: 1 | E13: RM2.5/RM5.0 | F13: R82EC2100AA50J | G13: Mouser | H13: 80-R82EC2100AA50J | I13: 0.218 | J13: 0.218
A14: Film | B14: C3, C4, C10 | C14: 100 nF | D14: 3 | E14: RM2.5/RM5.0 | F14: R82EC3100AA70J | G14: Mouser | H14: 80-R82EC3100AA70J | I14: 0.141 | J14: 0.423
A15: Ceramic | B15: C8, C9, C11, C12, C15, C16, C19, C20, C21, C22, C25 | C15: 100 nF | D15: 11 | E15: SMD (1206 or 0805) | F15: C1206C104K5RACTU | G15: Mouser | H15: 80-C1206C104K5R | I15: 0.024 | J15: 0.264
A16: Film | B16: C1 | C16: 220 nF | D16: 1 | E16: RM2.5/RM5.0 | F16: R82DC3220Z360K | G16: Mouser | H16: 80-82DC3220Z360K | I16: 0.103 | J16: 0.044
A17: Electrolytic | B17: C2 | C17: 2.2 µF/25 V, max. ⌀ 5 mm | D17: 1 | E17: RM2.0 | F17: Würth 860020672006 | G17: Mouser | H17: 710-860020672006 | I17: 0.1 | J17: =I17*D17 -> 0.1
A18: Electrolytic | B18: C13, C14, C17, C18, C23, C24, C26 | C18: 22 µF/25 V, max. ⌀ 5 mm | D18: 7 | E18: RM2.0 | F18: Würth 860010572003 | G18: Mouser | H18: 710-860010572003 | I18: 0.089 | J18: 0.623
A19: Tempco | B19: R20 | C19: 2 kΩ, 3300 ppm/°C | D19: 1 | G19: Thonk | H19: tempco | I19: 1.61 | J19: 1.61 | K19: Akaneohm
A20: Resistor | B20: R34 | C20: 10 Ω | D20: =IF(B20<>"",LEN(B20)-LEN(SUBSTITUTE(B20,",",""))+1,"") -> 1 | E20: 0204/0207 | F20: LR0204F10R | G20: Farnell | H20: 2329856 | I20: 0.036 | J20: =I20*D20 -> 0.036
A21: Resistor | B21: R54, R55, R56, R57, R58, R59, R60, R61 | C21: 47 Ω, 250 mW | D21: 8 | E21: 0204/0207 | F21: LR0204F47R | G21: Farnell | H21: 2329945 | I21: 0.0408 | J21: 0.3264
A22: Resistor | B22: R23, R38, R39, R46, R50, R53 | C22: 2.2 kΩ | D22: 6 | E22: 0204/0207 | F22: LR0204F2K2 | G22: Farnell | H22: 2329912 | I22: 0.0771 | J22: 0.4626
A23: Resistor | B23: R9, R25 | C23: 4.7 kΩ | D23: 2 | E23: 0204/0207 | F23: LR0204F4K7 | G23: Farnell | H23: 2329947 | I23: 0.036 | J23: 0.072
A24: Resistor | B24: R15, R49 | C24: 7.5 kΩ | D24: 2 | E24: 0204/0207 | F24: LR0204F7K5 | G24: Farnell | H24: 2329974 | I24: 0.0812 | J24: 0.1624
A25: Resistor | B25: R21, R22 | C25: 10 kΩ | D25: 2 | E25: 0204/0207 | F25: LR0204F10K | G25: Farnell | H25: 2329855 | I25: 0.034 | J25: 0.068
A26: Resistor | B26: R41 | C26: 30 kΩ | D26: 1 | E26: 0204/0207 | F26: LR0204F30K | G26: Farnell | H26: 2329917 | I26: 0.036 | J26: 0.036
A27: Resistor | B27: R13 | C27: 33 kΩ | D27: 1 | E27: 0204/0207 | F27: LR0204F33K | G27: Farnell | H27: 2329922 | I27: 0.0353 | J27: 0.0353
A28: Resistor | B28: R10, R31, R32, R33, R37, R45, R51, R52 | C28: 47 kΩ | D28: 8 | E28: 0204/0207 | F28: LR0204F47K | G28: Farnell | H28: 2329944 | I28: 0.027 | J28: 0.216
A29: Resistor | B29: R12, R17 | C29: 56 kΩ | D29: 2 | E29: 0204/0207 | F29: LR0204F56K | G29: Farnell | H29: 2329954 | I29: 0.0353 | J29: 0.0706
A30: Resistor | B30: R16, R27 | C30: 91 kΩ | D30: 2 | E30: 0204/0207 | F30: LR0204F91K | G30: Farnell | H30: 2329984 | I30: 0.0347 | J30: 0.0694
A31: Resistor | B31: R1, R2, R3, R8, R19, R26, R28, R29, R30, R36, R44, R48 | C31: 100 kΩ | D31: 12 | E31: 0204/0207 | F31: LR0204F100K | G31: Farnell | H31: 2329853 | I31: 0.0265 | J31: 0.318
A32: Resistor | B32: R18 | C32: 120 kΩ | D32: 1 | E32: 0204/0207 | F32: LR0204F120K | G32: Farnell | H32: 2329861 | I32: 0.0857 | J32: 0.0857
A33: Resistor | B33: R14 | C33: 150 kΩ | D33: 1 | E33: 0204/0207 | F33: LR0204F150K | G33: Farnell | H33: 2329871 | I33: 0.036 | J33: 0.036
A34: Resistor | B34: R4 | C34: 200 kΩ | D34: 1 | E34: 0204/0207 | F34: LR0204F200K | G34: Farnell | H34: 2329895 | I34: 0.0347 | J34: 0.0347
A35: Resistor | B35: R6, R47 | C35: 220 kΩ | D35: 2 | E35: 0204/0207 | F35: LR0204F220K | G35: Farnell | H35: 2329899 | I35: 0.036 | J35: 0.072
A36: Resistor | B36: R24 | C36: 470 kΩ | D36: 1 | E36: 0204/0207 | F36: LR0204F470K | G36: Farnell | H36: 2329941 | I36: 0.036 | J36: 0.036
A37: Resistor | B37: R5, R7, R11 | C37: 1 MΩ | D37: 3 | E37: 0204/0207 | F37: LR0204F1M0 | G37: Farnell | H37: 2329894 | I37: 0.0353 | J37: 0.1059
A38: Resistor | B38: R40 | C38: 2.2 MΩ, 5% | D38: 1 | E38: 0204/0207 | F38: CFR16J2M2 | G38: Farnell | H38: 2329510 | I38: 0.0246 | J38: 0.0246
A39: Resistor | B39: R35 | C39: 3.3 MΩ, 5% | D39: 1 | E39: 0204/0207 | F39: CFR16J3M3 | G39: Farnell | H39: 2329524 | I39: 0.0529 | J39: 0.0529
A40: Potentiometer | B40: P1 | C40: 100 kΩ lin, Alpha 9 mm, right angled (side adjust) | D40: =IF(B40<>"",LEN(B40)-LEN(SUBSTITUTE(B40,",",""))+1,"") -> 1 | F40: RD901F-20-15R1-B100K | G40: Small Bear (US) or Thonk (EU) | H40: 100k-lin-single | I40: 1.38 | J40: 1.38
A41: Trimmer | B41: TR3 | C41: 1k Ω | D41: =IF(B41<>"",LEN(B41)-LEN(SUBSTITUTE(B41,",",""))+1,"") -> 1 | F41: PT 10 LV 1K | G41: Mouser | H41: 531-PT10V-1K | I41: 0.508 | J41: =I41*D41 -> 0.508
A42: Trimmer | B42: TR1, TR2 | C42: 10 kΩ | D42: =IF(B42<>"",LEN(B42)-LEN(SUBSTITUTE(B42,",",""))+1,"") -> 2 | F42: PT 10 LV 10K | G42: Mouser | H42: 531-PT10V-10K | I42: 0.529 | J42: =I42*D42 -> 1.058
A43: Trimmer | B43: TR4 | C43: 20 kΩ | D43: 1 | F43: PT 10 LV 20K | G43: Mouser | H43: 531-PT10V-20K | I43: 0.508 | J43: =I43*D43 -> 0.508
A44: Jack | B44: CV-IN | C44: 3.5 mm jack | D44: =IF(B44<>"",LEN(B44)-LEN(SUBSTITUTE(B44,",",""))+1,"") -> 1 | F44: CL13845G | G44: Farnell | H44: 2766196 | I44: 1.26 | J44: =I44*D44 -> 1.26 | K44: alternative: CL1384
A45: Jack | B45: FOOT-SW | C45: 6.35 mm jack | D45: =IF(B45<>"",LEN(B45)-LEN(SUBSTITUTE(B45,",",""))+1,"") -> 1 | F45: ACJS-MHDR | G45: Mouser | H45: 523-ACJS-MHDR | I45: 1.16 | J45: 1.16
A46: Connector | B46: 7x | C46: Wire-to-board connector, 2-pin | D46: 7 | F46: S2B-EH(LF)(SN) | G46: Farnell | H46: 2481437 | I46: 0.0682 | J46: 0.4774
A47: Connector | B47: 1x | C47: Wire-to-board connector, 3-pin | D47: 1 | F47: S3B-EH(LF)(SN) | G47: Farnell | H47: 2481438 | I47: 0.0986 | J47: 0.0986
A48: Connector | B48: =B46 -> 7x | C48: EHR-2 | D48: =D46 -> 7 | F48: EHR-2 | G48: Farnell | H48: 2481434 | I48: 0.0312 | J48: 0.2184
A49: Connector | B49: =B47 -> 1x | C49: EHR-3 | D49: =D47 -> 1 | F49: EHR-3 | G49: Farnell | H49: 2399175 | I49: 0.0345 | J49: 0.0345
A50: Connector | B50: 7x | C50: SEH-001T-P0.6 | D50: =D48*2+D49*3 -> 17 | F50: SEH-001T-P0.6 | G50: Farnell | H50: 1863249 | I50: 0.0244 | J50: 0.4148
A51: IC Socket | B51: IC1, IC2, IC3, IC4, IC5 | C51: 14 pins | D51: =IF(B51<>"",LEN(B51)-LEN(SUBSTITUTE(B51,",",""))+1,"") -> 5 | F51: 110-99-314-41-001000 | G51: Mouser | H51: 575-199314 | I51: 0.493 | J51: =I51*D51 -> 2.465
A52: Misc | B52: GND, LOG, OSC, SLEW | C52: Solder pins, ⌀ 1 mm | D52: =IF(B52<>"",LEN(B52)-LEN(SUBSTITUTE(B52,",",""))+1,"") -> 4 | F52: Vogt 1364A.68 | G52: Conrad | H52: 736018 - 62 | I52: 0.0259 | J52: 0.1036
J54: =SUM(J5:J52) -> 18.8768 | K54: total

Sheet DC-DC supply
A4: Type | B4: Designator | C4: Identifier | D4: Count | E4: Body type | F4: Suggested product | G4: Distributor | H4: Order # | I4: Individual price | J4: Total price | K4: Remarks
A5: Misc | B5: TEN 40-1222N | C5: TRACO TEN 40-1222N | D5: 1 | E5: Module | F5: TRACO TEN 40-1222N | G5: Mouser | H5: 495-TEN40-1222N | I5: 65.43 | J5: =I5*D5 -> 65.43
A6: Diode | B6: D1 | C6: SB540 | D6: =IF(B6<>"",LEN(B6)-LEN(SUBSTITUTE(B6,",",""))+1,"") -> 1 | E6: DO-201AD | F6: =C6 -> SB540 | G6: Mouser | H6: 512-SB540 | I6: 0.46 | J6: 0.46
A7: IC | B7: IC1 | C7: IRF7319 | D7: 1 | E7: SO-8 | F7: IRF7319TRPBF | G7: Mouser | H7: 942-IRF7319TRPBF | I7: 0.795 | J7: 0.795
A8: Transistor | B8: T2, T3 | C8: 2N3904 | D8: =IF(B8<>"",LEN(B8)-LEN(SUBSTITUTE(B8,",",""))+1,"") -> 2 | E8: TO-92 | F8: 2N3904BU | G8: Mouser | H8: 512-2N3904BU | I8: 0.051 | J8: 0.102
A9: Transistor | B9: T1, T4 | C9: 2N3906 | D9: 2 | E9: TO-92 | F9: 2N3906BU | G9: Mouser | H9: 512-2N3906BU | I9: 0.236 | J9: 0.472
A10: Ceramic | B10: C8, C9 | C10: 100 nF | D10: =IF(B10<>"",LEN(B10)-LEN(SUBSTITUTE(B10,",",""))+1,"") -> 2 | E10: SMD (1206 or 0805) | F10: C1206C104K5RACTU | G10: Mouser | H10: 80-C1206C104K5R | I10: 0.024 | J10: 0.048
A11: Ceramic | B11: C1, C4, C5, C6, C7 | C11: 10 µF, 25 V | D11: 5 | E11: SMD 1812 | F11: C4532X7R1E106M250KA | G11: Mouser | H11: 810-C4532X7R1E106M | I11: 1.18 | J11: 5.9
A12: Ceramic | B12: C2, C3 | C12: 1 nF, 2 kV | D12: 2 | E12: SMD 1808 | F12: C1808C102MGRACAUTO | G12: Mouser | H12: 80-C1808C102MGRAUTO | I12: 1.51 | J12: 3.02
A13: Resistor | B13: R1, R4, R8 | C13: 2.2 kΩ | D13: =IF(B13<>"",LEN(B13)-LEN(SUBSTITUTE(B13,",",""))+1,"") -> 3 | E13: 0204/0207 | F13: LR0204F2K2 | G13: Farnell | H13: 2329912 | I13: 0.0771 | J13: 0.2313
A14: Resistor | B14: R2, R3, R6, R7, R10 | C14: 10 kΩ | D14: 5 | E14: 0204/0207 | F14: LR0204F10K | G14: Farnell | H14: 2329855 | I14: 0.034 | J14: 0.17
A15: Resistor | B15: R5, R9 | C15: 75 kΩ | D15: 2 | E15: 0204/0207 | F15: LR0204F75K | G15: Farnell | H15: 2329972 | I15: 0.0353 | J15: 0.0706
A16: Connector | B16: =CONCATENATE(D16, "x") -> 2x | C16: Wire-to-board connector, 2-pin | D16: 2 | F16: S2B-EH(LF)(SN) | G16: Farnell | H16: 2481437 | I16: 0.0682 | J16: =I16*D16 -> 0.1364 | K16: For power LED
A17: Connector | B17: =CONCATENATE(D17, "x") -> 9x | C17: Wire-to-board connector, 3-pin | D17: 9 | F17: S3B-EH(LF)(SN) | G17: Farnell | H17: 2481438 | I17: 0.0986 | J17: 0.8874
A18: Connector | B18: =CONCATENATE(D18, "x") -> 2x | C18: EHR-2 | D18: 2 | F18: EHR-2 | G18: Farnell | H18: 2481434 | I18: 0.0312 | J18: 0.0624 | K18: For power LED and switch
A19: Connector | B19: =CONCATENATE(D19, "x") -> 11x | C19: EHR-3 | D19: 11 | F19: EHR-3 | G19: Farnell | H19: 2399175 | I19: 0.0345 | J19: =I19*D19 -> 0.3795 | K19: 2 needed for supply testing
A20: Connector | B20: =CONCATENATE(D20, "x") -> 35x | C20: SEH-001T-P0.6 | D20: =D18*2+D19*3-2 -> 35 | F20: SEH-001T-P0.6 | G20: Farnell | H20: 1863249 | I20: 0.0244 | J20: 0.854 | K20: 4 needed for supply testing
A21: Connector | B21: 1x | C21: Wire-to-board terminal block, 2 entries | D21: 1 | F21: Weidmuller 1934250000 | G21: Farnell | H21: 2893169 | I21: 1.02 | J21: 1.02
A22: Misc | B22: L1, L2 | C22: ELC10D101E (100 µH) | D22: =IF(B22<>"",LEN(B22)-LEN(SUBSTITUTE(B22,",",""))+1,"") -> 2 | F22: ELC-10D101E | G22: Mouser | H22: 667-ELC-10D101E | I22: 0.91 | J22: 1.82
A23: Misc | B23: FUSEHOLDER | C23: HTC-100M | D23: 1 | F23: HTC-100M | G23: Farnell | H23: 2550634 | I23: 0.514 | J23: 0.514
A24: Misc | B24: FUSE | C24: 8 A, slow blow, 20 x 5 mm | D24: 1 | F24: Schurter 0001.2513 | G24: Farnell | H24: 1360861 | I24: 0.296 | J24: 0.296 | K24: As per TRACO datasheet
A25: Misc | B25: Power supply | C25: 12 VDC 5 A 60 W | D25: 1 | F25: GST60A12-P1J | G25: Amazon, Jameco | H25: GST60A12-P1J | I25: 14 | J25: 14 | K25: Works for US and Europe (90-264 V). Power cord extra.
A26: Misc | B26: Power jack | C26: Isolated 2.1x5.5mm power jack | D26: 1 | G26: JDS Labs | H26: JDS Labs | I26: 2.58 | J26: =I26*D26 -> 2.58 | K26: link
A27: Misc | B27: GND, +12V, -12V | C27: Solder pins, ⌀ 1 mm | D27: =IF(B27<>"",LEN(B27)-LEN(SUBSTITUTE(B27,",",""))+1,"") -> 3 | F27: Vogt 1364A.68 | G27: Conrad | H27: 736018 - 62 | I27: 0.0259 | J27: =I27*D27 -> 0.0777
A28: Misc-2 | B28: 2x | C28: 10 Ω, 17 W resistor for testing purposes | D28: 2 | F28: SQP20AJB-10R | G28: Mouser | H28: 603-SQP20AJB-10R | I28: 1.06 | J28: 2.12 | K28: For power supply testing
J30: =SUM(J5:J28) -> 101.4463 | K30: total

Sheet LDO supply
A1: LDO-based alternative to the DC/DC supply. Only build this supply if you are absolutely confident you can build this without risking your life or the life of others.
A4: Type | B4: Designator | C4: Identifier | D4: Count | E4: Body type | F4: Suggested product | G4: Distributor | H4: Order # | I4: Individual price | J4: Total price | K4: Remarks
A5: Diode | B5: D1, D2, D3, D4, D5, D6, D7, D8, D9, D10, D11, D12 | C5: SB540 | D5: =IF(B5<>"",LEN(B5)-LEN(SUBSTITUTE(B5,",",""))+1,"") -> 12 | E5: DO-201AD | F5: SB540-E3/54 | G5: Mouser | H5: 625-SB540-E3 | I5: 0.375 | J5: =I5*D5 -> 4.5
A6: IC | B6: IC1, IC2 | C6: MIC29301-12WT | D6: =IF(B6<>"",LEN(B6)-LEN(SUBSTITUTE(B6,",",""))+1,"") -> 2 | E6: TO-220 | F6: MIC29301-12WT | G6: Mouser | H6: 998-MIC29301-12WT | I6: 3.72 | J6: =I6*D6 -> 7.44
A7: Diode | B7: D13, D14 | C7: 1N4148 | D7: =IF(B7<>"",LEN(B7)-LEN(SUBSTITUTE(B7,",",""))+1,"") -> 2 | E7: DO-35 | F7: 1N4148 | G7: Mouser | H7: 512-1N4148 | I7: 0.018 | J7: =I7*D7 -> 0.036
A8: Transistor | B8: T1 | C8: 2N3904 | D8: =IF(B8<>"",LEN(B8)-LEN(SUBSTITUTE(B8,",",""))+1,"") -> 1 | E8: TO-92 | F8: 2N3904BU | G8: Mouser | H8: 512-2N3904BU | I8: 0.051 | J8: =I8*D8 -> 0.051
A9: Ceramic | B9: C4A, C5A, C9A, C10A | C9: 100 nF | D9: 4 | E9: SMD (1206 or 0805) | F9: C1206C104K5RACTU | G9: Mouser | H9: 80-C1206C104K5R | I9: 0.024 | J9: =I9*D9 -> 0.096
A10: Electrolytic | B10: C3, C8 | C10: 10 µF/50 V, max. ⌀ 5 mm | D10: 2 | E10: RM2.0 | F10: Würth 860020672010 | G10: Mouser | H10: 710-860020672010 | I10: 0.1 | J10: 0.2
A11: Electrolytic | B11: C1, C2, C6, C7 | C11: 3900 µF/35 V, max. ⌀ 18 mm | D11: 4 | E11: RM7.5 | F11: EEUFC1V392 | G11: Mouser | H11: 667-EEU-FC1V392 | I11: 2.33 | J11: =I11*D11 -> 9.32
A12: Resistor | B12: R1 | C12: 2.2 kΩ | D12: =IF(B12<>"",LEN(B12)-LEN(SUBSTITUTE(B12,",",""))+1,"") -> 1 | E12: 0204/0207 | F12: LR0204F2K2 | G12: Farnell | H12: 2329912 | I12: 0.0771 | J12: =I12*D12 -> 0.0771
A13: Resistor | B13: R2, R3 | C13: 10 kΩ | D13: =IF(B13<>"",LEN(B13)-LEN(SUBSTITUTE(B13,",",""))+1,"") -> 2 | E13: 0204/0207 | F13: LR0204F10K | G13: Farnell | H13: 2329855 | I13: 0.034 | J13: 0.068
A14: Resistor | B14: R4 | C14: 47 kΩ | D14: 1 | E14: 0204/0207 | F14: LR0204F47K | G14: Farnell | H14: 2329944 | I14: 0.027 | J14: 0.027
A15: Resistor | B15: R5 | C15: 330 kΩ | D15: =IF(B15<>"",LEN(B15)-LEN(SUBSTITUTE(B15,",",""))+1,"") -> 1 | E15: 0204/0207 | F15: MFR3-330KFC | G15: Farnell | H15: 1565303 | I15: 0.0425 | J15: 0.0425
A16: Connector | B16: 2x | C16: Wire-to-board connector, 2-pin | D16: 2 | F16: S2B-EH(LF)(SN) | G16: Farnell | H16: 2481437 | I16: 0.0682 | J16: =I16*D16 -> 0.1364
A17: Connector | B17: 8x | C17: Wire-to-board connector, 3-pin | D17: 9 | F17: S3B-EH(LF)(SN) | G17: Farnell | H17: 2481438 | I17: 0.103 | J17: 0.927
A18: Connector | B18: 1x | C18: Wire-to-board terminal block, 4 entries | D18: 1 | F18: Weidmuller 9994130000 | G18: Farnell | H18: 2884774 | I18: 1.16 | J18: 1.16
A19: Connector | B19: =CONCATENATE(D19, "x") -> 2x | C19: EHR-2 | D19: 2 | F19: EHR-2 | G19: Farnell | H19: 2481434 | I19: 0.0312 | J19: 0.0624 | K19: For power LED and switch
A20: Connector | B20: 2x | C20: EHR-3 | D20: 11 | F20: EHR-3 | G20: Farnell | H20: 2399175 | I20: 0.0345 | J20: 0.3795 | K20: 2 needed for supply testing
A21: Connector | B21: 4x | C21: SEH-001T-P0.6 | D21: =D19*2+D20*3-2 -> 35 | F21: SEH-001T-P0.6 | G21: Farnell | H21: 1863249 | I21: 0.0254 | J21: =I21*D21 -> 0.889 | K21: 4 needed for supply testing
A22: Misc | B22: GND, +12V, -12V | C22: Solder pins, ⌀ 1 mm | D22: =IF(B22<>"",LEN(B22)-LEN(SUBSTITUTE(B22,",",""))+1,"") -> 3 | F22: Vogt 1364A.68 | G22: Conrad | H22: 736018 - 62 | I22: 0.0259 | J22: =I22*D22 -> 0.0777
A23: Misc | B23: 1x | C23: Heat sink | D23: 1 | F23: OS518-150-B | G23: Farnell | H23: 1773365 | I23: 14.54 | J23: 14.54
A24: Misc | B24: 2x | C24: Heat sink clips, TO-220 | D24: 2 | F24: MAX01NG | G24: Farnell | H24: 2082840 | I24: 0.433 | J24: 0.866
A25: Misc | B25: 1x | C25: Thermally conductive foil | D25: 1 | F25: WLFT 404 24.5 X 27.7 | G25: Farnell | H25: 4695525 | I25: 3.99 | J25: 3.99
A26: Misc | B26: 1x | C26: Transformer | D26: 1 | E26: Toroidal transformer | F26: Sedlbauer 825014 1x230 V/2x12 V, 50 VA, 2.08 A, temperature switch | G26: Conrad | H26: 607136 - 62 | I26: 38.99 | J26: 38.99
A27: Misc | B27: FUSE | C27: 400 mA, slow blow, 20 x 5 mm | D27: 1 | F27: Littelfuse 0239.400MXP | G27: Farnell | H27: 1596634 | I27: 0.353 | J27: 0.353 | K27: As per Sedlbauer datasheet
A28: Misc | B28: 1x | C28: Power entry module | D28: 1 | F28: Schurter 4304.6053 | G28: Mouser | H28: 693-4304.6053 | I28: 12.47 | J28: 12.47
A29: Misc | B29: 1x | C29: Aluminum box | D29: 1 | F29: Multicomp MC001186 | G29: Farnell | H29: 2545078 | I29: 18.06 | J29: 18.06 | K29: To cover mains area
A30: Misc-2 | B30: 2x | C30: 10 Ω, 17 W resistor for testing purposes | D30: 2 | F30: SQP20AJB-10R | G30: Mouser | H30: 603-SQP20AJB-10R | I30: 1.06 | J30: 2.12 | K30: For power supply testing
J32: =SUM(J5:J30) -> 116.8786 | K32: total

Sheet Misc.
A4: Type | B4: Designator | C4: Identifier | D4: Count | E4: Body type | F4: Suggested product | G4: Distributor | H4: Order # | I4: Individual price | J4: Total price | K4: Remarks
A5: LED | B5: 5x front panel | C5: LED red, 2.4 V, 2 mA | D5: 6 | E5: 3 mm LED | F5: TLLR4401 | G5: Mouser | H5: 78-TLLR4401 | I5: 0.3 | J5: =D5*I5 -> 1.8 | K5: Freeze, silence bridging, attack detect, voiced, unvoiced, power
A6: Misc-2 | B6: 1x | C6: 16-wire ribbon cable, 28 AWG | D6: 1 | F6: 3M 3365-16 | G6: Farnell | H6: 297318 | I6: 2.34 | J6: =D6*I6 -> 2.34 | K6: 1 meter
A7: Misc-2 | B7: 5x | C7: Single-pole dual-throw switch, ON-ON | D7: 6 | F7: H8610VBAAA | G7: Farnell | H7: 151134 | I7: 2.36 | J7: =D7*I7 -> 14.16 | K7: Front panel, various switches
A8: Misc-2 | B8: 1x | C8: Single-pole dual-throw switch, ON-OFF-ON | D8: 1 | F8: H8620VBAAA | G8: Farnell | H8: 733878 | I8: 3.8 | J8: 3.8 | K8: Front panel, VUV function
A9: Misc-2 | B9: 1x | C9: Single-pole single-throw switch, momentary ON | D9: 1 | F9: H8601VBAAA | G9: Farnell | H9: 480393 | I9: 3.8 | J9: 3.8 | K9: Front panel, freeze switch
A10: Misc-2 | B10: 1x | C10: 1.6 mm shrink tubing | D10: 1 | G10: Farnell | H10: 1210349 | I10: 0.0828 | J10: 0.0828 | K10: 4 feet
A11: Misc-2 | B11: 1x | C11: 3.2 mm shrink tubing | D11: 1 | G11: Farnell | H11: 1210352 | I11: 1.63 | J11: 1.63 | K11: 4 feet
A12: Misc-2 | B12: 1x | C12: Coax cable, 1.9 mm overall diameter | D12: 3 | F12: Lapp 2170002 | G12: Farnell | H12: 1491534 | I12: 4.65 | J12: 13.95 | K12: 3 meters (10 feet)
A13: Misc-2 | B13: 50x | C13: Knobs | D13: 50 | E13: 6.35 mm round shaft | F13: Davies clone 1900h with brass insert | G13: Thonk | H13: knobs | I13: 0.73 | J13: 36.5
A14: Misc-2 | B14: 1x | C14: 19 inch 3U enclosure | D14: 1 | F14: Slim Line 03/230 3U 400 SILVER | G14: Modushop | H14: enclosure | I14: 53.9 | J14: 53.9
A15: Misc-2 | B15: 6x | C15: Round nylon spacer | D15: 6 | F15: D01475 | G15: Farnell | H15: 1733405 | I15: 0.0317 | J15: 0.1902
A16: Misc-2 | B16: 6x | C16: 3 mm screws with nut, 12 mm length | D16: 6 | H16: screws 1 | K16: Used for VUV detector board and slew/freeze board
A17: Misc-2 | B17: 4x | C17: 3 mm screws with nut, 25 mm length | D17: 4 | H17: screws 2 | K17: Used for DC/DC board assembly
J19: =SUM(J5:J14) -> 131.9628 | K19: total

Sheet Baskets
B1: Mouser basket | C1: Mouser Basket | D1: Mouser Basket | E1: Bundle Request Form | F1: self procure
B2: See Mouser project "18-channel stereo vocoder (excl. supply)" | C2: See Mouser project "Vocoder DC/DC supply" | D2: See Mouser project "Vocoder LDO supply" | E2: See bundle request form | F2: Your own responsibility
B3: 1 | C3: 2 | D3: 3 | E3: 4 | F3: 5
A4: 511-L78L05ACZ | B4: ●
A5: 511-L79L05ACZ | B5: ●
A6: 595-CD40106BE | B6: ●
A7: 595-CD4050BE | B7: ●
A8: 595-CD4053BE | B8: ●
A9: 595-CD4093BE | B9: ●
A10: 926-LM13700N/NOPB | B10: ●
A11: 512-LM319N | B11: ●
A12: 595-NE5532AP | B12: ●
A13: 887-300P14-U | B13: ●
A14: 595-TL072IP | B14: ●
A15: 595-TL074CN | B15: ●
A16: 512-2N3904BU | B16: ●
A17: 512-2N3906BU | B17: ●
A18: 512-J105 | B18: ●
A19: 512-J113 | B19: ●
A20: 512-1N4148 | B20: ●
A21: 863-1N4001RLG | B21: ●
A22: 603-MFR-12FTF52-10R | B22: ●
A23: 603-MFR-12FTF52-47R | B23: ●
A24: 603-MFR-12FTF52-100R | B24: ●
A25: 603-MFR-12FTF52-220R | B25: ●
A26: 603-MFR-12FTF52-430R | B26: ●
A27: 603-MFR-12FTF52-470R | B27: ●
A28: 603-MFR-12FTF52-510R | B28: ●
A29: 603-MFR-12FTF52-560R | B29: ●
A30: 603-MFR-12FTF52-750R | B30: ●
A31: 603-MFR-12FTF52-820R | B31: ●
A32: 603-MFR-12FTF52-1K | B32: ●
A33: 603-MFR-12FTF52-1K5 | B33: ●
A34: 603-MFR-12FTF52-2K2 | B34: ●
A35: 603-MFR-12FTF52-3K3 | B35: ●
A36: 603-MFR-12FTF52-3K9 | B36: ●
A37: 603-MFR-12FTF52-4K7 | B37: ●
A38: 603-MFR-12FTF52-5K1 | B38: ●
A39: 603-MFR-12FTF52-5K6 | B39: ●
A40: 603-MFR-12FTF52-6K8 | B40: ●
A41: 603-MFR-12FTF52-7K5 | B41: ●
A42: 603-MFR-12FTF52-8K2 | B42: ●
A43: 603-MFR-12FTF52-10K | B43: ●
A44: 603-MFR-12FTF52-12K | B44: ●
A45: 603-MFR-12FTF52-15K | B45: ●
A46: 603-MFR-12FTF52-18K | B46: ●
A47: 603-MFR-12FTF52-20K | B47: ●
A48: 603-MFR-12FTF52-22K | B48: ●
A49: 603-MFR-12FTF52-24K | B49: ●
A50: 603-MFR-12FTF52-27K | B50: ●
A51: 603-MFR-12FTF52-30K | B51: ●
A52: 603-MFR-12FTF52-33K | B52: ●
A53: 603-MFR-12FTF52-36K | B53: ●
A54: 603-MFR-12FTF52-39K | B54: ●
A55: 603-MFR-12FTF52-47K | B55: ●
A56: 603-MFR-12FTF52-56K | B56: ●
A57: 603-MFR-12FTF52-62K | B57: ●
A58: 603-MFR-12FTF52-75K | B58: ●
A59: 603-MFR-12FTF52-91K | B59: ●
A60: 603-MFR-12FTF52-100K | B60: ●
A61: 603-MFR-12FTF52-120K | B61: ●
A62: 603-MFR-12FTF52-150K | B62: ●
A63: 603-MFR-12FTF52-180K | B63: ●
A64: 603-MFR-12FTF52-200K | B64: ●
A65: 603-MFR-12FTF52-220K | B65: ●
A66: 603-MFR-12FTF52-330K | B66: ●
A67: 603-MFR-12FTF52-390K | B67: ●
A68: 603-MFR-12FTF52-470K | B68: ●
A69: 603-MFR-12FTF52-820K | B69: ●
A70: 603-MFR-12FTF52-1M | B70: ●
A71: 603-MFR-12FTF52-1M5 | B71: ●
A72: 603-MFR-12FTF52-2M2 | B72: ●
A73: 603-MFR-12FTF52-3M3 | B73: ●
A74: 603-MFR-12FTF52-4M7 | B74: ●
A75: 603-MFR-12FTF52-6M8 | B75: ●
A76: 603-MFR-25FBF52-196R | B76: ●
A77: 603-MFR-25FBF52-237R | B77: ●
A78: 603-MFR-25FBF52-249R | B78: ●
A79: 603-MFR-25FBF52-287R | B79: ●
A80: 603-MFR-25FBF52-301R | B80: ●
A81: 603-MFR-25FBF52-316R | B81: ●
A82: 603-MFR-25FBF52-348R | B82: ●
A83: 603-MFR-25FBF52-365R | B83: ●
A84: 603-MFR-25FBF52-383R | B84: ●
A85: 603-MFR-25FBF52-402R | B85: ●
A86: 603-MFR-25FBF52-422R | B86: ●
A87: 603-MFR-25FBF52-442R | B87: ●
A88: 603-MFR-25FBF52-464R | B88: ●
A89: 603-MFR-25FBF52-487R | B89: ●
A90: 603-MFR-25FBF52-511R | B90: ●
A91: 603-MFR-25FBF52-536R | B91: ●
A92: 603-MFR-25FBF52-562R | B92: ●
A93: 603-MFR-25FBF52-590R | B93: ●
A94: 603-MFR-25FBF52-619R | B94: ●
A95: 603-MFR-25FBF52-649R | B95: ●
A96: 603-MFR-25FBF52-681R | B96: ●
A97: 603-MFR-25FBF52-715R | B97: ●
A98: 603-MFR-25FBF52-750R | B98: ●
A99: 603-MFR-25FRF52-787R | B99: ●
A100: 603-MFR-25FBF52-825R | B100: ●
A101: 603-MFR-25FBF52-866R | B101: ●
A102: 603-MFR-25FBF52-909R | B102: ●
A103: 603-MFR-25FBF52-953R | B103: ●
A104: 603-MFR-25FBF52-1K | B104: ●
A105: 603-MFR-25FBF52-1K05 | B105: ●
A106: 603-MFR-25FBF52-1K1 | B106: ●
A107: 603-MFR-25FBF52-1K15 | B107: ●
A108: 603-MFR-25FBF52-1K21 | B108: ●
A109: 603-MFR-25FBF52-1K27 | B109: ●
A110: 603-MFR-25FBF52-1K33 | B110: ●
A111: 603-MFR-25FBF52-1K4 | B111: ●
A112: 603-MFR-25FBF52-1K69 | B112: ●
A113: 603-MFR-25FBF52-1K78 | B113: ●
A114: 603-MFR-25FBF52-6K81 | B114: ●
A115: 603-MFR-25FBF52-8K66 | B115: ●
A116: 603-MFR-25FBF52-9K09 | B116: ●
A117: 603-MFR-25FBF52-11K | B117: ●
A118: 603-MFR-25FBF52-11K5 | B118: ●
A119: 603-MFR-25FBF52-12K1 | B119: ●
A120: 603-MFR-25FBF52-14K | B120: ●
A121: 603-MFR-25FBF52-14K7 | B121: ●
A122: 603-MFR-25FBF52-15K4 | B122: ●
A123: 603-MFR-25FBF52-16K2 | B123: ●
A124: 603-MFR-25FBF52-17K8 | B124: ●
A125: 603-MFR-25FBF52-18K7 | B125: ●
A126: 603-MFR-25FBF52-19K6 | B126: ●
A127: 603-MFR-25FBF52-20K5 | B127: ●
A128: 603-MFR-25FBF52-22K6 | B128: ●
A129: 603-MFR-25FBF52-23K7 | B129: ●
A130: 603-MFR-25FBF52-24K9 | B130: ●
A131: 603-MFR-25FBF52-26K1 | B131: ●
A132: 603-MFR-25FBF52-28K7 | B132: ●
A133: 603-MFR-25FBF52-30K1 | B133: ●
A134: 603-MFR-25FBF52-31K6 | B134: ●
A135: 603-MFR-25FBF52-33K2 | B135: ●
A136: 603-MFR-25FBF52-36K5 | B136: ●
A137: 603-MFR-25FBF52-38K3 | B137: ●
A138: 603-MFR-25FBF52-40K2 | B138: ●
A139: 603-MFR-25FBF52-42K2 | B139: ●
A140: 603-MFR-25FBF52-46K4 | B140: ●
A141: 603-MFR-25FBF52-48K7 | B141: ●
A142: 603-MFR-25FBF52-51K1 | B142: ●
A143: 603-MFR-25FTE52-53K6 | B143: ●
A144: 603-MFR-25FBF52-59K | B144: ●
A145: 603-MFR-25FBF52-61K9 | B145: ●
A146: 603-MFR-25FBF52-64K9 | B146: ●
A147: 603-MFR-25FBF52-68K1 | B147: ●
A148: 603-MFR-25FBF52-75K | B148: ●
A149: 603-MFR-25FRF52-78K7 | B149: ●
A150: 603-MFR-25FBF52-82K5 | B150: ●
A151: 603-MFR-25FBF52-86K6 | B151: ●
A152: 603-MFR-25FBF52-95K3 | B152: ●
A153: 603-MFR-25FBF52-105K | B153: ●
A154: 603-MFR-25FBF52-110K | B154: ●
A155: 603-MFR-25FBF52-121K | B155: ●
A156: 603-MFR-25FBF52-133K | B156: ●
A157: 603-MFR-25FBF52-169K | B157: ●
A158: 594-K220J15C0GF53L2 | B158: ●
A159: 594-K101J15C0GF53L2 | B159: ●
A160: 80-C315C221M5R | B160: ●
A161: 594-K471J15C0GF53L2 | B161: ●
A162: 80-R82EC1100AA50K | B162: ●
A163: 80-C315C152K1R | B163: ●
A164: 581-08055A103JAT2A | B164: ●
A165: 594-K103K15X7RF53L2 | B165: ●
A166: 810-CGA5F2C0G1H333J | B166: ●
A167: 80-C1206C104K5R | B167: ●
A168: 81-GRM31C5C1H104JA1L | B168: ●
A169: 80-R82EC1100AA50K | B169: ●
A170: 80-R82EC1220DQ50J | B170: ●
A171: 80-R82EC1470CK50J | B171: ●
A172: 80-R82EC2100AA50J | B172: ●
A173: 80-R82EC2220AA50J | B173: ●
A174: 80-R82EC2470AA60J | B174: ●
A175: 80-R82EC3100AA70J | B175: ●
A176: 80-82DC3220Z360K | B176: ●
A177: 80-R82DC3330AA60K | B177: ●
A178: 80-R82DC4100Z360K | B178: ●
A179: 710-860020672006 | B179: ●
A180: 710-860020672007 | B180: ●
A181: 710-860020672010 | B181: ●
A182: 710-860010572003 | B182: ●
A183: 710-860010572005 | B183: ●
A184: 710-860010473007 | B184: ●
A185: 531-PT10V-1K | B185: ●
A186: 531-PT10H-10K | B186: ●
A187: 531-PT10V-10K | B187: ●
A188: 531-PT10V-20K | B188: ●
A189: 531-PT10H-25K | B189: ●
A190: 531-PT10H-100K | B190: ●
A191: 531-PT10V-100K | B191: ●
A192: 531-PT10H-250K | B192: ●
A193: 72-T93XA-100 | B193: ●
A194: 72-T93XA-2K | B194: ●
A195: 72-T93XA-100K | B195: ●
A196: 78-TLLG4401 | B196: ●
A197: 78-TLLR4401 | B197: ●
A198: 78-TLLY4401 | B198: ●
A199: 575-199308 | F199: ●
A200: 575-199314 | F200: ●
... 56 more rows

Sheet Channel (calc)
A4: Type | B4: Designator | C4: Identifier | D4: Count | E4: Body type | F4: Suggested product | G4: Distributor | H4: Order # | I4: Individual price | J4: Total price | K4: Remarks | L4: Channel
A5: Resistor-F | B5: R1, R13 | C5: 1.78 kΩ | D5: 2 | E5: 0204/0207 | F5: MRS25000C1781FCT00 | G5: Farnell | H5: 9465430 | I5: 0.085 | J5: 0.17 | L5: 120 Hz
A6: Resistor-F | B6: R2, R14 | C6: 53.6 kΩ | D6: 2 | E6: 0204/0207 | F6: MRS25000C5362FCT00 | G6: Farnell | H6: 9468960 | I6: 0.051 | J6: 0.102 | L6: 120 Hz
A7: Resistor-F | B7: R3, R15 | C7: 110 kΩ | D7: 2 | E7: 0204/0207 | F7: MRS25000C1103FCT00 | G7: Farnell | H7: 9464069 | I7: 0.051 | J7: 0.102 | L7: 120 Hz
A8: Resistor-F | B8: R4, R16 | C8: 1.69 kΩ | D8: 2 | E8: 0204/0207 | F8: MRS25000C1691FCT00 | G8: Farnell | H8: 9465413 | I8: 0.085 | J8: 0.17 | L8: 120 Hz
A9: Resistor-F | B9: R5, R17 | C9: 51.1 kΩ | D9: 2 | E9: 0204/0207 | F9: MRS25000C5112FCT00 | G9: Farnell | H9: 9468870 | I9: 0.087 | J9: 0.174 | L9: 120 Hz
A10: Resistor-F | B10: R6, R18 | C10: 105 kΩ | D10: 2 | E10: 0204/0207 | F10: MRS25000C1053FCT00 | G10: Farnell | H10: 9463933 | I10: 0.049 | J10: 0.098 | L10: 120 Hz
A11: Resistor-F | B11: R7, R19 | C11: 1.4 kΩ | D11: 2 | E11: 0204/0207 | F11: MRS25000C1401FCT00 | G11: Farnell | H11: 9465324 | I11: 0.087 | J11: 0.174 | L11: 120 Hz
A12: Resistor-F | B12: R8, R20 | C12: 51.1 kΩ | D12: 2 | E12: 0204/0207 | F12: MRS25000C5112FCT00 | G12: Farnell | H12: 9468870 | I12: 0.087 | J12: 0.174 | L12: 120 Hz
A13: Resistor-F | B13: R9, R21 | C13: 169 kΩ | D13: 2 | E13: 0204/0207 | F13: MRS25000C1693FCT00 | G13: Farnell | H13: 9464808 | I13: 0.087 | J13: 0.174 | L13: 120 Hz
A14: Resistor-F | B14: R10, R22 | C14: 1.15 kΩ | D14: 2 | E14: 0204/0207 | F14: MRS25000C1151FCT00 | G14: Farnell | H14: 9465235 | I14: 0.087 | J14: 0.174 | L14: 120 Hz
A15: Resistor-F | B15: R11, R23 | C15: 40.2 kΩ | D15: 2 | E15: 0204/0207 | F15: MRS25000C4022FCT00 | G15: Farnell | H15: 9468153 | I15: 0.084 | J15: 0.168 | L15: 120 Hz
A16: Resistor-F | B16: R12, R24 | C16: 133 kΩ | D16: 2 | E16: 0204/0207 | F16: MRS25000C1333FCT00 | G16: Farnell | H16: 9464409 | I16: 0.084 | J16: 0.168 | L16: 120 Hz
A17: Resistor-F | B17: R1, R13 | C17: 1.4 kΩ | D17: 2 | E17: 0204/0207 | F17: MRS25000C1401FCT00 | G17: Farnell | H17: 9465324 | I17: 0.087 | J17: 0.174 | L17: 150 Hz
A18: Resistor-F | B18: R2, R14 | C18: 42.2 kΩ | D18: 2 | E18: 0204/0207 | F18: MRS25000C4222FCT00 | G18: Farnell | H18: 9468234 | I18: 0.051 | J18: 0.102 | L18: 150 Hz
A19: Resistor-F | B19: R3, R15 | C19: 86.6 kΩ | D19: 2 | E19: 0204/0207 | F19: MRS25000C8662FCT00 | G19: Farnell | H19: 9470379 | I19: 0.06 | J19: 0.12 | L19: 150 Hz
A20: Resistor-F | B20: R4, R16 | C20: 1.33 kΩ | D20: 2 | E20: 0204/0207 | F20: MRS25000C1331FCT00 | G20: Farnell | H20: 9465308 | I20: 0.087 | J20: 0.174 | L20: 150 Hz
A21: Resistor-F | B21: R5, R17 | C21: 40.2 kΩ | D21: 2 | E21: 0204/0207 | F21: MRS25000C4022FCT00 | G21: Farnell | H21: 9468153 | I21: 0.084 | J21: 0.168 | L21: 150 Hz
A22: Resistor-F | B22: R6, R18 | C22: 82.5 kΩ | D22: 2 | E22: 0204/0207 | F22: MRS25000C8252FCT00 | G22: Farnell | H22: 9470280 | I22: 0.06 | J22: 0.12 | L22: 150 Hz
A23: Resistor-F | B23: R7, R19 | C23: 1.1 kΩ | D23: 2 | E23: 0204/0207 | F23: MRS25000C1101FCT00 | G23: Farnell | H23: 9465219 | I23: 0.087 | J23: 0.174 | L23: 150 Hz
A24: Resistor-F | B24: R8, R20 | C24: 40.2 kΩ | D24: 2 | E24: 0204/0207 | F24: MRS25000C4022FCT00 | G24: Farnell | H24: 9468153 | I24: 0.084 | J24: 0.168 | L24: 150 Hz
A25: Resistor-F | B25: R9, R21 | C25: 133 kΩ | D25: 2 | E25: 0204/0207 | F25: MRS25000C1333FCT00 | G25: Farnell | H25: 9464409 | I25: 0.084 | J25: 0.168 | L25: 150 Hz
A26: Resistor-F | B26: R10, R22 | C26: 909 Ω | D26: 2 | E26: 0204/0207 | F26: MRS25000C9090FCT00 | G26: Farnell | H26: 9470549 | I26: 0.051 | J26: 0.102 | L26: 150 Hz
A27: Resistor-F | B27: R11, R23 | C27: 31.6 kΩ | D27: 2 | E27: 0204/0207 | F27: MRS25000C3162FCT00 | G27: Farnell | H27: 9467254 | I27: 0.051 | J27: 0.102 | L27: 150 Hz
A28: Resistor-F | B28: R12, R24 | C28: 105 kΩ | D28: 2 | E28: 0204/0207 | F28: MRS25000C1053FCT00 | G28: Farnell | H28: 9463933 | I28: 0.049 | J28: 0.098 | L28: 150 Hz
A29: Resistor-F | B29: R1, R13 | C29: 1.1 kΩ | D29: 2 | E29: 0204/0207 | F29: MRS25000C1101FCT00 | G29: Farnell | H29: 9465219 | I29: 0.087 | J29: 0.174 | L29: 190 Hz
A30: Resistor-F | B30: R2, R14 | C30: 33.2 kΩ | D30: 2 | E30: 0204/0207 | F30: MRS25000C3322FCT00 | G30: Farnell | H30: 9467360 | I30: 0.087 | J30: 0.174 | L30: 190 Hz
A31: Resistor-F | B31: R3, R15 | C31: 68.1 kΩ | D31: 2 | E31: 0204/0207 | F31: MRS25000C6812FCT00 | G31: Farnell | H31: 9469672 | I31: 0.087 | J31: 0.174 | L31: 190 Hz
A32: Resistor-F | B32: R4, R16 | C32: 1.05 kΩ | D32: 2 | E32: 0204/0207 | F32: MRS25000C1051FCT00 | G32: Farnell | H32: 9465197 | I32: 0.087 | J32: 0.174 | L32: 190 Hz
A33: Resistor-F | B33: R5, R17 | C33: 31.6 kΩ | D33: 2 | E33: 0204/0207 | F33: MRS25000C3162FCT00 | G33: Farnell | H33: 9467254 | I33: 0.051 | J33: 0.102 | L33: 190 Hz
A34: Resistor-F | B34: R6, R18 | C34: 64.9 kΩ | D34: 2 | E34: 0204/0207 | F34: MRS25000C6492FCT00 | G34: Farnell | H34: 9469567 | I34: 0.06 | J34: 0.12 | L34: 190 Hz
A35: Resistor-F | B35: R7, R19 | C35: 866 Ω | D35: 2 | E35: 0204/0207 | F35: MRS25000C8660FCT00 | G35: Farnell | H35: 9470360 | I35: 0.085 | J35: 0.17 | L35: 190 Hz
A36: Resistor-F | B36: R8, R20 | C36: 31.6 kΩ | D36: 2 | E36: 0204/0207 | F36: MRS25000C3162FCT00 | G36: Farnell | H36: 9467254 | I36: 0.051 | J36: 0.102 | L36: 190 Hz
A37: Resistor-F | B37: R9, R21 | C37: 105 kΩ | D37: 2 | E37: 0204/0207 | F37: MRS25000C1053FCT00 | G37: Farnell | H37: 9463933 | I37: 0.049 | J37: 0.098 | L37: 190 Hz
A38: Resistor-F | B38: R10, R22 | C38: 715 Ω | D38: 2 | E38: 0204/0207 | F38: MRS25000C7150FCT00 | G38: Farnell | H38: 9469907 | I38: 0.088 | J38: 0.176 | L38: 190 Hz
A39: Resistor-F | B39: R11, R23 | C39: 24.9 kΩ | D39: 2 | E39: 0204/0207 | F39: MRS25000C2492FCT00 | G39: Farnell | H39: 9466312 | I39: 0.087 | J39: 0.174 | L39: 190 Hz
A40: Resistor-F | B40: R12, R24 | C40: 82.5 kΩ | D40: 2 | E40: 0204/0207 | F40: MRS25000C8252FCT00 | G40: Farnell | H40: 9470280 | I40: 0.06 | J40: 0.12 | L40: 190 Hz
A41: Resistor-F | B41: R1, R13 | C41: 866 Ω | D41: 2 | E41: 0204/0207 | F41: MRS25000C8660FCT00 | G41: Farnell | H41: 9470360 | I41: 0.085 | J41: 0.17 | L41: 240 Hz
A42: Resistor-F | B42: R2, R14 | C42: 26.1 kΩ | D42: 2 | E42: 0204/0207 | F42: MRS25000C2612FCT00 | G42: Farnell | H42: 9466436 | I42: 0.088 | J42: 0.176 | L42: 240 Hz
A43: Resistor-F | B43: R3, R15 | C43: 53.6 kΩ | D43: 2 | E43: 0204/0207 | F43: MRS25000C5362FCT00 | G43: Farnell | H43: 9468960 | I43: 0.051 | J43: 0.102 | L43: 240 Hz
A44: Resistor-F | B44: R4, R16 | C44: 825 Ω | D44: 2 | E44: 0204/0207 | F44: MRS25000C8250FCT00 | G44: Farnell | H44: 9470263 | I44: 0.087 | J44: 0.174 | L44: 240 Hz
A45: Resistor-F | B45: R5, R17 | C45: 24.9 kΩ | D45: 2 | E45: 0204/0207 | F45: MRS25000C2492FCT00 | G45: Farnell | H45: 9466312 | I45: 0.087 | J45: 0.174 | L45: 240 Hz
A46: Resistor-F | B46: R6, R18 | C46: 51.1 kΩ | D46: 2 | E46: 0204/0207 | F46: MRS25000C5112FCT00 | G46: Farnell | H46: 9468870 | I46: 0.087 | J46: 0.174 | L46: 240 Hz
A47: Resistor-F | B47: R7, R19 | C47: 681 Ω | D47: 2 | E47: 0204/0207 | F47: MRS25000C6810FCT00 | G47: Farnell | H47: 9469656 | I47: 0.084 | J47: 0.168 | L47: 240 Hz
A48: Resistor-F | B48: R8, R20 | C48: 24.9 kΩ | D48: 2 | E48: 0204/0207 | F48: MRS25000C2492FCT00 | G48: Farnell | H48: 9466312 | I48: 0.087 | J48: 0.174 | L48: 240 Hz
A49: Resistor-F | B49: R9, R21 | C49: 82.5 kΩ | D49: 2 | E49: 0204/0207 | F49: MRS25000C8252FCT00 | G49: Farnell | H49: 9470280 | I49: 0.06 | J49: 0.12 | L49: 240 Hz
A50: Resistor-F | B50: R10, R22 | C50: 562 Ω | D50: 2 | E50: 0204/0207 | F50: MRS25000C5620FCT00 | G50: Farnell | H50: 9469052 | I50: 0.065 | J50: 0.13 | L50: 240 Hz
A51: Resistor-F | B51: R11, R23 | C51: 19.6 kΩ | D51: 2 | E51: 0204/0207 | F51: MRS25000C1962FCT00 | G51: Farnell | H51: 9465146 | I51: 0.084 | J51: 0.168 | L51: 240 Hz
A52: Resistor-F | B52: R12, R24 | C52: 64.9 kΩ | D52: 2 | E52: 0204/0207 | F52: MRS25000C6492FCT00 | G52: Farnell | H52: 9469567 | I52: 0.06 | J52: 0.12 | L52: 240 Hz
A53: Resistor-F | B53: R1, R13 | C53: 681 Ω | D53: 2 | E53: 0204/0207 | F53: MRS25000C6810FCT00 | G53: Farnell | H53: 9469656 | I53: 0.084 | J53: 0.168 | L53: 310 Hz
A54: Resistor-F | B54: R2, R14 | C54: 20.5 kΩ | D54: 2 | E54: 0204/0207 | F54: MRS25000C2052FCT00 | G54: Farnell | H54: 9465928 | I54: 0.081 | J54: 0.162 | L54: 310 Hz
A55: Resistor-F | B55: R3, R15 | C55: 42.2 kΩ | D55: 2 | E55: 0204/0207 | F55: MRS25000C4222FCT00 | G55: Farnell | H55: 9468234 | I55: 0.051 | J55: 0.102 | L55: 310 Hz
A56: Resistor-F | B56: R4, R16 | C56: 649 Ω | D56: 2 | E56: 0204/0207 | F56: MRS25000C6490FCT00 | G56: Farnell | H56: 9469559 | I56: 0.05 | J56: 0.1 | L56: 310 Hz
A57: Resistor-F | B57: R5, R17 | C57: 19.6 kΩ | D57: 2 | E57: 0204/0207 | F57: MRS25000C1962FCT00 | G57: Farnell | H57: 9465146 | I57: 0.084 | J57: 0.168 | L57: 310 Hz
A58: Resistor-F | B58: R6, R18 | C58: 40.2 kΩ | D58: 2 | E58: 0204/0207 | F58: MRS25000C4022FCT00 | G58: Farnell | H58: 9468153 | I58: 0.084 | J58: 0.168 | L58: 310 Hz
A59: Resistor-F | B59: R7, R19 | C59: 536 Ω | D59: 2 | E59: 0204/0207 | F59: MRS25000C5360FCT00 | G59: Farnell | H59: 9468951 | I59: 0.085 | J59: 0.17 | L59: 310 Hz
A60: Resistor-F | B60: R8, R20 | C60: 19.6 kΩ | D60: 2 | E60: 0204/0207 | F60: MRS25000C1962FCT00 | G60: Farnell | H60: 9465146 | I60: 0.084 | J60: 0.168 | L60: 310 Hz
A61: Resistor-F | B61: R9, R21 | C61: 64.9 kΩ | D61: 2 | E61: 0204/0207 | F61: MRS25000C6492FCT00 | G61: Farnell | H61: 9469567 | I61: 0.06 | J61: 0.12 | L61: 310 Hz
A62: Resistor-F | B62: R10, R22 | C62: 442 Ω | D62: 2 | E62: 0204/0207 | F62: MRS25000C4420FCT00 | G62: Farnell | H62: 9468340 | I62: 0.085 | J62: 0.17 | L62: 310 Hz
A63: Resistor-F | B63: R11, R23 | C63: 15.4 kΩ | D63: 2 | E63: 0204/0207 | F63: MRS25000C1542FCT00 | G63: Farnell | H63: 9464697 | I63: 0.084 | J63: 0.168 | L63: 310 Hz
A64: Resistor-F | B64: R12, R24 | C64: 51.1 kΩ | D64: 2 | E64: 0204/0207 | F64: MRS25000C5112FCT00 | G64: Farnell | H64: 9468870 | I64: 0.087 | J64: 0.174 | L64: 310 Hz
A65: Resistor-F | B65: R1, R13 | C65: 536 Ω | D65: 2 | E65: 0204/0207 | F65: MRS25000C5360FCT00 | G65: Farnell | H65: 9468951 | I65: 0.085 | J65: 0.17 | L65: 390 Hz
A66: Resistor-F | B66: R2, R14 | C66: 16.2 kΩ | D66: 2 | E66: 0204/0207 | F66: MRS25000C1622FCT00 | G66: Farnell | H66: 9464832 | I66: 0.087 | J66: 0.174 | L66: 390 Hz
A67: Resistor-F | B67: R3, R15 | C67: 33.2 kΩ | D67: 2 | E67: 0204/0207 | F67: MRS25000C3322FCT00 | G67: Farnell | H67: 9467360 | I67: 0.087 | J67: 0.174 | L67: 390 Hz
A68: Resistor-F | B68: R4, R16 | C68: 511 Ω | D68: 2 | E68: 0204/0207 | F68: MRS25000C5110FCT00 | G68: Farnell | H68: 9468854 | I68: 0.073 | J68: 0.146 | L68: 390 Hz
A69: Resistor-F | B69: R5, R17 | C69: 15.4 kΩ | D69: 2 | E69: 0204/0207 | F69: MRS25000C1542FCT00 | G69: Farnell | H69: 9464697 | I69: 0.084 | J69: 0.168 | L69: 390 Hz
A70: Resistor-F | B70: R6, R18 | C70: 31.6 kΩ | D70: 2 | E70: 0204/0207 | F70: MRS25000C3162FCT00 | G70: Farnell | H70: 9467254 | I70: 0.051 | J70: 0.102 | L70: 390 Hz
A71: Resistor-F | B71: R7, R19 | C71: 422 Ω | D71: 2 | E71: 0204/0207 | F71: MRS25000C4220FCT00 | G71: Farnell | H71: 9468226 | I71: 0.087 | J71: 0.174 | L71: 390 Hz
A72: Resistor-F | B72: R8, R20 | C72: 15.4 kΩ | D72: 2 | E72: 0204/0207 | F72: MRS25000C1542FCT00 | G72: Farnell | H72: 9464697 | I72: 0.084 | J72: 0.168 | L72: 390 Hz
A73: Resistor-F | B73: R9, R21 | C73: 51.1 kΩ | D73: 2 | E73: 0204/0207 | F73: MRS25000C5112FCT00 | G73: Farnell | H73: 9468870 | I73: 0.087 | J73: 0.174 | L73: 390 Hz
A74: Resistor-F | B74: R10, R22 | C74: 348 Ω | D74: 2 | E74: 0204/0207 | F74: MRS25000C3480FCT00 | G74: Farnell | H74: 9467424 | I74: 0.073 | J74: 0.146 | L74: 390 Hz
A75: Resistor-F | B75: R11, R23 | C75: 12.1 kΩ | D75: 2 | E75: 0204/0207 | F75: MRS25000C1212FCT00 | G75: Farnell | H75: 9464310 | I75: 0.087 | J75: 0.174 | L75: 390 Hz
A76: Resistor-F | B76: R12, R24 | C76: 40.2 kΩ | D76: 2 | E76: 0204/0207 | F76: MRS25000C4022FCT00 | G76: Farnell | H76: 9468153 | I76: 0.084 | J76: 0.168 | L76: 390 Hz
A77: Resistor-F | B77: R1, R13 | C77: 1.27 kΩ | D77: 2 | E77: 0204/0207 | F77: MRS25000C1271FCT00 | G77: Farnell | H77: 9465286 | I77: 0.087 | J77: 0.174 | L77: 500 Hz
A78: Resistor-F | B78: R2, R14 | C78: 38.3 kΩ | D78: 2 | E78: 0204/0207 | F78: MRS25000C3832FCT00 | G78: Farnell | H78: 9467653 | I78: 0.087 | J78: 0.174 | L78: 500 Hz
A79: Resistor-F | B79: R3, R15 | C79: 78.7 kΩ | D79: 2 | E79: 0204/0207 | F79: MRS25000C7872FCT00 | G79: Farnell | H79: 9470077 | I79: 0.06 | J79: 0.12 | L79: 500 Hz
A80: Resistor-F | B80: R4, R16 | C80: 1.21 kΩ | D80: 2 | E80: 0204/0207 | F80: MRS25000C1211FCT00 | G80: Farnell | H80: 9465260 | I80: 0.051 | J80: 0.102 | L80: 500 Hz
A81: Resistor-F | B81: R5, R17 | C81: 36.5 kΩ | D81: 2 | E81: 0204/0207 | F81: MRS25000C3652FCT00 | G81: Farnell | H81: 9467564 | I81: 0.085 | J81: 0.17 | L81: 500 Hz
A82: Resistor-F | B82: R6, R18 | C82: 75 kΩ | D82: 2 | E82: 0204/0207 | F82: MRS25000C7502FCT00 | G82: Farnell | H82: 9469990 | I82: 0.084 | J82: 0.168 | L82: 500 Hz
A83: Resistor-F | B83: R7, R19 | C83: 1 kΩ | D83: 2 | E83: 0204/0207 | F83: MRS25000C1001FCT00 | G83: Farnell | H83: 9465170 | I83: 0.05 | J83: 0.1 | L83: 500 Hz
A84: Resistor-F | B84: R8, R20 | C84: 36.5 kΩ | D84: 2 | E84: 0204/0207 | F84: MRS25000C3652FCT00 | G84: Farnell | H84: 9467564 | I84: 0.085 | J84: 0.17 | L84: 500 Hz
A85: Resistor-F | B85: R9, R21 | C85: 121 kΩ | D85: 2 | E85: 0204/0207 | F85: MRS25000C1213FCT00 | G85: Farnell | H85: 9464247 | I85: 0.087 | J85: 0.174 | L85: 500 Hz
A86: Resistor-F | B86: R10, R22 | C86: 825 Ω | D86: 2 | E86: 0204/0207 | F86: MRS25000C8250FCT00 | G86: Farnell | H86: 9470263 | I86: 0.087 | J86: 0.174 | L86: 500 Hz
A87: Resistor-F | B87: R11, R23 | C87: 28.7 kΩ | D87: 2 | E87: 0204/0207 | F87: MRS25000C2872FCT00 | G87: Farnell | H87: 9466606 | I87: 0.087 | J87: 0.174 | L87: 500 Hz
A88: Resistor-F | B88: R12, R24 | C88: 95.3 kΩ | D88: 2 | E88: 0204/0207 | F88: MRS25000C9532FCT00 | G88: Farnell | H88: 9470689 | I88: 0.05 | J88: 0.1 | L88: 500 Hz
A89: Resistor-F | B89: R1, R13 | C89: 1 kΩ | D89: 2 | E89: 0204/0207 | F89: MRS25000C1001FCT00 | G89: Farnell | H89: 9465170 | I89: 0.05 | J89: 0.1 | L89: 640 Hz
A90: Resistor-F | B90: R2, R14 | C90: 30.1 kΩ | D90: 2 | E90: 0204/0207 | F90: MRS25000C3012FCT00 | G90: Farnell | H90: 9467181 | I90: 0.087 | J90: 0.174 | L90: 640 Hz
A91: Resistor-F | B91: R3, R15 | C91: 61.9 kΩ | D91: 2 | E91: 0204/0207 | F91: MRS25000C6192FCT00 | G91: Farnell | H91: 9469443 | I91: 0.086 | J91: 0.172 | L91: 640 Hz
A92: Resistor-F | B92: R4, R16 | C92: 953 Ω | D92: 2 | E92: 0204/0207 | F92: MRS25000C9530FCT00 | G92: Farnell | H92: 9470670 | I92: 0.085 | J92: 0.17 | L92: 640 Hz
A93: Resistor-F | B93: R5, R17 | C93: 28.7 kΩ | D93: 2 | E93: 0204/0207 | F93: MRS25000C2872FCT00 | G93: Farnell | H93: 9466606 | I93: 0.087 | J93: 0.174 | L93: 640 Hz
A94: Resistor-F | B94: R6, R18 | C94: 59 kΩ | D94: 2 | E94: 0204/0207 | F94: MRS25000C5902FCT00 | G94: Farnell | H94: 9469168 | I94: 0.087 | J94: 0.174 | L94: 640 Hz
A95: Resistor-F | B95: R7, R19 | C95: 787 Ω | D95: 2 | E95: 0204/0207 | F95: MRS25000C7870FCT00 | G95: Farnell | H95: 9470069 | I95: 0.073 | J95: 0.146 | L95: 640 Hz
A96: Resistor-F | B96: R8, R20 | C96: 28.7 kΩ | D96: 2 | E96: 0204/0207 | F96: MRS25000C2872FCT00 | G96: Farnell | H96: 9466606 | I96: 0.087 | J96: 0.174 | L96: 640 Hz
A97: Resistor-F | B97: R9, R21 | C97: 95.3 kΩ | D97: 2 | E97: 0204/0207 | F97: MRS25000C9532FCT00 | G97: Farnell | H97: 9470689 | I97: 0.05 | J97: 0.1 | L97: 640 Hz
A98: Resistor-F | B98: R10, R22 | C98: 649 Ω | D98: 2 | E98: 0204/0207 | F98: MRS25000C6490FCT00 | G98: Farnell | H98: 9469559 | I98: 0.05 | J98: 0.1 | L98: 640 Hz
A99: Resistor-F | B99: R11, R23 | C99: 22.6 kΩ | D99: 2 | E99: 0204/0207 | F99: MRS25000C2262FCT00 | G99: Farnell | H99: 9466118 | I99: 0.085 | J99: 0.17 | L99: 640 Hz
A100: Resistor-F | B100: R12, R24 | C100: 75 kΩ | D100: 2 | E100: 0204/0207 | F100: MRS25000C7502FCT00 | G100: Farnell | H100: 9469990 | I100: 0.084 | J100: 0.168 | L100: 640 Hz
A101: Resistor-F | B101: R1, R13 | C101: 787 Ω | D101: 2 | E101: 0204/0207 | F101: MRS25000C7870FCT00 | G101: Farnell | H101: 9470069 | I101: 0.073 | J101: 0.146 | L101: 810 Hz
A102: Resistor-F | B102: R2, R14 | C102: 23.7 kΩ | D102: 2 | E102: 0204/0207 | F102: MRS25000C2372FCT00 | G102: Farnell | H102: 9466207 | I102: 0.051 | J102: 0.102 | L102: 810 Hz
A103: Resistor-F | B103: R3, R15 | C103: 48.7 kΩ | D103: 2 | E103: 0204/0207 | F103: MRS25000C4872FCT00 | G103: Farnell | H103: 9468552 | I103: 0.087 | J103: 0.174 | L103: 810 Hz
A104: Resistor-F | B104: R4, R16 | C104: 750 Ω | D104: 2 | E104: 0204/0207 | F104: MRS25000C7500FCT00 | G104: Farnell | H104: 9469982 | I104: 0.085 | J104: 0.17 | L104: 810 Hz
A105: Resistor-F | B105: R5, R17 | C105: 22.6 kΩ | D105: 2 | E105: 0204/0207 | F105: MRS25000C2262FCT00 | G105: Farnell | H105: 9466118 | I105: 0.085 | J105: 0.17 | L105: 810 Hz
A106: Resistor-F | B106: R6, R18 | C106: 46.4 kΩ | D106: 2 | E106: 0204/0207 | F106: MRS25000C4642FCT00 | G106: Farnell | H106: 9468439 | I106: 0.087 | J106: 0.174 | L106: 810 Hz
A107: Resistor-F | B107: R7, R19 | C107: 619 Ω | D107: 2 | E107: 0204/0207 | F107: MRS25000C6190FCT00 | G107: Farnell | H107: 9469435 | I107: 0.085 | J107: 0.17 | L107: 810 Hz
A108: Resistor-F | B108: R8, R20 | C108: 22.6 kΩ | D108: 2 | E108: 0204/0207 | F108: MRS25000C2262FCT00 | G108: Farnell | H108: 9466118 | I108: 0.085 | J108: 0.17 | L108: 810 Hz
A109: Resistor-F | B109: R9, R21 | C109: 75 kΩ | D109: 2 | E109: 0204/0207 | F109: MRS25000C7502FCT00 | G109: Farnell | H109: 9469990 | I109: 0.084 | J109: 0.168 | L109: 810 Hz
A110: Resistor-F | B110: R10, R22 | C110: 511 Ω | D110: 2 | E110: 0204/0207 | F110: MRS25000C5110FCT00 | G110: Farnell | H110: 9468854 | I110: 0.073 | J110: 0.146 | L110: 810 Hz
A111: Resistor-F | B111: R11, R23 | C111: 17.8 kΩ | D111: 2 | E111: 0204/0207 | F111: MRS25000C1782FCT00 | G111: Farnell | H111: 9464956 | I111: 0.06 | J111: 0.12 | L111: 810 Hz
A112: Resistor-F | B112: R12, R24 | C112: 59 kΩ | D112: 2 | E112: 0204/0207 | F112: MRS25000C5902FCT00 | G112: Farnell | H112: 9469168 | I112: 0.087 | J112: 0.174 | L112: 810 Hz
A113: Resistor-F | B113: R1, R13 | C113: 619 Ω | D113: 2 | E113: 0204/0207 | F113: MRS25000C6190FCT00 | G113: Farnell | H113: 9469435 | I113: 0.085 | J113: 0.17 | L113: 1030 Hz
A114: Resistor-F | B114: R2, R14 | C114: 18.7 kΩ | D114: 2 | E114: 0204/0207 | F114: MRS25000C1872FCT00 | G114: Farnell | H114: 9465057 | I114: 0.087 | J114: 0.174 | L114: 1030 Hz
A115: Resistor-F | B115: R3, R15 | C115: 38.3 kΩ | D115: 2 | E115: 0204/0207 | F115: MRS25000C3832FCT00 | G115: Farnell | H115: 9467653 | I115: 0.087 | J115: 0.174 | L115: 1030 Hz
A116: Resistor-F | B116: R4, R16 | C116: 590 Ω | D116: 2 | E116: 0204/0207 | F116: MRS25000C5900FCT00 | G116: Farnell | H116: 9469150 | I116: 0.087 | J116: 0.174 | L116: 1030 Hz
A117: Resistor-F | B117: R5, R17 | C117: 17.8 kΩ | D117: 2 | E117: 0204/0207 | F117: MRS25000C1782FCT00 | G117: Farnell | H117: 9464956 | I117: 0.06 | J117: 0.12 | L117: 1030 Hz
A118: Resistor-F | B118: R6, R18 | C118: 36.5 kΩ | D118: 2 | E118: 0204/0207 | F118: MRS25000C3652FCT00 | G118: Farnell | H118: 9467564 | I118: 0.085 | J118: 0.17 | L118: 1030 Hz
A119: Resistor-F | B119: R7, R19 | C119: 487 Ω | D119: 2 | E119: 0204/0207 | F119: MRS25000C4870FCT00 | G119: Farnell | H119: 9468544 | I119: 0.085 | J119: 0.17 | L119: 1030 Hz
A120: Resistor-F | B120: R8, R20 | C120: 17.8 kΩ | D120: 2 | E120: 0204/0207 | F120: MRS25000C1782FCT00 | G120: Farnell | H120: 9464956 | I120: 0.06 | J120: 0.12 | L120: 1030 Hz
A121: Resistor-F | B121: R9, R21 | C121: 59 kΩ | D121: 2 | E121: 0204/0207 | F121: MRS25000C5902FCT00 | G121: Farnell | H121: 9469168 | I121: 0.087 | J121: 0.174 | L121: 1030 Hz
A122: Resistor-F | B122: R10, R22 | C122: 402 Ω | D122: 2 | E122: 0204/0207 | F122: MRS25000C4020FCT00 | G122: Farnell | H122: 9468145 | I122: 0.085 | J122: 0.17 | L122: 1030 Hz
A123: Resistor-F | B123: R11, R23 | C123: 14 kΩ | D123: 2 | E123: 0204/0207 | F123: MRS25000C1402FCT00 | G123: Farnell | H123: 9464565 | I123: 0.087 | J123: 0.174 | L123: 1030 Hz
A124: Resistor-F | B124: R12, R24 | C124: 46.4 kΩ | D124: 2 | E124: 0204/0207 | F124: MRS25000C4642FCT00 | G124: Farnell | H124: 9468439 | I124: 0.087 | J124: 0.174 | L124: 1030 Hz
A125: Resistor-F | B125: R1, R13 | C125: 487 Ω | D125: 2 | E125: 0204/0207 | F125: MRS25000C4870FCT00 | G125: Farnell | H125: 9468544 | I125: 0.085 | J125: 0.17 | L125: 1310 Hz
A126: Resistor-F | B126: R2, R14 | C126: 14.7 kΩ | D126: 2 | E126: 0204/0207 | F126: MRS25000C1472FCT00 | G126: Farnell | H126: 9464581 | I126: 0.085 | J126: 0.17 | L126: 1310 Hz
A127: Resistor-F | B127: R3, R15 | C127: 30.1 kΩ | D127: 2 | E127: 0204/0207 | F127: MRS25000C3012FCT00 | G127: Farnell | H127: 9467181 | I127: 0.087 | J127: 0.174 | L127: 1310 Hz
A128: Resistor-F | B128: R4, R16 | C128: 464 Ω | D128: 2 | E128: 0204/0207 | F128: MRS25000C4640FCT00 | G128: Farnell | H128: 9468420 | I128: 0.085 | J128: 0.17 | L128: 1310 Hz
A129: Resistor-F | B129: R5, R17 | C129: 14 kΩ | D129: 2 | E129: 0204/0207 | F129: MRS25000C1402FCT00 | G129: Farnell | H129: 9464565 | I129: 0.087 | J129: 0.174 | L129: 1310 Hz
A130: Resistor-F | B130: R6, R18 | C130: 28.7 kΩ | D130: 2 | E130: 0204/0207 | F130: MRS25000C2872FCT00 | G130: Farnell | H130: 9466606 | I130: 0.087 | J130: 0.174 | L130: 1310 Hz
A131: Resistor-F | B131: R7, R19 | C131: 383 Ω | D131: 2 | E131: 0204/0207 | F131: MRS25000C3830FCT00 | G131: Farnell | H131: 9467645 | I131: 0.087 | J131: 0.174 | L131: 1310 Hz
A132: Resistor-F | B132: R8, R20 | C132: 14 kΩ | D132: 2 | E132: 0204/0207 | F132: MRS25000C1402FCT00 | G132: Farnell | H132: 9464565 | I132: 0.087 | J132: 0.174 | L132: 1310 Hz
A133: Resistor-F | B133: R9, R21 | C133: 46.4 kΩ | D133: 2 | E133: 0204/0207 | F133: MRS25000C4642FCT00 | G133: Farnell | H133: 9468439 | I133: 0.087 | J133: 0.174 | L133: 1310 Hz
A134: Resistor-F | B134: R10, R22 | C134: 316 Ω | D134: 2 | E134: 0204/0207 | F134: MRS25000C3160FCT00 | G134: Farnell | H134: 9467246 | I134: 0.085 | J134: 0.17 | L134: 1310 Hz
A135: Resistor-F | B135: R11, R23 | C135: 11 kΩ | D135: 2 | E135: 0204/0207 | F135: MRS25000C1102FCT00 | G135: Farnell | H135: 9464140 | I135: 0.051 | J135: 0.102 | L135: 1310 Hz
A136: Resistor-F | B136: R12, R24 | C136: 36.5 kΩ | D136: 2 | E136: 0204/0207 | F136: MRS25000C3652FCT00 | G136: Farnell | H136: 9467564 | I136: 0.085 | J136: 0.17 | L136: 1310 Hz
A137: Resistor-F | B137: R1, R13 | C137: 383 Ω | D137: 2 | E137: 0204/0207 | F137: MRS25000C3830FCT00 | G137: Farnell | H137: 9467645 | I137: 0.087 | J137: 0.174 | L137: 1660 Hz
A138: Resistor-F | B138: R2, R14 | C138: 11.5 kΩ | D138: 2 | E138: 0204/0207 | F138: MRS25000C1152FCT00 | G138: Farnell | H138: 9464166 | I138: 0.051 | J138: 0.102 | L138: 1660 Hz
A139: Resistor-F | B139: R3, R15 | C139: 23.7 kΩ | D139: 2 | E139: 0204/0207 | F139: MRS25000C2372FCT00 | G139: Farnell | H139: 9466207 | I139: 0.051 | J139: 0.102 | L139: 1660 Hz
A140: Resistor-F | B140: R4, R16 | C140: 365 Ω | D140: 2 | E140: 0204/0207 | F140: MRS25000C3650FCT00 | G140: Farnell | H140: 9467548 | I140: 0.051 | J140: 0.102 | L140: 1660 Hz
A141: Resistor-F | B141: R5, R17 | C141: 11 kΩ | D141: 2 | E141: 0204/0207 | F141: MRS25000C1102FCT00 | G141: Farnell | H141: 9464140 | I141: 0.051 | J141: 0.102 | L141: 1660 Hz
A142: Resistor-F | B142: R6, R18 | C142: 22.6 kΩ | D142: 2 | E142: 0204/0207 | F142: MRS25000C2262FCT00 | G142: Farnell | H142: 9466118 | I142: 0.085 | J142: 0.17 | L142: 1660 Hz
A143: Resistor-F | B143: R7, R19 | C143: 301 Ω | D143: 2 | E143: 0204/0207 | F143: MRS25000C3010FCT00 | G143: Farnell | H143: 9467149 | I143: 0.085 | J143: 0.17 | L143: 1660 Hz
A144: Resistor-F | B144: R8, R20 | C144: 11 kΩ | D144: 2 | E144: 0204/0207 | F144: MRS25000C1102FCT00 | G144: Farnell | H144: 9464140 | I144: 0.051 | J144: 0.102 | L144: 1660 Hz
A145: Resistor-F | B145: R9, R21 | C145: 36.5 kΩ | D145: 2 | E145: 0204/0207 | F145: MRS25000C3652FCT00 | G145: Farnell | H145: 9467564 | I145: 0.085 | J145: 0.17 | L145: 1660 Hz
A146: Resistor-F | B146: R10, R22 | C146: 249 Ω | D146: 2 | E146: 0204/0207 | F146: MRS25000C2490FCT00 | G146: Farnell | H146: 9466282 | I146: 0.086 | J146: 0.172 | L146: 1660 Hz
A147: Resistor-F | B147: R11, R23 | C147: 8.66 kΩ | D147: 2 | E147: 0204/0207 | F147: MRS25000C8661FCT00 | G147: Farnell | H147: 9470476 | I147: 0.089 | J147: 0.178 | L147: 1660 Hz
A148: Resistor-F | B148: R12, R24 | C148: 28.7 kΩ | D148: 2 | E148: 0204/0207 | F148: MRS25000C2872FCT00 | G148: Farnell | H148: 9466606 | I148: 0.087 | J148: 0.174 | L148: 1660 Hz
A149: Resistor-F | B149: R1, R13 | C149: 1 kΩ | D149: 2 | E149: 0204/0207 | F149: MRS25000C1001FCT00 | G149: Farnell | H149: 9465170 | I149: 0.05 | J149: 0.1 | L149: 2110 Hz
A150: Resistor-F | B150: R2, R14 | C150: 30.1 kΩ | D150: 2 | E150: 0204/0207 | F150: MRS25000C3012FCT00 | G150: Farnell | H150: 9467181 | I150: 0.087 | J150: 0.174 | L150: 2110 Hz
A151: Resistor-F | B151: R3, R15 | C151: 61.9 kΩ | D151: 2 | E151: 0204/0207 | F151: MRS25000C6192FCT00 | G151: Farnell | H151: 9469443 | I151: 0.086 | J151: 0.172 | L151: 2110 Hz
A152: Resistor-F | B152: R4, R16 | C152: 953 Ω | D152: 2 | E152: 0204/0207 | F152: MRS25000C9530FCT00 | G152: Farnell | H152: 9470670 | I152: 0.085 | J152: 0.17 | L152: 2110 Hz
A153: Resistor-F | B153: R5, R17 | C153: 28.7 kΩ | D153: 2 | E153: 0204/0207 | F153: MRS25000C2872FCT00 | G153: Farnell | H153: 9466606 | I153: 0.087 | J153: 0.174 | L153: 2110 Hz
A154: Resistor-F | B154: R6, R18 | C154: 59 kΩ | D154: 2 | E154: 0204/0207 | F154: MRS25000C5902FCT00 | G154: Farnell | H154: 9469168 | I154: 0.087 | J154: 0.174 | L154: 2110 Hz
A155: Resistor-F | B155: R7, R19 | C155: 787 Ω | D155: 2 | E155: 0204/0207 | F155: MRS25000C7870FCT00 | G155: Farnell | H155: 9470069 | I155: 0.073 | J155: 0.146 | L155: 2110 Hz
A156: Resistor-F | B156: R8, R20 | C156: 28.7 kΩ | D156: 2 | E156: 0204/0207 | F156: MRS25000C2872FCT00 | G156: Farnell | H156: 9466606 | I156: 0.087 | J156: 0.174 | L156: 2110 Hz
A157: Resistor-F | B157: R9, R21 | C157: 95.3 kΩ | D157: 2 | E157: 0204/0207 | F157: MRS25000C9532FCT00 | G157: Farnell | H157: 9470689 | I157: 0.05 | J157: 0.1 | L157: 2110 Hz
A158: Resistor-F | B158: R10, R22 | C158: 649 Ω | D158: 2 | E158: 0204/0207 | F158: MRS25000C6490FCT00 | G158: Farnell | H158: 9469559 | I158: 0.05 | J158: 0.1 | L158: 2110 Hz
A159: Resistor-F | B159: R11, R23 | C159: 22.6 kΩ | D159: 2 | E159: 0204/0207 | F159: MRS25000C2262FCT00 | G159: Farnell | H159: 9466118 | I159: 0.085 | J159: 0.17 | L159: 2110 Hz
A160: Resistor-F | B160: R12, R24 | C160: 75 kΩ | D160: 2 | E160: 0204/0207 | F160: MRS25000C7502FCT00 | G160: Farnell | H160: 9469990 | I160: 0.084 | J160: 0.168 | L160: 2110 Hz
A161: Resistor-F | B161: R1, R13 | C161: 787 Ω | D161: 2 | E161: 0204/0207 | F161: MRS25000C7870FCT00 | G161: Farnell | H161: 9470069 | I161: 0.073 | J161: 0.146 | L161: 2680 Hz
A162: Resistor-F | B162: R2, R14 | C162: 23.7 kΩ | D162: 2 | E162: 0204/0207 | F162: MRS25000C2372FCT00 | G162: Farnell | H162: 9466207 | I162: 0.051 | J162: 0.102 | L162: 2680 Hz
A163: Resistor-F | B163: R3, R15 | C163: 48.7 kΩ | D163: 2 | E163: 0204/0207 | F163: MRS25000C4872FCT00 | G163: Farnell | H163: 9468552 | I163: 0.087 | J163: 0.174 | L163: 2680 Hz
A164: Resistor-F | B164: R4, R16 | C164: 750 Ω | D164: 2 | E164: 0204/0207 | F164: MRS25000C7500FCT00 | G164: Farnell | H164: 9469982 | I164: 0.085 | J164: 0.17 | L164: 2680 Hz
A165: Resistor-F | B165: R5, R17 | C165: 22.6 kΩ | D165: 2 | E165: 0204/0207 | F165: MRS25000C2262FCT00 | G165: Farnell | H165: 9466118 | I165: 0.085 | J165: 0.17 | L165: 2680 Hz
A166: Resistor-F | B166: R6, R18 | C166: 46.4 kΩ | D166: 2 | E166: 0204/0207 | F166: MRS25000C4642FCT00 | G166: Farnell | H166: 9468439 | I166: 0.087 | J166: 0.174 | L166: 2680 Hz
A167: Resistor-F | B167: R7, R19 | C167: 619 Ω | D167: 2 | E167: 0204/0207 | F167: MRS25000C6190FCT00 | G167: Farnell | H167: 9469435 | I167: 0.085 | J167: 0.17 | L167: 2680 Hz
A168: Resistor-F | B168: R8, R20 | C168: 22.6 kΩ | D168: 2 | E168: 0204/0207 | F168: MRS25000C2262FCT00 | G168: Farnell | H168: 9466118 | I168: 0.085 | J168: 0.17 | L168: 2680 Hz
A169: Resistor-F | B169: R9, R21 | C169: 75 kΩ | D169: 2 | E169: 0204/0207 | F169: MRS25000C7502FCT00 | G169: Farnell | H169: 9469990 | I169: 0.084 | J169: 0.168 | L169: 2680 Hz
A170: Resistor-F | B170: R10, R22 | C170: 511 Ω | D170: 2 | E170: 0204/0207 | F170: MRS25000C5110FCT00 | G170: Farnell | H170: 9468854 | I170: 0.073 | J170: 0.146 | L170: 2680 Hz
A171: Resistor-F | B171: R11, R23 | C171: 17.8 kΩ | D171: 2 | E171: 0204/0207 | F171: MRS25000C1782FCT00 | G171: Farnell | H171: 9464956 | I171: 0.06 | J171: 0.12 | L171: 2680 Hz
A172: Resistor-F | B172: R12, R24 | C172: 59 kΩ | D172: 2 | E172: 0204/0207 | F172: MRS25000C5902FCT00 | G172: Farnell | H172: 9469168 | I172: 0.087 | J172: 0.174 | L172: 2680 Hz
A173: Resistor-F | B173: R1, R13 | C173: 619 Ω | D173: 2 | E173: 0204/0207 | F173: MRS25000C6190FCT00 | G173: Farnell | H173: 9469435 | I173: 0.085 | J173: 0.17 | L173: 3410 Hz
A174: Resistor-F | B174: R2, R14 | C174: 18.7 kΩ | D174: 2 | E174: 0204/0207 | F174: MRS25000C1872FCT00 | G174: Farnell | H174: 9465057 | I174: 0.087 | J174: 0.174 | L174: 3410 Hz
A175: Resistor-F | B175: R3, R15 | C175: 38.3 kΩ | D175: 2 | E175: 0204/0207 | F175: MRS25000C3832FCT00 | G175: Farnell | H175: 9467653 | I175: 0.087 | J175: 0.174 | L175: 3410 Hz
A176: Resistor-F | B176: R4, R16 | C176: 590 Ω | D176: 2 | E176: 0204/0207 | F176: MRS25000C5900FCT00 | G176: Farnell | H176: 9469150 | I176: 0.087 | J176: 0.174 | L176: 3410 Hz
A177: Resistor-F | B177: R5, R17 | C177: 17.8 kΩ | D177: 2 | E177: 0204/0207 | F177: MRS25000C1782FCT00 | G177: Farnell | H177: 9464956 | I177: 0.06 | J177: 0.12 | L177: 3410 Hz
A178: Resistor-F | B178: R6, R18 | C178: 36.5 kΩ | D178: 2 | E178: 0204/0207 | F178: MRS25000C3652FCT00 | G178: Farnell | H178: 9467564 | I178: 0.085 | J178: 0.17 | L178: 3410 Hz
A179: Resistor-F | B179: R7, R19 | C179: 487 Ω | D179: 2 | E179: 0204/0207 | F179: MRS25000C4870FCT00 | G179: Farnell | H179: 9468544 | I179: 0.085 | J179: 0.17 | L179: 3410 Hz
A180: Resistor-F | B180: R8, R20 | C180: 17.8 kΩ | D180: 2 | E180: 0204/0207 | F180: MRS25000C1782FCT00 | G180: Farnell | H180: 9464956 | I180: 0.06 | J180: 0.12 | L180: 3410 Hz
A181: Resistor-F | B181: R9, R21 | C181: 59 kΩ | D181: 2 | E181: 0204/0207 | F181: MRS25000C5902FCT00 | G181: Farnell | H181: 9469168 | I181: 0.087 | J181: 0.174 | L181: 3410 Hz
A182: Resistor-F | B182: R10, R22 | C182: 402 Ω | D182: 2 | E182: 0204/0207 | F182: MRS25000C4020FCT00 | G182: Farnell | H182: 9468145 | I182: 0.085 | J182: 0.17 | L182: 3410 Hz
A183: Resistor-F | B183: R11, R23 | C183: 14 kΩ | D183: 2 | E183: 0204/0207 | F183: MRS25000C1402FCT00 | G183: Farnell | H183: 9464565 | I183: 0.087 | J183: 0.174 | L183: 3410 Hz
A184: Resistor-F | B184: R12, R24 | C184: 46.4 kΩ | D184: 2 | E184: 0204/0207 | F184: MRS25000C4642FCT00 | G184: Farnell | H184: 9468439 | I184: 0.087 | J184: 0.174 | L184: 3410 Hz
A185: Resistor-F | B185: R1, R13 | C185: 487 Ω | D185: 2 | E185: 0204/0207 | F185: MRS25000C4870FCT00 | G185: Farnell | H185: 9468544 | I185: 0.085 | J185: 0.17 | L185: 4330 Hz
A186: Resistor-F | B186: R2, R14 | C186: 14.7 kΩ | D186: 2 | E186: 0204/0207 | F186: MRS25000C1472FCT00 | G186: Farnell | H186: 9464581 | I186: 0.085 | J186: 0.17 | L186: 4330 Hz
A187: Resistor-F | B187: R3, R15 | C187: 30.1 kΩ | D187: 2 | E187: 0204/0207 | F187: MRS25000C3012FCT00 | G187: Farnell | H187: 9467181 | I187: 0.087 | J187: 0.174 | L187: 4330 Hz
A188: Resistor-F | B188: R4, R16 | C188: 464 Ω | D188: 2 | E188: 0204/0207 | F188: MRS25000C4640FCT00 | G188: Farnell | H188: 9468420 | I188: 0.085 | J188: 0.17 | L188: 4330 Hz
A189: Resistor-F | B189: R5, R17 | C189: 14 kΩ | D189: 2 | E189: 0204/0207 | F189: MRS25000C1402FCT00 | G189: Farnell | H189: 9464565 | I189: 0.087 | J189: 0.174 | L189: 4330 Hz
A190: Resistor-F | B190: R6, R18 | C190: 28.7 kΩ | D190: 2 | E190: 0204/0207 | F190: MRS25000C2872FCT00 | G190: Farnell | H190: 9466606 | I190: 0.087 | J190: 0.174 | L190: 4330 Hz
A191: Resistor-F | B191: R7, R19 | C191: 383 Ω | D191: 2 | E191: 0204/0207 | F191: MRS25000C3830FCT00 | G191: Farnell | H191: 9467645 | I191: 0.087 | J191: 0.174 | L191: 4330 Hz
A192: Resistor-F | B192: R8, R20 | C192: 14 kΩ | D192: 2 | E192: 0204/0207 | F192: MRS25000C1402FCT00 | G192: Farnell | H192: 9464565 | I192: 0.087 | J192: 0.174 | L192: 4330 Hz
A193: Resistor-F | B193: R9, R21 | C193: 46.4 kΩ | D193: 2 | E193: 0204/0207 | F193: MRS25000C4642FCT00 | G193: Farnell | H193: 9468439 | I193: 0.087 | J193: 0.174 | L193: 4330 Hz
A194: Resistor-F | B194: R10, R22 | C194: 316 Ω | D194: 2 | E194: 0204/0207 | F194: MRS25000C3160FCT00 | G194: Farnell | H194: 9467246 | I194: 0.085 | J194: 0.17 | L194: 4330 Hz
A195: Resistor-F | B195: R11, R23 | C195: 11 kΩ | D195: 2 | E195: 0204/0207 | F195: MRS25000C1102FCT00 | G195: Farnell | H195: 9464140 | I195: 0.051 | J195: 0.102 | L195: 4330 Hz
A196: Resistor-F | B196: R12, R24 | C196: 36.5 kΩ | D196: 2 | E196: 0204/0207 | F196: MRS25000C3652FCT00 | G196: Farnell | H196: 9467564 | I196: 0.085 | J196: 0.17 | L196: 4330 Hz
A197: Resistor-F | B197: R1, R13 | C197: 383 Ω | D197: 2 | E197: 0204/0207 | F197: MRS25000C3830FCT00 | G197: Farnell | H197: 9467645 | I197: 0.087 | J197: 0.174 | L197: 5500 Hz
A198: Resistor-F | B198: R2, R14 | C198: 11.5 kΩ | D198: 2 | E198: 0204/0207 | F198: MRS25000C1152FCT00 | G198: Farnell | H198: 9464166 | I198: 0.051 | J198: 0.102 | L198: 5500 Hz
A199: Resistor-F | B199: R3, R15 | C199: 23.7 kΩ | D199: 2 | E199: 0204/0207 | F199: MRS25000C2372FCT00 | G199: Farnell | H199: 9466207 | I199: 0.051 | J199: 0.102 | L199: 5500 Hz
A200: Resistor-F | B200: R4, R16 | C200: 365 Ω | D200: 2 | E200: 0204/0207 | F200: MRS25000C3650FCT00 | G200: Farnell | H200: 9467548 | I200: 0.051 | J200: 0.102 | L200: 5500 Hz
A201: Resistor-F | B201: R5, R17 | C201: 11 kΩ | D201: 2 | E201: 0204/0207 | F201: MRS25000C1102FCT00 | G201: Farnell | H201: 9464140 | I201: 0.051 | J201: 0.102 | L201: 5500 Hz
A202: Resistor-F | B202: R6, R18 | C202: 22.6 kΩ | D202: 2 | E202: 0204/0207 | F202: MRS25000C2262FCT00 | G202: Farnell | H202: 9466118 | I202: 0.085 | J202: 0.17 | L202: 5500 Hz
A203: Resistor-F | B203: R7, R19 | C203: 301 Ω | D203: 2 | E203: 0204/0207 | F203: MRS25000C3010FCT00 | G203: Farnell | H203: 9467149 | I203: 0.085 | J203: 0.17 | L203: 5500 Hz
... 89 more rows

Sheet Minimum Order Count
A1: LR0204F10R | B1: 10 | C1: Farnell
A2: LR0204F47R | B2: 100 | C2: Farnell
A3: LR0204F100R | B3: 10 | C3: Farnell
A4: LR0204F220R | B4: 10 | C4: Farnell
A5: LR0204F430R | B5: 10 | C5: Farnell
A6: LR0204F470R | B6: 10 | C6: Farnell
A7: LR0204F510R | B7: 10 | C7: Farnell
A8: LR0204F560R | B8: 10 | C8: Farnell
A9: LR0204F620R | B9: 10 | C9: Farnell
A10: LR0204F750R | B10: 10 | C10: Farnell
A11: LR0204F820R | B11: 10 | C11: Farnell
A12: LR0204F1K0 | B12: 10 | C12: Farnell
A13: LR0204F1K5 | B13: 10 | C13: Farnell
A14: LR0204F1K6 | B14: 10 | C14: Farnell
A15: LR0204F2K0 | B15: 10 | C15: Farnell
A16: LR0204F2K2 | B16: 10 | C16: Farnell
A17: LR0204F2K4 | B17: 10 | C17: Farnell
A18: LR0204F2K7 | B18: 10 | C18: Farnell
A19: LR0204F3K3 | B19: 10 | C19: Farnell
A20: LR0204F3K9 | B20: 10 | C20: Farnell
A21: LR0204F4K7 | B21: 10 | C21: Farnell
A22: LR0204F5K1 | B22: 10 | C22: Farnell
A23: LR0204F5K6 | B23: 10 | C23: Farnell
A24: LR0204F6K2 | B24: 10 | C24: Farnell
A25: LR0204F6K8 | B25: 10 | C25: Farnell
A26: LR0204F7K5 | B26: 10 | C26: Farnell
A27: LR0204F8K2 | B27: 10 | C27: Farnell
A28: LR0204F10K | B28: 100 | C28: Farnell
A29: LR0204F12K | B29: 10 | C29: Farnell
A30: LR0204F13K | B30: 10 | C30: Farnell
A31: LR0204F15K | B31: 10 | C31: Farnell
A32: LR0204F18K | B32: 10 | C32: Farnell
A33: LR0204F20K | B33: 10 | C33: Farnell
A34: LR0204F22K | B34: 10 | C34: Farnell
A35: LR0204F24K | B35: 10 | C35: Farnell
A36: LR0204F27K | B36: 10 | C36: Farnell
A37: LR0204F30K | B37: 10 | C37: Farnell
A38: LR0204F33K | B38: 10 | C38: Farnell
A39: LR0204F36K | B39: 10 | C39: Farnell
A40: LR0204F39K | B40: 10 | C40: Farnell
A41: LR0204F47K | B41: 100 | C41: Farnell
A42: LR0204F51K | B42: 10 | C42: Farnell
A43: LR0204F56K | B43: 10 | C43: Farnell
A44: LR0204F62K | B44: 10 | C44: Farnell
A45: LR0204F75K | B45: 10 | C45: Farnell
A46: LR0204F91K | B46: 10 | C46: Farnell
A47: LR0204F100K | B47: 100 | C47: Farnell
A48: LR0204F120K | B48: 10 | C48: Farnell
A49: LR0204F150K | B49: 10 | C49: Farnell
A50: LR0204F180K | B50: 10 | C50: Farnell
A51: LR0204F200K | B51: 10 | C51: Farnell
A52: LR0204F220K | B52: 10 | C52: Farnell
A53: MFR3-330KFC | B53: 10 | C53: Farnell
A54: LR0204F390K | B54: 10 | C54: Farnell
A55: LR0204F430K | B55: 10 | C55: Farnell
A56: LR0204F470K | B56: 10 | C56: Farnell
A57: MRS25000C8203FCT00 | B57: 10 | C57: Farnell
A58: LR0204F1M0 | B58: 10 | C58: Farnell
A59: MRS25000C1504FCT00 | B59: 10 | C59: Farnell
A60: MRS25000C2004FCT00 | B60: 10 | C60: Farnell
A61: MRS25000C6804FCT00 | B61: 10 | C61: Farnell
A62: CFR16J2M2 | B62: 10 | C62: Farnell
A63: CFR16J3M3 | B63: 10 | C63: Farnell
A64: CFR16J4M7 | B64: 10 | C64: Farnell
A66: MRS25000C1960FCT00 | B66: 10 | C66: Farnell
A67: MRS25000C2370FCT00 | B67: 10 | C67: Farnell
A68: MRS25000C2490FCT00 | B68: 10 | C68: Farnell
A69: MRS25000C2870FCT00 | B69: 10 | C69: Farnell
A70: MRS25000C3010FCT00 | B70: 10 | C70: Farnell
A71: MRS25000C3160FCT00 | B71: 10 | C71: Farnell
A72: MRS25000C3480FCT00 | B72: 10 | C72: Farnell
A73: MRS25000C3650FCT00 | B73: 10 | C73: Farnell
A74: MRS25000C3830FCT00 | B74: 10 | C74: Farnell
A75: MRS25000C4020FCT00 | B75: 10 | C75: Farnell
A76: MRS25000C4220FCT00 | B76: 10 | C76: Farnell
A77: MRS25000C4420FCT00 | B77: 10 | C77: Farnell
A78: MRS25000C4640FCT00 | B78: 10 | C78: Farnell
A79: MRS25000C4870FCT00 | B79: 10 | C79: Farnell
A80: MRS25000C5110FCT00 | B80: 10 | C80: Farnell
A81: MRS25000C5360FCT00 | B81: 10 | C81: Farnell
A82: MRS25000C5620FCT00 | B82: 10 | C82: Farnell
A83: MRS25000C5900FCT00 | B83: 10 | C83: Farnell
A84: MRS25000C6190FCT00 | B84: 10 | C84: Farnell
A85: MRS25000C6490FCT00 | B85: 10 | C85: Farnell
A86: MRS25000C6810FCT00 | B86: 10 | C86: Farnell
A87: MRS25000C7150FCT00 | B87: 10 | C87: Farnell
A88: MRS25000C7500FCT00 | B88: 10 | C88: Farnell
A89: MRS25000C7870FCT00 | B89: 10 | C89: Farnell
A90: MRS25000C8250FCT00 | B90: 10 | C90: Farnell
A91: MRS25000C8660FCT00 | B91: 10 | C91: Farnell
A92: MRS25000C9090FCT00 | B92: 10 | C92: Farnell
A93: MRS25000C9530FCT00 | B93: 10 | C93: Farnell
A94: MRS25000C1001FCT00 | B94: 10 | C94: Farnell
A95: MRS25000C1051FCT00 | B95: 10 | C95: Farnell
A96: MRS25000C1101FCT00 | B96: 10 | C96: Farnell
A97: MRS25000C1151FCT00 | B97: 10 | C97: Farnell
A98: MRS25000C1211FCT00 | B98: 10 | C98: Farnell
A99: MRS25000C1271FCT00 | B99: 10 | C99: Farnell
A100: MRS25000C1331FCT00 | B100: 10 | C100: Farnell
A101: MRS25000C1401FCT00 | B101: 10 | C101: Farnell
A102: MRS25000C1691FCT00 | B102: 10 | C102: Farnell
A103: MRS25000C1781FCT00 | B103: 10 | C103: Farnell
A104: MRS25000C6811FCT00 | B104: 10 | C104: Farnell
A105: MRS25000C8661FCT00 | B105: 10 | C105: Farnell
A106: MRS25000C9091FCT00 | B106: 10 | C106: Farnell
A107: MRS25000C1102FCT00 | B107: 10 | C107: Farnell
A108: MRS25000C1152FCT00 | B108: 10 | C108: Farnell
A109: MRS25000C1212FCT00 | B109: 10 | C109: Farnell
A110: MRS25000C1402FCT00 | B110: 10 | C110: Farnell
A111: MRS25000C1472FCT00 | B111: 10 | C111: Farnell
A112: MRS25000C1542FCT00 | B112: 10 | C112: Farnell
A113: MRS25000C1622FCT00 | B113: 10 | C113: Farnell
A114: MRS25000C1782FCT00 | B114: 10 | C114: Farnell
A115: MRS25000C1872FCT00 | B115: 10 | C115: Farnell
A116: MRS25000C1962FCT00 | B116: 10 | C116: Farnell
A117: MRS25000C2052FCT00 | B117: 10 | C117: Farnell
A118: MRS25000C2262FCT00 | B118: 10 | C118: Farnell
A119: MRS25000C2372FCT00 | B119: 10 | C119: Farnell
A120: MRS25000C2492FCT00 | B120: 10 | C120: Farnell
A121: MRS25000C2612FCT00 | B121: 10 | C121: Farnell
A122: MRS25000C2872FCT00 | B122: 10 | C122: Farnell
A123: MRS25000C3012FCT00 | B123: 10 | C123: Farnell
A124: MRS25000C3162FCT00 | B124: 10 | C124: Farnell
A125: MRS25000C3322FCT00 | B125: 10 | C125: Farnell
A126: MRS25000C3652FCT00 | B126: 10 | C126: Farnell
A127: MRS25000C3832FCT00 | B127: 10 | C127: Farnell
A128: MRS25000C4022FCT00 | B128: 10 | C128: Farnell
A129: MRS25000C4222FCT00 | B129: 10 | C129: Farnell
A130: MRS25000C4642FCT00 | B130: 10 | C130: Farnell
A131: MRS25000C4872FCT00 | B131: 10 | C131: Farnell
A132: MRS25000C5112FCT00 | B132: 10 | C132: Farnell
A133: MRS25000C5362FCT00 | B133: 10 | C133: Farnell
A134: MRS25000C5902FCT00 | B134: 10 | C134: Farnell
A135: MRS25000C6192FCT00 | B135: 10 | C135: Farnell
A136: MRS25000C6492FCT00 | B136: 10 | C136: Farnell
A137: MRS25000C6812FCT00 | B137: 10 | C137: Farnell
A138: MRS25000C7502FCT00 | B138: 10 | C138: Farnell
A139: MRS25000C7872FCT00 | B139: 10 | C139: Farnell
A140: MRS25000C8252FCT00 | B140: 10 | C140: Farnell
A141: MRS25000C8662FCT00 | B141: 10 | C141: Farnell
A142: MRS25000C9532FCT00 | B142: 10 | C142: Farnell
A143: MRS25000C1053FCT00 | B143: 10 | C143: Farnell
A144: MRS25000C1103FCT00 | B144: 10 | C144: Farnell
A145: MRS25000C1213FCT00 | B145: 10 | C145: Farnell
A146: MRS25000C1333FCT00 | B146: 10 | C146: Farnell
A147: MRS25000C1693FCT00 | B147: 10 | C147: Farnell
A149: C1206C104K5RACTU | B149: 500 | C149: Farnell
A151: S2B-EH(LF)(SN) | B151: 100 | C151: Farnell
A152: S3B-EH(LF)(SN) | B152: 100 | C152: Farnell
A153: EHR-2 | B153: 100 | C153: Farnell
A154: EHR-3 | B154: 100 | C154: Farnell
A155: SEH-001T-P0.6 | B155: 10 | C155: Farnell
A157: J113 | B157: 5 | C157: Farnell
A159: 1N4148TR | B159: 100 | C159: Farnell
A160: 1N4148 | B160: 100 | C160: Mouser
A162: K220J15C0GF53L2 | B162: 10 | C162: Farnell
A163: K101J15C0GF53L2 | B163: 10 | C163: Farnell
A164: K221J15C0GF53L2 | B164: 10 | C164: Farnell
A165: K471J15C0GF53L2 | B165: 10 | C165: Farnell
A166: K103K15X7RF53L2 | B166: 10 | C166: Farnell
A167: K102J15C0GF53L2 | B167: 10 | C167: Farnell
A169: R82EC1100AA50K | B169: 5 | C169: Farnell
A170: R82EC1220DQ50J | B170: 5 | C170: Farnell
A171: R82EC1470CK50J | B171: 5 | C171: Farnell
A172: R82EC2100AA50J | B172: 5 | C172: Farnell
A173: R82EC2220AA50J | B173: 5 | C173: Farnell
A174: R82EC2470AA60J | B174: 5 | C174: Farnell
A175: R82EC3100AA70J | B175: 5 | C175: Farnell
A176: R82DC3220Z360K | B176: 50 | C176: RS-Online
A177: R82DC3330AA60K | B177: 5 | C177: Farnell
A179: VJ0805Y104KXACW1BC | B179: 100 | C179: Farnell
A180: 3M 969102-0000-DA | B180: 10 | C180: Farnell
A182: Voigt 1364A.61 | B182: 200 | C182: Bürklin
A184: CD4053BEE4 | B184: 25 | C184: RS-Online
A186: GRM2195C1H103FA01D | B186: 100 | C186: Farnell
A187: GRM3195C1H333JA01D | B187: 100 | C187: Farnell
A188: GRM31C5C1H104JA01L | B188: 100 | C188: Farnell
A190: Würth 860010372004 | B190: 100 | C190: Farnell
A192: 1N4002 | B192: 10 | C192: Farnell
A193: knobs | B193: 25 | C193: Thonk
A194: PT 10 LH 25K | B194: 50 | C194: Bürklin
A195: T93XA 100K | B195: 10 | C195: Bürklin
A197: TLLR4400 | B197: 25 | C197: Farnell
A198: TLLG4400 | B198: 10 | C198: Farnell
A199: TLLR4401 | B199: 25 | C199: Farnell
A200: TLLG4401 | B200: 5 | C200: Farnell
A201: TLLY4401 | B201: 5 | C201: Farnell
A203: 2227MC-08-03-18-F1 | B203: 25 | C203: Farnell
A204: 2227MC-16-03-09-F1 | B204: 25 | C204: Farnell
A205: 2227MC-14-03-10-F1 | B205: 100 | C205: Farnell
A207: AR 08 HZL-TT | B207: 30 | C207: RS-Online
A208: AR 14 HZL-TT | B208: 100 | C208: RS-Online
A209: AR 16 HZL-TT | B209: 30 | C209: RS-Online
A211: MFR3-100RFC | B211: 10 | C211: Farnell
A212: MFR3-470RFC | B212: 10 | C212: Farnell
A213: MFR3-1K0FC | B213: 10 | C213: Farnell
A214: MFR3-2K2FC | B214: 10 | C214: Farnell
A215: MFR3-2K7FC | B215: 10 | C215: Farnell
A216: MFR3-3K3FC | B216: 10 | C216: Farnell
A217: MFR3-3K9FC | B217: 10 | C217: Farnell
... 46 more rows

Sheet Resistor pricing
A1: 10 Ω | B1: Resistor | C1: 2329856 | D1: LR0204F10R | E1: Farnell | F1: Farnell | G1: 10 | H1: 0.036 | I1: 100 | J1: 0.027
A2: 47 Ω, 250 mW | B2: Resistor | C2: 2329945 | D2: LR0204F47R | E2: Farnell | F2: Farnell | G2: 10 | H2: 0.075 | I2: 100 | J2: 0.0408
A3: 100 Ω | B3: Resistor | C3: 2329854 | D3: LR0204F100R | E3: Farnell | F3: Farnell | G3: 10 | H3: 0.036 | I3: 100 | J3: 0.027
A4: 220 Ω | B4: Resistor | C4: 2329900 | D4: LR0204F220R | E4: Farnell | F4: Farnell | G4: 10 | H4: 0.036 | I4: 100 | J4: 0.027
A5: 430 Ω | B5: Resistor | C5: 2329938 | D5: LR0204F430R | E5: Farnell | F5: Farnell | G5: 10 | H5: 0.0372 | I5: 100 | J5: 0.0279
A6: 470 Ω | B6: Resistor | C6: 2329942 | D6: LR0204F470R | E6: Farnell | F6: Farnell | G6: 10 | H6: 0.0353 | I6: 100 | J6: 0.0265
A7: 510 Ω | B7: Resistor | C7: 2329949 | D7: LR0204F510R | E7: Farnell | F7: Farnell | G7: 10 | H7: 0.0353 | I7: 100 | J7: 0.0265
A8: 560 Ω | B8: Resistor | C8: 2329953 | D8: LR0204F560R | E8: Farnell | F8: Farnell | G8: 10 | H8: 0.0353 | I8: 100 | J8: 0.0265
A9: 620 Ω | B9: Resistor | C9: 2329960 | D9: LR0204F620R | E9: Farnell | F9: Farnell | G9: 10 | H9: 0.0353 | I9: 100 | J9: 0.0265
A10: 750 Ω | B10: Resistor | C10: 2329971 | D10: LR0204F750R | E10: Farnell | F10: Farnell | G10: 10 | H10: 0.0353 | I10: 100 | J10: 0.0265
A11: 820 Ω | B11: Resistor | C11: 2329976 | D11: LR0204F820R | E11: Farnell | F11: Farnell | G11: 10 | H11: 0.0771 | I11: 100 | J11: 0.0415
A12: 1 kΩ | B12: Resistor | C12: 2329885 | D12: LR0204F1K0 | E12: Farnell | F12: Farnell | G12: 10 | H12: 0.0771 | I12: 100 | J12: 0.0415
A13: 1.5 kΩ | B13: Resistor | C13: 2329891 | D13: LR0204F1K5 | E13: Farnell | F13: Farnell | G13: 10 | H13: 0.0757 | I13: 100 | J13: 0.0408
A14: 1.6 kΩ | B14: Resistor | C14: 2329892 | D14: LR0204F1K6 | E14: Farnell | F14: Farnell | G14: 10 | H14: 0.035 | I14: 100 | J14: 0.026
A15: 2.2 kΩ | B15: Resistor | C15: 2329912 | D15: LR0204F2K2 | E15: Farnell | F15: Farnell | G15: 10 | H15: 0.0771 | I15: 100 | J15: 0.0415
A16: 3.3 kΩ | B16: Resistor | C16: 2329934 | D16: LR0204F3K3 | E16: Farnell | F16: Farnell | G16: 10 | H16: 0.036 | I16: 100 | J16: 0.027
A17: 3.9 kΩ | B17: Resistor | C17: 2329936 | D17: LR0204F3K9 | E17: Farnell | F17: Farnell | G17: 10 | H17: 0.036 | I17: 100 | J17: 0.027
A18: 4.7 kΩ | B18: Resistor | C18: 2329947 | D18: LR0204F4K7 | E18: Farnell | F18: Farnell | G18: 10 | H18: 0.036 | I18: 100 | J18: 0.027
A19: 5.1 kΩ | B19: Resistor | C19: 2329957 | D19: LR0204F5K1 | E19: Farnell | F19: Farnell | G19: 10 | H19: 0.0353 | I19: 100 | J19: 0.0265
A20: 5.6 kΩ | B20: Resistor | C20: 2329958 | D20: LR0204F5K6 | E20: Farnell | F20: Farnell | G20: 10 | H20: 0.036 | I20: 100 | J20: 0.027
A21: 6.2 kΩ | B21: Resistor | C21: 2329968 | D21: LR0204F6K2 | E21: Farnell | F21: Farnell | G21: 10 | H21: 0.036 | I21: 100 | J21: 0.027
A22: 6.8 kΩ | B22: Resistor | C22: 2329969 | D22: LR0204F6K8 | E22: Farnell | F22: Farnell | G22: 10 | H22: 0.0353 | I22: 100 | J22: 0.0265
A23: 7.5 kΩ | B23: Resistor | C23: 2329974 | D23: LR0204F7K5 | E23: Farnell | F23: Farnell | G23: 10 | H23: 0.0812 | I23: 100 | J23: 0.0393
A24: 8.2 kΩ | B24: Resistor | C24: 2329981 | D24: LR0204F8K2 | E24: Farnell | F24: Farnell | G24: 10 | H24: 0.036 | I24: 100 | J24: 0.027
A25: 10 kΩ | B25: Resistor | C25: 2329855 | D25: LR0204F10K | E25: Farnell | F25: Farnell | G25: 10 | H25: 0.034 | I25: 100 | J25: 0.0255
A26: 12 kΩ | B26: Resistor | C26: 2329863 | D26: LR0204F12K | E26: Farnell | F26: Farnell | G26: 10 | H26: 0.036 | I26: 100 | J26: 0.027
A27: 15 kΩ | B27: Resistor | C27: 2329873 | D27: LR0204F15K | E27: Farnell | F27: Farnell | G27: 10 | H27: 0.0353 | I27: 100 | J27: 0.0265
A28: 18 kΩ | B28: Resistor | C28: 2329882 | D28: LR0204F18K | E28: Farnell | F28: Farnell | G28: 10 | H28: 0.036 | I28: 100 | J28: 0.027
A29: 20 kΩ | B29: Resistor | C29: 2329897 | D29: LR0204F20K | E29: Farnell | F29: Farnell | G29: 10 | H29: 0.0363 | I29: 100 | J29: 0.0265
A30: 22 kΩ | B30: Resistor | C30: 2329901 | D30: LR0204F22K | E30: Farnell | F30: Farnell | G30: 10 | H30: 0.036 | I30: 100 | J30: 0.027
A31: 24 kΩ | B31: Resistor | C31: 2329904 | D31: LR0204F24K | E31: Farnell | F31: Farnell | G31: 10 | H31: 0.036 | I31: 100 | J31: 0.027
A32: 27 kΩ | B32: Resistor | C32: 2329909 | D32: LR0204F27K | E32: Farnell | F32: Farnell | G32: 10 | H32: 0.0353 | I32: 100 | J32: 0.0265
A33: 30 kΩ | B33: Resistor | C33: 2329917 | D33: LR0204F30K | E33: Farnell | F33: Farnell | G33: 10 | H33: 0.036 | I33: 100 | J33: 0.027
A34: 33 kΩ | B34: Resistor | C34: 2329922 | D34: LR0204F33K | E34: Farnell | F34: Farnell | G34: 10 | H34: 0.0353 | I34: 100 | J34: 0.0265
A35: 36 kΩ | B35: Resistor | C35: 2329927 | D35: LR0204F36K | E35: Farnell | F35: Farnell | G35: 10 | H35: 0.036 | I35: 100 | J35: 0.027
A36: 39 kΩ | B36: Resistor | C36: 2329932 | D36: LR0204F39K | E36: Farnell | F36: Farnell | G36: 10 | H36: 0.0353 | I36: 100 | J36: 0.0265
A37: 47 kΩ | B37: Resistor | C37: 2329944 | D37: LR0204F47K | E37: Farnell | F37: Farnell | G37: 10 | H37: 0.036 | I37: 100 | J37: 0.027
A38: 51 kΩ | B38: Resistor | C38: 2329950 | D38: LR0204F51K | E38: Farnell | F38: Farnell | G38: 10 | H38: 0.052 | I38: 100 | J38: 0.034
A39: 56 kΩ | B39: Resistor | C39: 2329954 | D39: LR0204F56K | E39: Farnell | F39: Farnell | G39: 10 | H39: 0.0353 | I39: 100 | J39: 0.0265
A40: 62 kΩ | B40: Resistor | C40: 2329961 | D40: LR0204F62K | E40: Farnell | F40: Farnell | G40: 10 | H40: 0.0771 | I40: 100 | J40: 0.0415
A41: 75 kΩ | B41: Resistor | C41: 2329972 | D41: LR0204F75K | E41: Farnell | F41: Farnell | G41: 10 | H41: 0.0353 | I41: 100 | J41: 0.0265
A42: 91 kΩ | B42: Resistor | C42: 2329984 | D42: LR0204F91K | E42: Farnell | F42: Farnell | G42: 10 | H42: 0.0347 | I42: 100 | J42: 0.026
A43: 100 kΩ | B43: Resistor | C43: 2329853 | D43: LR0204F100K | E43: Farnell | F43: Farnell | G43: 10 | H43: 0.0353 | I43: 100 | J43: 0.0265
A44: 120 kΩ | B44: Resistor | C44: 2329861 | D44: LR0204F120K | E44: Farnell | F44: Farnell | G44: 10 | H44: 0.0857 | I44: 100 | J44: 0.0462
A45: 150 kΩ | B45: Resistor | C45: 2329871 | D45: LR0204F150K | E45: Farnell | F45: Farnell | G45: 10 | H45: 0.036 | I45: 100 | J45: 0.027
A46: 180 kΩ | B46: Resistor | C46: 2329880 | D46: LR0204F180K | E46: Farnell | F46: Farnell | G46: 10 | H46: 0.0447 | I46: 100 | J46: 0.0319
A47: 200 kΩ | B47: Resistor | C47: 2329895 | D47: LR0204F200K | E47: Farnell | F47: Farnell | G47: 10 | H47: 0.0347 | I47: 100 | J47: 0.026
A48: 220 kΩ | B48: Resistor | C48: 2329899 | D48: LR0204F220K | E48: Farnell | F48: Farnell | G48: 10 | H48: 0.036 | I48: 100 | J48: 0.027
A49: 330 kΩ | B49: Resistor | C49: 1565303 | D49: MFR3-330KFC | E49: Farnell | F49: Farnell | G49: 10 | H49: 0.0425 | I49: 100 | J49: 0.0258
A50: 390 kΩ | B50: Resistor | C50: 2329929 | D50: LR0204F390K | E50: Farnell | F50: Farnell | G50: 10 | H50: 0.036 | I50: 100 | J50: 0.027
A51: 470 kΩ | B51: Resistor | C51: 2329941 | D51: LR0204F470K | E51: Farnell | F51: Farnell | G51: 10 | H51: 0.052 | I51: 100 | J51: 0.0347
A52: 820 kΩ | B52: Resistor | C52: 9470239 | D52: MRS25000C8203FCT00 | E52: Farnell | F52: Farnell | G52: 10 | H52: 0.091 | I52: 100 | J52: 0.0607
A53: 1 MΩ | B53: Resistor | C53: 2329894 | D53: LR0204F1M0 | E53: Farnell | F53: Farnell | G53: 10 | H53: 0.0353 | I53: 100 | J53: 0.0265
A54: 1.5 MΩ | B54: Resistor | C54: 9465537 | D54: MRS25000C1504FCT00 | E54: Farnell | F54: Farnell | G54: 10 | H54: 0.0524 | I54: 100 | J54: 0.0387
A55: 2 MΩ | B55: Resistor | C55: 9466878 | D55: MRS25000C2004FCT00 | E55: Farnell | F55: Farnell | G55: 10 | H55: 0.089 | I55: 100 | J55: 0.0593
A56: 2.2 MΩ, 5% | B56: Resistor | C56: 2329510 | D56: CFR16J2M2 | E56: Farnell | F56: Farnell | G56: 10 | H56: 0.0246 | I56: 100 | J56: 0.0184
A57: 3.3 MΩ, 5% | B57: Resistor | C57: 2329524 | D57: CFR16J3M3 | E57: Farnell | F57: Farnell | G57: 10 | H57: 0.0529 | I57: 100 | J57: 0.0285
A58: 4.7 MΩ, 5% | B58: Resistor | C58: 2329535 | D58: CFR16J4M7 | E58: Farnell | F58: Farnell | G58: 10 | H58: 0.0529 | I58: 100 | J58: 0.0285
A59: 6.8 MΩ | B59: Resistor | C59: 9469842 | D59: MRS25000C6804FCT00 | E59: Farnell | F59: Farnell | G59: 10 | H59: 0.0529 | I59: 100 | J59: 0.0391
A60: 196 Ω | B60: Resistor-F | C60: 9465120 | D60: MRS25000C1960FCT00 | E60: Farnell | F60: Farnell | G60: 10 | H60: 0.051 | I60: 100 | J60: 0.037
A61: 237 Ω | B61: Resistor-F | C61: 9466185 | D61: MRS25000C2370FCT00 | E61: Farnell | F61: Farnell | G61: 10 | H61: 0.083 | I61: 100 | J61: 0.058
A62: 249 Ω | B62: Resistor-F | C62: 9466282 | D62: MRS25000C2490FCT00 | E62: Farnell | F62: Farnell | G62: 10 | H62: 0.086 | I62: 100 | J62: 0.057
A63: 287 Ω | B63: Resistor-F | C63: 9466584 | D63: MRS25000C2870FCT00 | E63: Farnell | F63: Farnell | G63: 10 | H63: 0.051 | I63: 100 | J63: 0.037
A64: 301 Ω | B64: Resistor-F | C64: 9467149 | D64: MRS25000C3010FCT00 | E64: Farnell | F64: Farnell | G64: 10 | H64: 0.085 | I64: 100 | J64: 0.058
A65: 316 Ω | B65: Resistor-F | C65: 9467246 | D65: MRS25000C3160FCT00 | E65: Farnell | F65: Farnell | G65: 10 | H65: 0.085 | I65: 100 | J65: 0.058
A66: 348 Ω | B66: Resistor-F | C66: 9467424 | D66: MRS25000C3480FCT00 | E66: Farnell | F66: Farnell | G66: 10 | H66: 0.073 | I66: 100 | J66: 0.058
A67: 365 Ω | B67: Resistor-F | C67: 9467548 | D67: MRS25000C3650FCT00 | E67: Farnell | F67: Farnell | G67: 10 | H67: 0.051 | I67: 100 | J67: 0.046
A68: 383 Ω | B68: Resistor-F | C68: 9467645 | D68: MRS25000C3830FCT00 | E68: Farnell | F68: Farnell | G68: 10 | H68: 0.087 | I68: 100 | J68: 0.058
A69: 402 Ω | B69: Resistor-F | C69: 9468145 | D69: MRS25000C4020FCT00 | E69: Farnell | F69: Farnell | G69: 10 | H69: 0.085 | I69: 100 | J69: 0.056
A70: 422 Ω | B70: Resistor-F | C70: 9468226 | D70: MRS25000C4220FCT00 | E70: Farnell | F70: Farnell | G70: 10 | H70: 0.087 | I70: 100 | J70: 0.058
A71: 442 Ω | B71: Resistor-F | C71: 9468340 | D71: MRS25000C4420FCT00 | E71: Farnell | F71: Farnell | G71: 10 | H71: 0.085 | I71: 100 | J71: 0.057
A72: 464 Ω | B72: Resistor-F | C72: 9468420 | D72: MRS25000C4640FCT00 | E72: Farnell | F72: Farnell | G72: 10 | H72: 0.085 | I72: 100 | J72: 0.058
A73: 487 Ω | B73: Resistor-F | C73: 9468544 | D73: MRS25000C4870FCT00 | E73: Farnell | F73: Farnell | G73: 10 | H73: 0.085 | I73: 100 | J73: 0.058
A74: 511 Ω | B74: Resistor-F | C74: 9468854 | D74: MRS25000C5110FCT00 | E74: Farnell | F74: Farnell | G74: 10 | H74: 0.073 | I74: 100 | J74: 0.058
A75: 536 Ω | B75: Resistor-F | C75: 9468951 | D75: MRS25000C5360FCT00 | E75: Farnell | F75: Farnell | G75: 10 | H75: 0.085 | I75: 100 | J75: 0.058
A76: 562 Ω | B76: Resistor-F | C76: 9469052 | D76: MRS25000C5620FCT00 | E76: Farnell | F76: Farnell | G76: 10 | H76: 0.065 | I76: 100 | J76: 0.047
A77: 590 Ω | B77: Resistor-F | C77: 9469150 | D77: MRS25000C5900FCT00 | E77: Farnell | F77: Farnell | G77: 10 | H77: 0.087 | I77: 100 | J77: 0.058
A78: 619 Ω | B78: Resistor-F | C78: 9469435 | D78: MRS25000C6190FCT00 | E78: Farnell | F78: Farnell | G78: 10 | H78: 0.085 | I78: 100 | J78: 0.058
A79: 649 Ω | B79: Resistor-F | C79: 9469559 | D79: MRS25000C6490FCT00 | E79: Farnell | F79: Farnell | G79: 10 | H79: 0.05 | I79: 100 | J79: 0.037
A80: 681 Ω | B80: Resistor-F | C80: 9469656 | D80: MRS25000C6810FCT00 | E80: Farnell | F80: Farnell | G80: 10 | H80: 0.084 | I80: 100 | J80: 0.058
A81: 715 Ω | B81: Resistor-F | C81: 9469907 | D81: MRS25000C7150FCT00 | E81: Farnell | F81: Farnell | G81: 10 | H81: 0.088 | I81: 100 | J81: 0.058
A82: 750 Ω | B82: Resistor-F | C82: 9469982 | D82: MRS25000C7500FCT00 | E82: Farnell | F82: Farnell | G82: 10 | H82: 0.085 | I82: 100 | J82: 0.058
A83: 787 Ω | B83: Resistor-F | C83: 9470069 | D83: MRS25000C7870FCT00 | E83: Farnell | F83: Farnell | G83: 10 | H83: 0.073 | I83: 100 | J83: 0.058
A84: 825 Ω | B84: Resistor-F | C84: 9470263 | D84: MRS25000C8250FCT00 | E84: Farnell | F84: Farnell | G84: 10 | H84: 0.087 | I84: 100 | J84: 0.058
A85: 866 Ω | B85: Resistor-F | C85: 9470360 | D85: MRS25000C8660FCT00 | E85: Farnell | F85: Farnell | G85: 10 | H85: 0.085 | I85: 100 | J85: 0.058
A86: 909 Ω | B86: Resistor-F | C86: 9470549 | D86: MRS25000C9090FCT00 | E86: Farnell | F86: Farnell | G86: 10 | H86: 0.051 | I86: 100 | J86: 0.038
A87: 953 Ω | B87: Resistor-F | C87: 9470670 | D87: MRS25000C9530FCT00 | E87: Farnell | F87: Farnell | G87: 10 | H87: 0.085 | I87: 100 | J87: 0.058
A88: 1 kΩ | B88: Resistor-F | C88: 9465170 | D88: MRS25000C1001FCT00 | E88: Farnell | F88: Farnell | G88: 10 | H88: 0.05 | I88: 100 | J88: 0.037
A89: 1.05 kΩ | B89: Resistor-F | C89: 9465197 | D89: MRS25000C1051FCT00 | E89: Farnell | F89: Farnell | G89: 10 | H89: 0.087 | I89: 100 | J89: 0.058
A90: 1.1 kΩ | B90: Resistor-F | C90: 9465219 | D90: MRS25000C1101FCT00 | E90: Farnell | F90: Farnell | G90: 10 | H90: 0.087 | I90: 100 | J90: 0.058
A91: 1.15 kΩ | B91: Resistor-F | C91: 9465235 | D91: MRS25000C1151FCT00 | E91: Farnell | F91: Farnell | G91: 10 | H91: 0.087 | I91: 100 | J91: 0.058
A92: 1.21 kΩ | B92: Resistor-F | C92: 9465260 | D92: MRS25000C1211FCT00 | E92: Farnell | F92: Farnell | G92: 10 | H92: 0.051 | I92: 100 | J92: 0.037
A93: 1.27 kΩ | B93: Resistor-F | C93: 9465286 | D93: MRS25000C1271FCT00 | E93: Farnell | F93: Farnell | G93: 10 | H93: 0.087 | I93: 100 | J93: 0.058
A94: 1.33 kΩ | B94: Resistor-F | C94: 9465308 | D94: MRS25000C1331FCT00 | E94: Farnell | F94: Farnell | G94: 10 | H94: 0.087 | I94: 100 | J94: 0.058
A95: 1.4 kΩ | B95: Resistor-F | C95: 9465324 | D95: MRS25000C1401FCT00 | E95: Farnell | F95: Farnell | G95: 10 | H95: 0.087 | I95: 100 | J95: 0.058
A96: 1.69 kΩ | B96: Resistor-F | C96: 9465413 | D96: MRS25000C1691FCT00 | E96: Farnell | F96: Farnell | G96: 10 | H96: 0.085 | I96: 100 | J96: 0.058
A97: 1.78 kΩ | B97: Resistor-F | C97: 9465430 | D97: MRS25000C1781FCT00 | E97: Farnell | F97: Farnell | G97: 10 | H97: 0.085 | I97: 100 | J97: 0.056
A98: 6.81 kΩ | B98: Resistor-F | C98: 9469818 | D98: MRS25000C6811FCT00 | E98: Farnell | F98: Farnell | G98: 10 | H98: 0.087 | I98: 100 | J98: 0.058
A99: 8.66 kΩ | B99: Resistor-F | C99: 9470476 | D99: MRS25000C8661FCT00 | E99: Farnell | F99: Farnell | G99: 10 | H99: 0.089 | I99: 100 | J99: 0.06
A100: 9.09 kΩ | B100: Resistor-F | C100: 9470743 | D100: MRS25000C9091FCT00 | E100: Farnell | F100: Farnell | G100: 10 | H100: 0.087 | I100: 100 | J100: 0.058
A101: 11 kΩ | B101: Resistor-F | C101: 9464140 | D101: MRS25000C1102FCT00 | E101: Farnell | F101: Farnell | G101: 10 | H101: 0.051 | I101: 100 | J101: 0.037
A102: 11.5 kΩ | B102: Resistor-F | C102: 9464166 | D102: MRS25000C1152FCT00 | E102: Farnell | F102: Farnell | G102: 10 | H102: 0.051 | I102: 100 | J102: 0.046
A103: 12.1 kΩ | B103: Resistor-F | C103: 9464310 | D103: MRS25000C1212FCT00 | E103: Farnell | F103: Farnell | G103: 10 | H103: 0.087 | I103: 100 | J103: 0.058
A104: 14 kΩ | B104: Resistor-F | C104: 9464565 | D104: MRS25000C1402FCT00 | E104: Farnell | F104: Farnell | G104: 10 | H104: 0.087 | I104: 100 | J104: 0.058
A105: 14.7 kΩ | B105: Resistor-F | C105: 9464581 | D105: MRS25000C1472FCT00 | E105: Farnell | F105: Farnell | G105: 10 | H105: 0.085 | I105: 100 | J105: 0.058
A106: 15.4 kΩ | B106: Resistor-F | C106: 9464697 | D106: MRS25000C1542FCT00 | E106: Farnell | F106: Farnell | G106: 10 | H106: 0.084 | I106: 100 | J106: 0.058
A107: 16.2 kΩ | B107: Resistor-F | C107: 9464832 | D107: MRS25000C1622FCT00 | E107: Farnell | F107: Farnell | G107: 10 | H107: 0.087 | I107: 100 | J107: 0.058
A108: 17.8 kΩ | B108: Resistor-F | C108: 9464956 | D108: MRS25000C1782FCT00 | E108: Farnell | F108: Farnell | G108: 10 | H108: 0.06 | I108: 100 | J108: 0.058
A109: 18.7 kΩ | B109: Resistor-F | C109: 9465057 | D109: MRS25000C1872FCT00 | E109: Farnell | F109: Farnell | G109: 10 | H109: 0.087 | I109: 100 | J109: 0.058
A110: 19.6 kΩ | B110: Resistor-F | C110: 9465146 | D110: MRS25000C1962FCT00 | E110: Farnell | F110: Farnell | G110: 10 | H110: 0.084 | I110: 100 | J110: 0.056
A111: 20.5 kΩ | B111: Resistor-F | C111: 9465928 | D111: MRS25000C2052FCT00 | E111: Farnell | F111: Farnell | G111: 10 | H111: 0.081 | I111: 100 | J111: 0.058
A112: 22.6 kΩ | B112: Resistor-F | C112: 9466118 | D112: MRS25000C2262FCT00 | E112: Farnell | F112: Farnell | G112: 10 | H112: 0.085 | I112: 100 | J112: 0.058
A113: 23.7 kΩ | B113: Resistor-F | C113: 9466207 | D113: MRS25000C2372FCT00 | E113: Farnell | F113: Farnell | G113: 10 | H113: 0.051 | I113: 100 | J113: 0.044
A114: 24.9 kΩ | B114: Resistor-F | C114: 9466312 | D114: MRS25000C2492FCT00 | E114: Farnell | F114: Farnell | G114: 10 | H114: 0.087 | I114: 100 | J114: 0.058
A115: 26.1 kΩ | B115: Resistor-F | C115: 9466436 | D115: MRS25000C2612FCT00 | E115: Farnell | F115: Farnell | G115: 10 | H115: 0.088 | I115: 100 | J115: 0.058
A116: 28.7 kΩ | B116: Resistor-F | C116: 9466606 | D116: MRS25000C2872FCT00 | E116: Farnell | F116: Farnell | G116: 10 | H116: 0.087 | I116: 100 | J116: 0.058
A117: 30.1 kΩ | B117: Resistor-F | C117: 9467181 | D117: MRS25000C3012FCT00 | E117: Farnell | F117: Farnell | G117: 10 | H117: 0.087 | I117: 100 | J117: 0.058
A118: 31.6 kΩ | B118: Resistor-F | C118: 9467254 | D118: MRS25000C3162FCT00 | E118: Farnell | F118: Farnell | G118: 10 | H118: 0.051 | I118: 100 | J118: 0.037
A119: 33.2 kΩ | B119: Resistor-F | C119: 9467360 | D119: MRS25000C3322FCT00 | E119: Farnell | F119: Farnell | G119: 10 | H119: 0.087 | I119: 100 | J119: 0.058
A120: 36.5 kΩ | B120: Resistor-F | C120: 9467564 | D120: MRS25000C3652FCT00 | E120: Farnell | F120: Farnell | G120: 10 | H120: 0.085 | I120: 100 | J120: 0.056
A121: 38.3 kΩ | B121: Resistor-F | C121: 9467653 | D121: MRS25000C3832FCT00 | E121: Farnell | F121: Farnell | G121: 10 | H121: 0.087 | I121: 100 | J121: 0.058
A122: 40.2 kΩ | B122: Resistor-F | C122: 9468153 | D122: MRS25000C4022FCT00 | E122: Farnell | F122: Farnell | G122: 10 | H122: 0.084 | I122: 100 | J122: 0.056
A123: 42.2 kΩ | B123: Resistor-F | C123: 9468234 | D123: MRS25000C4222FCT00 | E123: Farnell | F123: Farnell | G123: 10 | H123: 0.051 | I123: 100 | J123: 0.038
A124: 46.4 kΩ | B124: Resistor-F | C124: 9468439 | D124: MRS25000C4642FCT00 | E124: Farnell | F124: Farnell | G124: 10 | H124: 0.087 | I124: 100 | J124: 0.058
A125: 48.7 kΩ | B125: Resistor-F | C125: 9468552 | D125: MRS25000C4872FCT00 | E125: Farnell | F125: Farnell | G125: 10 | H125: 0.087 | I125: 100 | J125: 0.058
A126: 51.1 kΩ | B126: Resistor-F | C126: 9468870 | D126: MRS25000C5112FCT00 | E126: Farnell | F126: Farnell | G126: 10 | H126: 0.087 | I126: 100 | J126: 0.058
A127: 53.6 kΩ | B127: Resistor-F | C127: 9468960 | D127: MRS25000C5362FCT00 | E127: Farnell | F127: Farnell | G127: 10 | H127: 0.051 | I127: 100 | J127: 0.037
A128: 59 kΩ | B128: Resistor-F | C128: 9469168 | D128: MRS25000C5902FCT00 | E128: Farnell | F128: Farnell | G128: 10 | H128: 0.087 | I128: 100 | J128: 0.058
A129: 61.9 kΩ | B129: Resistor-F | C129: 9469443 | D129: MRS25000C6192FCT00 | E129: Farnell | F129: Farnell | G129: 10 | H129: 0.086 | I129: 100 | J129: 0.057
A130: 64.9 kΩ | B130: Resistor-F | C130: 9469567 | D130: MRS25000C6492FCT00 | E130: Farnell | F130: Farnell | G130: 10 | H130: 0.06 | I130: 100 | J130: 0.06
A131: 68.1 kΩ | B131: Resistor-F | C131: 9469672 | D131: MRS25000C6812FCT00 | E131: Farnell | F131: Farnell | G131: 10 | H131: 0.087 | I131: 100 | J131: 0.058
A132: 75 kΩ | B132: Resistor-F | C132: 9469990 | D132: MRS25000C7502FCT00 | E132: Farnell | F132: Farnell | G132: 10 | H132: 0.084 | I132: 100 | J132: 0.058
A133: 78.7 kΩ | B133: Resistor-F | C133: 9470077 | D133: MRS25000C7872FCT00 | E133: Farnell | F133: Farnell | G133: 10 | H133: 0.06 | I133: 100 | J133: 0.057
A134: 82.5 kΩ | B134: Resistor-F | C134: 9470280 | D134: MRS25000C8252FCT00 | E134: Farnell | F134: Farnell | G134: 10 | H134: 0.06 | I134: 100 | J134: 0.058
A135: 86.6 kΩ | B135: Resistor-F | C135: 9470379 | D135: MRS25000C8662FCT00 | E135: Farnell | F135: Farnell | G135: 10 | H135: 0.06 | I135: 100 | J135: 0.058
A136: 95.3 kΩ | B136: Resistor-F | C136: 9470689 | D136: MRS25000C9532FCT00 | E136: Farnell | F136: Farnell | G136: 10 | H136: 0.05 | I136: 100 | J136: 0.037
A137: 105 kΩ | B137: Resistor-F | C137: 9463933 | D137: MRS25000C1053FCT00 | E137: Farnell | F137: Farnell | G137: 10 | H137: 0.049 | I137: 100 | J137: 0.036
A138: 110 kΩ | B138: Resistor-F | C138: 9464069 | D138: MRS25000C1103FCT00 | E138: Farnell | F138: Farnell | G138: 10 | H138: 0.051 | I138: 100 | J138: 0.037
A139: 121 kΩ | B139: Resistor-F | C139: 9464247 | D139: MRS25000C1213FCT00 | E139: Farnell | F139: Farnell | G139: 10 | H139: 0.087 | I139: 100 | J139: 0.058
A140: 133 kΩ | B140: Resistor-F | C140: 9464409 | D140: MRS25000C1333FCT00 | E140: Farnell | F140: Farnell | G140: 10 | H140: 0.084 | I140: 100 | J140: 0.058
A141: 169 kΩ | B141: Resistor-F | C141: 9464808 | D141: MRS25000C1693FCT00 | E141: Farnell | F141: Farnell | G141: 10 | H141: 0.087 | I141: 100 | J141: 0.06
A142: 10 Ω | B142: Resistor | C142: 603-MFR-12FTF52-10R | D142: MFR-12FTF52-10R | E142: Mouser | F142: Mouser | G142: 1 | H142: 0.122 | I142: 10 | J142: 0.062 | K142: 100 | L142: 0.022 | N142: =IF(MID(A142,FIND("Ω",A142)-1,1)="k",LEFT(A142,FIND("k",A142)-1)*1000,LEFT(A142,FIND("Ω",A142)-1)*1) -> 10
A143: 47 Ω, 250 mW | B143: Resistor | C143: =CONCATENATE("603-MFR-12FTF52-",IF(N143<1000,CONCATENATE(N143,"R"),IF(N143<10000,CONCATENATE(TRUNC(N143/1000),"K",TRUNC((N143/1000-TRUNC(N143/1000))*10+0.01)),IF(N143<1000000,CONCATENATE(N143/1000,"K"))))) -> 603-MFR-12FTF52-47R | D143: =RIGHT(C143,LEN(C143)-4) -> MFR-12FTF52-47R | E143: Mouser | F143: Mouser | G143: 1 | H143: 0.119 | I143: 10 | J143: 0.06 | K143: 100 | L143: 0.021 | N143: =IF(MID(A143,FIND("Ω",A143)-1,1)="k",LEFT(A143,FIND("k",A143)-1)*1000,LEFT(A143,FIND("Ω",A143)-1)*1) -> 47
A144: 100 Ω | B144: Resistor | C144: =CONCATENATE("603-MFR-12FTF52-",IF(N144<1000,CONCATENATE(N144,"R"),IF(N144<10000,CONCATENATE(TRUNC(N144/1000),"K",TRUNC((N144/1000-TRUNC(N144/1000))*10+0.01)),IF(N144<1000000,CONCATENATE(N144/1000,"K"))))) -> 603-MFR-12FTF52-100R | D144: =RIGHT(C144,LEN(C144)-4) -> MFR-12FTF52-100R | E144: Mouser | F144: Mouser | G144: 1 | H144: 0.102 | I144: 10 | J144: 0.06 | K144: 100 | L144: 0.026 | N144: =IF(MID(A144,FIND("Ω",A144)-1,1)="k",LEFT(A144,FIND("k",A144)-1)*1000,LEFT(A144,FIND("Ω",A144)-1)*1) -> 100
A145: 220 Ω | B145: Resistor | C145: 603-MFR-12FTF52-220R | D145: MFR-12FTF52-220R | E145: Mouser | F145: Mouser | G145: 1 | H145: 0.119 | I145: 10 | J145: 0.06 | K145: 100 | L145: 0.021 | N145: 220
A146: 430 Ω | B146: Resistor | C146: 603-MFR-12FTF52-430R | D146: MFR-12FTF52-430R | E146: Mouser | F146: Mouser | G146: 1 | H146: 0.119 | I146: 10 | J146: 0.06 | K146: 100 | L146: 0.021 | N146: 430
A147: 470 Ω | B147: Resistor | C147: 603-MFR-12FTF52-470R | D147: MFR-12FTF52-470R | E147: Mouser | F147: Mouser | G147: 1 | H147: 0.119 | I147: 10 | J147: 0.06 | K147: 100 | L147: 0.021 | N147: 470
A148: 510 Ω | B148: Resistor | C148: 603-MFR-12FTF52-510R | D148: MFR-12FTF52-510R | E148: Mouser | F148: Mouser | G148: 1 | H148: 0.119 | I148: 10 | J148: 0.06 | K148: 100 | L148: 0.021 | N148: 510
A149: 560 Ω | B149: Resistor | C149: 603-MFR-12FTF52-560R | D149: MFR-12FTF52-560R | E149: Mouser | F149: Mouser | G149: 1 | H149: 0.119 | I149: 10 | J149: 0.06 | K149: 100 | L149: 0.021 | N149: 560
A150: 620 Ω | B150: Resistor | C150: 603-MFR-12FTF52-620R | D150: MFR-12FTF52-620R | E150: Mouser | F150: Mouser | G150: 1 | H150: 0.119 | I150: 10 | J150: 0.06 | K150: 100 | L150: 0.021 | N150: 620
A151: 750 Ω | B151: Resistor | C151: 603-MFR-12FTF52-750R | D151: MFR-12FTF52-750R | E151: Mouser | F151: Mouser | G151: 1 | H151: 0.119 | I151: 10 | J151: 0.06 | K151: 100 | L151: 0.021 | N151: 750
A152: 820 Ω | B152: Resistor | C152: 603-MFR-12FTF52-820R | D152: MFR-12FTF52-820R | E152: Mouser | F152: Mouser | G152: 1 | H152: 0.119 | I152: 10 | J152: 0.06 | K152: 100 | L152: 0.021 | N152: 820
A153: 1 kΩ | B153: Resistor | C153: 603-MFR-12FTF52-1K | D153: MFR-12FTF52-1K | E153: Mouser | F153: Mouser | G153: 1 | H153: 0.085 | I153: 10 | J153: 0.046 | K153: 100 | L153: 0.016 | N153: 1000
A154: 1.5 kΩ | B154: Resistor | C154: 603-MFR-12FTF52-1K5 | D154: MFR-12FTF52-1K5 | E154: Mouser | F154: Mouser | G154: 1 | H154: 0.119 | I154: 10 | J154: 0.06 | K154: 100 | L154: 0.021 | N154: 1500
A155: 1.6 kΩ | B155: Resistor | C155: 603-MFR-12FTF52-1K6 | D155: MFR-12FTF52-1K6 | E155: Mouser | F155: Mouser | G155: 1 | H155: 0.119 | I155: 10 | J155: 0.06 | K155: 100 | L155: 0.021 | N155: 1600
A156: 2 kΩ | B156: Resistor | C156: 603-MFR-12FTF52-2K0 | D156: MFR-12FTF52-2K0 | E156: Mouser | F156: Mouser | G156: 1 | H156: 0.119 | I156: 10 | J156: 0.06 | K156: 100 | L156: 0.021 | N156: 2000
A157: 2.2 kΩ | B157: Resistor | C157: 603-MFR-12FTF52-2K2 | D157: MFR-12FTF52-2K2 | E157: Mouser | F157: Mouser | G157: 1 | H157: 0.119 | I157: 10 | J157: 0.06 | K157: 100 | L157: 0.021 | N157: 2200
A158: 2.4 kΩ | B158: Resistor | C158: 603-MFR-12FTF52-2K4 | D158: MFR-12FTF52-2K4 | E158: Mouser | F158: Mouser | G158: 1 | H158: 0.119 | I158: 10 | J158: 0.06 | K158: 100 | L158: 0.021 | N158: 2400
A159: 2.7 kΩ | B159: Resistor | C159: 603-MFR-12FTF52-2K7 | D159: MFR-12FTF52-2K7 | E159: Mouser | F159: Mouser | G159: 1 | H159: 0.119 | I159: 10 | J159: 0.06 | K159: 100 | L159: 0.021 | N159: 2700
A160: 3.3 kΩ | B160: Resistor | C160: 603-MFR-12FTF52-3K3 | D160: MFR-12FTF52-3K3 | E160: Mouser | F160: Mouser | G160: 1 | H160: 0.119 | I160: 10 | J160: 0.06 | K160: 100 | L160: 0.021 | N160: 3300
A161: 3.9 kΩ | B161: Resistor | C161: 603-MFR-12FTF52-3K9 | D161: MFR-12FTF52-3K9 | E161: Mouser | F161: Mouser | G161: 1 | H161: 0.119 | I161: 10 | J161: 0.06 | K161: 100 | L161: 0.021 | N161: 3900
A162: 4.7 kΩ | B162: Resistor | C162: 603-MFR-12FTF52-4K7 | D162: MFR-12FTF52-4K7 | E162: Mouser | F162: Mouser | G162: 1 | H162: 0.085 | I162: 10 | J162: 0.046 | K162: 100 | L162: 0.016 | N162: 4700
A163: 5.1 kΩ | B163: Resistor | C163: 603-MFR-12FTF52-5K1 | D163: MFR-12FTF52-5K1 | E163: Mouser | F163: Mouser | G163: 1 | H163: 0.119 | I163: 10 | J163: 0.06 | K163: 100 | L163: 0.021 | N163: 5100
A164: 5.6 kΩ | B164: Resistor | C164: 603-MFR-12FTF52-5K6 | D164: MFR-12FTF52-5K6 | E164: Mouser | F164: Mouser | G164: 1 | H164: 0.119 | I164: 10 | J164: 0.06 | K164: 100 | L164: 0.021 | N164: 5600
A165: 6.2 kΩ | B165: Resistor | C165: 603-MFR-12FTF52-6K2 | D165: MFR-12FTF52-6K2 | E165: Mouser | F165: Mouser | G165: 1 | H165: 0.119 | I165: 10 | J165: 0.06 | K165: 100 | L165: 0.021 | N165: 6200
A166: 6.8 kΩ | B166: Resistor | C166: 603-MFR-12FTF52-6K8 | D166: MFR-12FTF52-6K8 | E166: Mouser | F166: Mouser | G166: 1 | H166: 0.119 | I166: 10 | J166: 0.06 | K166: 100 | L166: 0.021 | N166: 6800
A167: 7.5 kΩ | B167: Resistor | C167: 603-MFR-12FTF52-7K5 | D167: MFR-12FTF52-7K5 | E167: Mouser | F167: Mouser | G167: 1 | H167: 0.119 | I167: 10 | J167: 0.06 | K167: 100 | L167: 0.021 | N167: 7500
A168: 8.2 kΩ | B168: Resistor | C168: 603-MFR-12FTF52-8K2 | D168: MFR-12FTF52-8K2 | E168: Mouser | F168: Mouser | G168: 1 | H168: 0.119 | I168: 10 | J168: 0.06 | K168: 100 | L168: 0.021 | N168: 8200
A169: 10 kΩ | B169: Resistor | C169: 603-MFR-12FTF52-10K | D169: MFR-12FTF52-10K | E169: Mouser | F169: Mouser | G169: 1 | H169: 0.119 | I169: 10 | J169: 0.06 | K169: 100 | L169: 0.021 | N169: 10000
A170: 12 kΩ | B170: Resistor | C170: 603-MFR-12FTF52-12K | D170: MFR-12FTF52-12K | E170: Mouser | F170: Mouser | G170: 1 | H170: 0.119 | I170: 10 | J170: 0.06 | K170: 100 | L170: 0.021 | N170: 12000
A171: 13 kΩ | B171: Resistor | C171: 603-MFR-12FTF52-13K | D171: MFR-12FTF52-13K | E171: Mouser | F171: Mouser | G171: 1 | H171: 0.119 | I171: 10 | J171: 0.06 | K171: 100 | L171: 0.021 | N171: 13000
A172: 15 kΩ | B172: Resistor | C172: 603-MFR-12FTF52-15K | D172: MFR-12FTF52-15K | E172: Mouser | F172: Mouser | G172: 1 | H172: 0.119 | I172: 10 | J172: 0.06 | K172: 100 | L172: 0.021 | N172: 15000
A173: 18 kΩ | B173: Resistor | C173: 603-MFR-12FTF52-18K | D173: MFR-12FTF52-18K | E173: Mouser | F173: Mouser | G173: 1 | H173: 0.119 | I173: 10 | J173: 0.06 | K173: 100 | L173: 0.021 | N173: 18000
A174: 20 kΩ | B174: Resistor | C174: 603-MFR-12FTF52-20K | D174: MFR-12FTF52-20K | E174: Mouser | F174: Mouser | G174: 1 | H174: 0.085 | I174: 10 | J174: 0.046 | K174: 100 | L174: 0.016 | N174: 20000
A175: 22 kΩ | B175: Resistor | C175: 603-MFR-12FTF52-22K | D175: MFR-12FTF52-22K | E175: Mouser | F175: Mouser | G175: 1 | H175: 0.119 | I175: 10 | J175: 0.06 | K175: 100 | L175: 0.021 | N175: 22000
A176: 24 kΩ | B176: Resistor | C176: 603-MFR-12FTF52-24K | D176: MFR-12FTF52-24K | E176: Mouser | F176: Mouser | G176: 1 | H176: 0.119 | I176: 10 | J176: 0.06 | K176: 100 | L176: 0.021 | N176: 24000
A177: 27 kΩ | B177: Resistor | C177: 603-MFR-12FTF52-27K | D177: MFR-12FTF52-27K | E177: Mouser | F177: Mouser | G177: 1 | H177: 0.119 | I177: 10 | J177: 0.06 | K177: 100 | L177: 0.021 | N177: 27000
A178: 30 kΩ | B178: Resistor | C178: 603-MFR-12FTF52-30K | D178: MFR-12FTF52-30K | E178: Mouser | F178: Mouser | G178: 1 | H178: 0.119 | I178: 10 | J178: 0.06 | K178: 100 | L178: 0.021 | N178: 30000
A179: 33 kΩ | B179: Resistor | C179: 603-MFR-12FTF52-33K | D179: MFR-12FTF52-33K | E179: Mouser | F179: Mouser | G179: 1 | H179: 0.119 | I179: 10 | J179: 0.06 | K179: 100 | L179: 0.021 | N179: 33000
A180: 36 kΩ | B180: Resistor | C180: 603-MFR-12FTF52-36K | D180: MFR-12FTF52-36K | E180: Mouser | F180: Mouser | G180: 1 | H180: 0.119 | I180: 10 | J180: 0.06 | K180: 100 | L180: 0.021 | N180: 36000
A181: 39 kΩ | B181: Resistor | C181: 603-MFR-12FTF52-39K | D181: MFR-12FTF52-39K | E181: Mouser | F181: Mouser | G181: 1 | H181: 0.119 | I181: 10 | J181: 0.06 | K181: 100 | L181: 0.021 | N181: 39000
A182: 47 kΩ | B182: Resistor | C182: 603-MFR-12FTF52-47K | D182: MFR-12FTF52-47K | E182: Mouser | F182: Mouser | G182: 1 | H182: 0.119 | I182: 10 | J182: 0.06 | K182: 100 | L182: 0.021 | N182: 47000
A183: 51 kΩ | B183: Resistor | C183: 603-MFR-12FTF52-51K | D183: MFR-12FTF52-51K | E183: Mouser | F183: Mouser | G183: 1 | H183: 0.119 | I183: 10 | J183: 0.06 | K183: 100 | L183: 0.021 | N183: 51000
A184: 56 kΩ | B184: Resistor | C184: 603-MFR-12FTF52-56K | D184: MFR-12FTF52-56K | E184: Mouser | F184: Mouser | G184: 1 | H184: 0.119 | I184: 10 | J184: 0.06 | K184: 100 | L184: 0.021 | N184: 56000
A185: 62 kΩ | B185: Resistor | C185: 603-MFR-12FTF52-62K | D185: MFR-12FTF52-62K | E185: Mouser | F185: Mouser | G185: 1 | H185: 0.119 | I185: 10 | J185: 0.06 | K185: 100 | L185: 0.021 | N185: 62000
A186: 75 kΩ | B186: Resistor | C186: 603-MFR-12FTF52-75K | D186: MFR-12FTF52-75K | E186: Mouser | F186: Mouser | G186: 1 | H186: 0.119 | I186: 10 | J186: 0.06 | K186: 100 | L186: 0.021 | N186: 75000
A187: 91 kΩ | B187: Resistor | C187: 603-MFR-12FTF52-91K | D187: MFR-12FTF52-91K | E187: Mouser | F187: Mouser | G187: 1 | H187: 0.119 | I187: 10 | J187: 0.06 | K187: 100 | L187: 0.021 | N187: 91000
A188: 100 kΩ | B188: Resistor | C188: 603-MFR-12FTF52-100K | D188: MFR-12FTF52-100K | E188: Mouser | F188: Mouser | G188: 1 | H188: 0.119 | I188: 10 | J188: 0.06 | K188: 100 | L188: 0.021 | N188: 100000
A189: 120 kΩ | B189: Resistor | C189: 603-MFR-12FTF52-120K | D189: MFR-12FTF52-120K | E189: Mouser | F189: Mouser | G189: 1 | H189: 0.119 | I189: 10 | J189: 0.06 | K189: 100 | L189: 0.021 | N189: 120000
A190: 150 kΩ | B190: Resistor | C190: 603-MFR-12FTF52-150K | D190: MFR-12FTF52-150K | E190: Mouser | F190: Mouser | G190: 1 | H190: 0.119 | I190: 10 | J190: 0.06 | K190: 100 | L190: 0.021 | N190: 150000
A191: 180 kΩ | B191: Resistor | C191: 603-MFR-12FTF52-180K | D191: MFR-12FTF52-180K | E191: Mouser | F191: Mouser | G191: 1 | H191: 0.119 | I191: 10 | J191: 0.06 | K191: 100 | L191: 0.021 | N191: 180000
A192: 200 kΩ | B192: Resistor | C192: 603-MFR-12FTF52-200K | D192: MFR-12FTF52-200K | E192: Mouser | F192: Mouser | G192: 1 | H192: 0.119 | I192: 10 | J192: 0.06 | K192: 100 | L192: 0.021 | N192: 200000
A193: 220 kΩ | B193: Resistor | C193: 603-MFR-12FTF52-220K | D193: MFR-12FTF52-220K | E193: Mouser | F193: Mouser | G193: 1 | H193: 0.119 | I193: 10 | J193: 0.06 | K193: 100 | L193: 0.021 | N193: 220000
A194: 330 kΩ | B194: Resistor | C194: 603-MFR-12FTF52-330K | D194: MFR-12FTF52-330K | E194: Mouser | F194: Mouser | G194: 1 | H194: 0.119 | I194: 10 | J194: 0.06 | K194: 100 | L194: 0.021 | N194: 330000
A195: 360 kΩ | B195: Resistor | C195: 603-MFR-12FTF52-360K | D195: MFR-12FTF52-360K | E195: Mouser | F195: Mouser | G195: 1 | H195: 0.119 | I195: 10 | J195: 0.06 | K195: 100 | L195: 0.021 | N195: 360000
A196: 390 kΩ | B196: Resistor | C196: 603-MFR-12FTF52-390K | D196: MFR-12FTF52-390K | E196: Mouser | F196: Mouser | G196: 1 | H196: 0.119 | I196: 10 | J196: 0.06 | K196: 100 | L196: 0.021 | N196: 390000
A197: 430 kΩ | B197: Resistor | C197: 603-MFR-12FTF52-430K | D197: MFR-12FTF52-430K | E197: Mouser | F197: Mouser | G197: 1 | H197: 0.119 | I197: 10 | J197: 0.06 | K197: 100 | L197: 0.021 | N197: 430000
A198: 470 kΩ | B198: Resistor | C198: 603-MFR-12FTF52-470K | D198: MFR-12FTF52-470K | E198: Mouser | F198: Mouser | G198: 1 | H198: 0.119 | I198: 10 | J198: 0.06 | K198: 100 | L198: 0.021 | N198: 470000
A199: 820 kΩ | B199: Resistor | C199: 603-MFR-12FTF52-820K | D199: MFR-12FTF52-820K | E199: Mouser | F199: Mouser | G199: 1 | H199: 0.119 | I199: 10 | J199: 0.06 | K199: 100 | L199: 0.021 | N199: 820000
A200: 1 MΩ | B200: Resistor | C200: 603-MFR-12FTF52-1M | D200: MFR-12FTF52-1M | E200: Mouser | F200: Mouser | G200: 1 | H200: 0.119 | I200: 10 | J200: 0.06 | K200: 100 | L200: 0.021 | N200: 1000000
... 115 more rows
